Workbook

Sheet Info
B3: This workbook contains financial information of the ASEE Group for the quarters of the years 2024, 2023, 2022, 2021, 2020, 2019.
B5: Gray sheets - P&L, BS, CF contain data for for each quarter. Data in columns is split into reported and restated ones. Green sheets - data about operating segments and countries presented in respective notes of financial statement but in form of Pivot allowing to modify presentation.

Sheet P&L
B3: Cumulated | C3: Reported data | Y3: Restated comparative
B4: Profit & Loss Statement | C4: 2019 | D4: 2019 | E4: 2019 | F4: 2019 | G4: 2020 | H4: 2020 | I4: 2020 | J4: 2020 | K4: 2021 | L4: 2021 | M4: 2021 | N4: 2021 | O4: 2022 | P4: 2022 | Q4: 2022 | R4: 2022 | S4: 2023 | T4: 2023 | U4: 2023 | V4: 2023 | W4: 2024 | Y4: 2019 | Z4: 2019 | AA4: 2019 | AB4: 2019 | AC4: 2020 | AD4: 2020 | AE4: 2020 | AF4: 2020 | AG4: 2021 | AH4: 2021 | AI4: 2021 | AJ4: 2021 | AK4: 2022 | AL4: 2022 | AM4: 2022 | AN4: 2022 | AO4: 2023
C5: Q1 | D5: Q2 | E5: Q3 | F5: Q4 | G5: Q1 | H5: Q2 | I5: Q3 | J5: Q4 | K5: Q1 | L5: Q2 | M5: Q3 | N5: Q4 | O5: Q1 | P5: Q2 | Q5: Q3 | R5: Q4 | S5: Q1 | T5: Q2 | U5: Q3 | V5: Q4 | W5: Q1 | Y5: Q1 | Z5: Q2 | AA5: Q3 | AB5: Q4 | AC5: Q1 | AD5: Q2 | AE5: Q3 | AF5: Q4 | AG5: Q1 | AH5: Q2 | AI5: Q3 | AJ5: Q4 | AK5: Q1 | AL5: Q2 | AM5: Q3 | AN5: Q4 | AO5: Q1
C6: k. PLN | D6: k. PLN | E6: k. PLN | F6: k. PLN | G6: k. PLN | H6: k. PLN | I6: k. PLN | J6: k. PLN | K6: k. PLN | L6: k. PLN | M6: k. PLN | N6: k. PLN | O6: k. PLN | P6: k. PLN | Q6: k. PLN | R6: k. PLN | S6: k. PLN | T6: k. PLN | U6: k. PLN | V6: k. PLN | W6: k. PLN | Y6: k. PLN | Z6: k. PLN | AA6: k. PLN | AB6: k. PLN | AC6: k. PLN | AD6: k. PLN | AE6: k. PLN | AF6: k. PLN | AG6: k. PLN | AH6: k. PLN | AI6: k. PLN | AJ6: k. PLN | AK6: k. PLN | AL6: k. PLN | AM6: k. PLN | AN6: k. PLN | AO6: k. PLN
B8: Operating revenues | C8: 178816 | D8: 376974 | E8: 605776 | F8: 881336 | G8: 230985 | H8: 464345 | I8: 691823 | J8: 1026490 | K8: 252766 | L8: 525741 | M8: 790061 | N8: 1146649 | O8: 311175 | P8: 661098 | Q8: 1080586 | R8: 1565493 | S8: 380064 | T8: 755591 | U8: 1153937 | V8: 1642531 | W8: 367056 | Y8: 178816 | Z8: 376974 | AA8: 605776 | AB8: 881336 | AC8: 230985 | AD8: 464345 | AE8: 691823 | AF8: 1026490 | AG8: 252766 | AH8: 525741 | AI8: 790061 | AJ8: 1146649 | AK8: 311665 | AL8: 661098 | AM8: 1080586 | AN8: 1565493 | AO8: 380064
B9: Cost of sales | C9: -134526 | D9: -283409 | E9: -458612 | F9: -663553 | G9: -175711 | H9: -345045 | I9: -505431 | J9: -764055 | K9: -182292 | L9: -382572 | M9: -567754 | N9: -828084 | O9: -225774 | P9: -479269 | Q9: -797180 | R9: -1170433 | S9: -279908 | T9: -553397 | U9: -840942 | V9: -1211525 | W9: -269535 | Y9: -134194 | Z9: -282581 | AA9: -457280 | AB9: -664009 | AC9: -175711 | AD9: -345109 | AE9: -505813 | AF9: -764821 | AG9: -182682 | AH9: -382572 | AI9: -568175 | AJ9: -829517 | AK9: -227059 | AL9: -481025 | AM9: -798059 | AN9: -1170924 | AO9: -280322
B10: Allowances for trade receivables | C10: -223 | D10: -462 | E10: -952 | F10: -3032 | G10: 816 | H10: 343 | I10: -213 | J10: 83 | K10: 385 | L10: -421 | M10: -896 | N10: -1957 | O10: -815 | P10: -553 | Q10: -1083 | R10: -1890 | S10: -1318 | T10: -3680 | U10: -4845 | V10: -8795 | W10: -1532 | Y10: -223 | Z10: -462 | AA10: -952 | AB10: -3032 | AC10: 816 | AD10: 343 | AE10: -213 | AF10: 83 | AG10: 385 | AH10: -421 | AI10: -896 | AJ10: -1957 | AK10: -815 | AL10: -553 | AM10: -1083 | AN10: -1890 | AO10: -1318
B11: Gross profit on sales | C11: 44067 | D11: 93103 | E11: 146212 | F11: 214751 | G11: 56090 | H11: 119643 | I11: 186179 | J11: 262518 | K11: 70859 | L11: 142748 | M11: 221411 | N11: 316608 | O11: 84586 | P11: 181276 | Q11: 282323 | R11: 393170 | S11: 98838 | T11: 198514 | U11: 308150 | V11: 422211 | W11: 95989 | Y11: 44399 | Z11: 93931 | AA11: 147544 | AB11: 214295 | AC11: 56090 | AD11: 119579 | AE11: 185797 | AF11: 261752 | AG11: 70469 | AH11: 142748 | AI11: 220990 | AJ11: 315175 | AK11: 83791 | AL11: 179520 | AM11: 281444 | AN11: 392679 | AO11: 98424
B12: Selling costs | C12: -11605 | D12: -24030 | E12: -37033 | F12: -53039 | G12: -13090 | H12: -26768 | I12: -40282 | J12: -55543 | K12: -16875 | L12: -31010 | M12: -46568 | N12: -68612 | O12: -19355 | P12: -42489 | Q12: -65814 | R12: -93039 | S12: -24225 | T12: -47587 | U12: -73148 | V12: -101308 | W12: -24082 | Y12: -11605 | Z12: -24030 | AA12: -37033 | AB12: -53039 | AC12: -13090 | AD12: -26768 | AE12: -40282 | AF12: -55543 | AG12: -16875 | AH12: -31010 | AI12: -46568 | AJ12: -68612 | AK12: -19355 | AL12: -42489 | AM12: -65814 | AN12: -93039 | AO12: -24225
B13: General and administrative expenses | C13: -11539 | D13: -25701 | E13: -37339 | F13: -53781 | G13: -14878 | H13: -29418 | I13: -45209 | J13: -61487 | K13: -15630 | L13: -31867 | M13: -48080 | N13: -68033 | O13: -18554 | P13: -39956 | Q13: -62752 | R13: -84755 | S13: -24533 | T13: -47237 | U13: -71483 | V13: -95994 | W13: -24449 | Y13: -11539 | Z13: -25701 | AA13: -37339 | AB13: -53781 | AC13: -14878 | AD13: -29418 | AE13: -45209 | AF13: -61487 | AG13: -15630 | AH13: -31867 | AI13: -48080 | AJ13: -68033 | AK13: -18554 | AL13: -39956 | AM13: -62752 | AN13: -84755 | AO13: -24533
B14: Net profit on sales | C14: 20923 | D14: 43372 | E14: 71840 | F14: 107931 | G14: 28122 | H14: 63457 | I14: 100688 | J14: 145488 | K14: 38354 | L14: 79871 | M14: 126763 | N14: 179963 | O14: 46677 | P14: 98831 | Q14: 153757 | R14: 215376 | S14: 50080 | T14: 103690 | U14: 163519 | V14: 224909 | W14: 47458 | Y14: 21255 | Z14: 44200 | AA14: 73172 | AB14: 107475 | AC14: 28122 | AD14: 63393 | AE14: 100306 | AF14: 144722 | AG14: 37964 | AH14: 79871 | AI14: 126342 | AJ14: 178530 | AK14: 45882 | AL14: 97075 | AM14: 152878 | AN14: 214885 | AO14: 49666
B15: Other operating income | C15: 1418 | D15: 1282 | E15: 3137 | F15: 4253 | G15: 450 | H15: 1085 | I15: 1586 | J15: 2973 | K15: 749 | L15: 1274 | M15: 1611 | N15: 3023 | O15: 375 | P15: 1107 | Q15: 2291 | R15: 3167 | S15: 722 | T15: 1106 | U15: 1834 | V15: 3672 | W15: 475 | Y15: 1418 | Z15: 1282 | AA15: 3137 | AB15: 4253 | AC15: 450 | AD15: 1085 | AE15: 1586 | AF15: 2973 | AG15: 749 | AH15: 1274 | AI15: 1611 | AJ15: 3023 | AK15: 375 | AL15: 1107 | AM15: 2291 | AN15: 3167 | AO15: 722
B16: Other operating expenses | C16: -1067 | D16: -811 | E16: -1240 | F16: -1923 | G16: -194 | H16: -510 | I16: -948 | J16: -2814 | K16: -208 | L16: -403 | M16: -540 | N16: -1535 | O16: -333 | P16: -678 | Q16: -897 | R16: -2580 | S16: -582 | T16: -669 | U16: -1150 | V16: -2655 | W16: -489 | Y16: -1067 | Z16: -811 | AA16: -1240 | AB16: -1923 | AC16: -194 | AD16: -510 | AE16: -948 | AF16: -2814 | AG16: -208 | AH16: -403 | AI16: -540 | AJ16: -1535 | AK16: -333 | AL16: -678 | AM16: -897 | AN16: -2580 | AO16: -582
B17: Share of profits of associates and joint ventures | C17: -55 | D17: -61 | E17: -61 | F17: -61 | G17: 0 | H17: 0 | I17: 0 | J17: 0 | K17: 0 | L17: 0 | M17: 0 | N17: 0 | O17: 0 | P17: 0 | Q17: 0 | R17: -19 | S17: 0 | T17: 18 | U17: 83 | V17: 82 | W17: 14 | Y17: -55 | Z17: -61 | AA17: -61 | AB17: -61 | AC17: 0 | AD17: 0 | AE17: 0 | AF17: 0 | AG17: 0 | AH17: 0 | AI17: 0 | AJ17: 0 | AK17: 0 | AL17: 0 | AM17: 0 | AN17: -19 | AO17: 0
B18: Operating profit | C18: 21219 | D18: 43782 | E18: 73676 | F18: 110200 | G18: 28378 | H18: 64032 | I18: 101326 | J18: 145647 | K18: 38895 | L18: 80742 | M18: 127834 | N18: 181451 | O18: 46719 | P18: 99260 | Q18: 155151 | R18: 215944 | S18: 50220 | T18: 104145 | U18: 164286 | V18: 226008 | W18: 47458 | Y18: 21551 | Z18: 44610 | AA18: 75008 | AB18: 109744 | AC18: 28378 | AD18: 63968 | AE18: 100944 | AF18: 144881 | AG18: 38505 | AH18: 80742 | AI18: 127413 | AJ18: 180018 | AK18: 45924 | AL18: 97504 | AM18: 154272 | AN18: 215453 | AO18: 49806
B19: Financial income | C19: 2014 | D19: 5050 | E19: 5908 | F19: 6032 | G19: 4320 | H19: 3968 | I19: 7537 | J19: 8628 | K19: 5243 | L19: 6834 | M19: 8392 | N19: 24564 | O19: 6269 | P19: 32125 | Q19: 44475 | R19: 44176 | S19: 12169 | T19: 24445 | U19: 42783 | V19: 56707 | W19: 16826 | Y19: 2014 | Z19: 5050 | AA19: 5908 | AB19: 6032 | AC19: 4320 | AD19: 3968 | AE19: 7537 | AF19: 8628 | AG19: 5243 | AH19: 6834 | AI19: 8392 | AJ19: 24564 | AK19: 6269 | AL19: 32125 | AM19: 44475 | AN19: 44176 | AO19: 12169
B20: Financial expenses | C20: -1761 | D20: -2917 | E20: -4264 | F20: -5712 | G20: -4576 | H20: -5974 | I20: -9698 | J20: -12615 | K20: -3751 | L20: -5490 | M20: -7110 | N20: -11988 | O20: -2806 | P20: -5883 | Q20: -12488 | R20: -21910 | S20: -4570 | T20: -11745 | U20: -14755 | V20: -27289 | W20: -6492 | Y20: -1761 | Z20: -2827 | AA20: -4174 | AB20: -5712 | AC20: -4576 | AD20: -5974 | AE20: -9698 | AF20: -12615 | AG20: -3751 | AH20: -5490 | AI20: -7110 | AJ20: -11988 | AK20: -2806 | AL20: -5881 | AM20: -12467 | AN20: -21910 | AO20: -4570
B21: Impairment losses on financial instruments | C21: 0 | D21: 0 | E21: 0 | F21: -90 | G21: 0 | H21: 0 | I21: 0 | J21: 0 | K21: 0 | L21: 0 | M21: 0 | N21: -325 | O21: 0 | P21: -10 | Q21: -13 | R21: 0 | S21: -6 | T21: -12 | U21: -18 | V21: 0 | W21: -5 | Y21: 0 | Z21: -90 | AA21: -90 | AB21: -90 | AC21: 0 | AD21: 0 | AE21: 0 | AF21: 0 | AG21: 0 | AH21: 0 | AI21: 0 | AJ21: -325 | AK21: 0 | AL21: -10 | AM21: -13 | AN21: 0 | AO21: -6
B22: Pre-tax profit | C22: 21472 | D22: 45915 | E22: 75320 | F22: 110430 | G22: 28122 | H22: 62026 | I22: 99165 | J22: 141660 | K22: 40387 | L22: 82086 | M22: 129116 | N22: 193702 | O22: 50182 | P22: 125492 | Q22: 187125 | R22: 238210 | S22: 57813 | T22: 116833 | U22: 192296 | V22: 255426 | W22: 57787 | Y22: 21804 | Z22: 46743 | AA22: 76652 | AB22: 109974 | AC22: 28122 | AD22: 61962 | AE22: 98783 | AF22: 140894 | AG22: 39997 | AH22: 82086 | AI22: 128695 | AJ22: 192269 | AK22: 49387 | AL22: 123738 | AM22: 186267 | AN22: 237719 | AO22: 57399
B23: Corporate income tax (current and deferred tax expense) | C23: -3147 | D23: -9351 | E23: -13507 | F23: -19108 | G23: -4486 | H23: -10860 | I23: -16295 | J23: -23490 | K23: -7760 | L23: -14946 | M23: -23164 | N23: -38479 | O23: -9793 | P23: -18419 | Q23: -28926 | R23: -42224 | S23: -10612 | T23: -20668 | U23: -32963 | V23: -47098 | W23: -9201 | Y23: -3230 | Z23: -9558 | AA23: -13840 | AB23: -19024 | AC23: -4486 | AD23: -10849 | AE23: -16226 | AF23: -23352 | AG23: -7690 | AH23: -14946 | AI23: -23093 | AJ23: -38234 | AK23: -9670 | AL23: -18206 | AM23: -28775 | AN23: -42163 | AO23: -10573
B24: Net profit for the reporting period | C24: 18325 | D24: 36564 | E24: 61813 | F24: 91322 | G24: 23636 | H24: 51166 | I24: 82870 | J24: 118170 | K24: 32627 | L24: 67140 | M24: 105952 | N24: 155223 | O24: 40389 | P24: 107073 | Q24: 158199 | R24: 195986 | S24: 47201 | T24: 96165 | U24: 159333 | V24: 208328 | W24: 48586 | Y24: 18574 | Z24: 37185 | AA24: 62812 | AB24: 90950 | AC24: 23636 | AD24: 51113 | AE24: 82557 | AF24: 117542 | AG24: 32307 | AH24: 67140 | AI24: 105602 | AJ24: 154035 | AK24: 39717 | AL24: 105532 | AM24: 157492 | AN24: 195556 | AO24: 46826
B25: Shareholders of the Parent Company | C25: 18025 | D25: 35810 | E25: 61059 | F25: 89989 | G25: 23547 | H25: 50452 | I25: 81904 | J25: 116528 | K25: 31711 | L25: 64842 | M25: 102576 | N25: 150430 | O25: 39120 | P25: 104262 | Q25: 153364 | R25: 188258 | S25: 45513 | T25: 92482 | U25: 154559 | V25: 200362 | W25: 47010 | Y25: 18193 | Z25: 36230 | AA25: 61735 | AB25: 89647 | AC25: 23547 | AD25: 50412 | AE25: 81641 | AF25: 115988 | AG25: 31429 | AH25: 64842 | AI25: 102226 | AJ25: 149242 | AK25: 38448 | AL25: 102721 | AM25: 152657 | AN25: 187828 | AO25: 45138
B26: Non-controlling interests | C26: 300 | D26: 754 | E26: 754 | F26: 1333 | G26: 89 | H26: 714 | I26: 966 | J26: 1642 | K26: 916 | L26: 2298 | M26: 3376 | N26: 4793 | O26: 1269 | P26: 2811 | Q26: 4835 | R26: 7728 | S26: 1688 | T26: 3683 | U26: 4774 | V26: 7966 | W26: 1576 | Y26: 381 | Z26: 955 | AA26: 1077 | AB26: 1303 | AC26: 89 | AD26: 701 | AE26: 916 | AF26: 1554 | AG26: 878 | AH26: 2298 | AI26: 3376 | AJ26: 4793 | AK26: 1269 | AL26: 2811 | AM26: 4835 | AN26: 7728 | AO26: 1688
B28: Quarterly | C28: Reported data | Y28: Restated comparative
B29: Profit & Loss Statement | C29: 2019 | D29: 2019 | E29: 2019 | F29: 2019 | G29: 2020 | H29: 2020 | I29: 2020 | J29: 2020 | K29: 2021 | L29: 2021 | M29: 2021 | N29: 2021 | O29: 2022 | P29: 2022 | Q29: 2022 | R29: 2022 | S29: 2023 | T29: 2023 | U29: 2023 | V29: 2023 | W29: 2024 | Y29: 2019 | Z29: 2019 | AA29: 2019 | AB29: 2019 | AC29: 2020 | AD29: 2020 | AE29: 2020 | AF29: 2020 | AG29: 2021 | AH29: 2021 | AI29: 2021 | AJ29: 2021 | AK29: 2022 | AL29: 2022 | AM29: 2022 | AN29: 2022 | AO29: 2023
C30: Q1 | D30: Q2 | E30: Q3 | F30: Q4 | G30: Q1 | H30: Q2 | I30: Q3 | J30: Q4 | K30: Q1 | L30: Q2 | M30: Q3 | N30: Q4 | O30: Q1 | P30: Q2 | Q30: Q3 | R30: Q4 | S30: Q1 | T30: Q2 | U30: Q3 | V30: Q4 | W30: Q1 | Y30: Q1 | Z30: Q2 | AA30: Q3 | AB30: Q4 | AC30: Q1 | AD30: Q2 | AE30: Q3 | AF30: Q4 | AG30: Q1 | AH30: Q2 | AI30: Q3 | AJ30: Q4 | AK30: Q1 | AL30: Q2 | AM30: Q3 | AN30: Q4 | AO30: Q1
C31: k. PLN | D31: k. PLN | E31: k. PLN | F31: k. PLN | G31: k. PLN | H31: k. PLN | I31: k. PLN | J31: k. PLN | K31: k. PLN | L31: k. PLN | M31: k. PLN | N31: k. PLN | O31: k. PLN | P31: k. PLN | Q31: k. PLN | R31: k. PLN | S31: k. PLN | T31: k. PLN | U31: k. PLN | V31: k. PLN | W31: k. PLN | Y31: k. PLN | Z31: k. PLN | AA31: k. PLN | AB31: k. PLN | AC31: k. PLN | AD31: k. PLN | AE31: k. PLN | AF31: k. PLN | AG31: k. PLN | AH31: k. PLN | AI31: k. PLN | AJ31: k. PLN | AK31: k. PLN | AL31: k. PLN | AM31: k. PLN | AN31: k. PLN | AO31: k. PLN
B33: Operating revenues | C33: 178816 | D33: 198158 | E33: 228802 | F33: 275560 | G33: 230985 | H33: 233360 | I33: 227478 | J33: 334667 | K33: 252766 | L33: 272975 | M33: 264320 | N33: 356588 | O33: 311175 | P33: =P8-O8 -> 349923 | Q33: =Q8-P8 -> 419488 | R33: =R8-Q8 -> 484907 | S33: 380064 | T33: 375527 | U33: 398346 | V33: 488594 | W33: 367056 | Y33: 178816 | Z33: 198158 | AA33: 228802 | AB33: 275560 | AC33: 230985 | AD33: 233360 | AE33: 227478 | AF33: 334667 | AG33: 252766 | AH33: =AH8-AG8 -> 272975 | AI33: =AI8-AH8 -> 264320 | AJ33: =AJ8-AI8 -> 356588 | AK33: 311665 | AL33: 349433 | AM33: 419488 | AN33: 484907 | AO33: -280322
B34: Cost of sales | C34: -134526 | D34: -148883 | E34: -175203 | F34: -204941 | G34: -175711 | H34: -169334 | I34: -160386 | J34: -258624 | K34: -182292 | L34: -199890 | M34: -185182 | N34: -260330 | O34: -225774 | P34: =P9-O9 -> -253495 | Q34: -317911 | R34: =R9-Q9 -> -373253 | S34: -279908 | T34: -273489 | U34: -287545 | V34: -370583 | W34: -269535 | Y34: -134194 | Z34: -148387 | AA34: -174699 | AB34: -206729 | AC34: -175711 | AD34: -169398 | AE34: -160704 | AF34: -259008 | AG34: -182682 | AH34: =AH9-AG9 -> -199890 | AI34: -185603 | AJ34: -261342 | AK34: -227059 | AL34: -253966 | AM34: -317034 | AN34: -372865 | AO34: -1318
B35: Allowances for trade receivables | C35: -223 | D35: -239 | E35: -490 | F35: -2080 | G35: 816 | H35: -473 | I35: -556 | J35: 296 | K35: 385 | L35: -806 | M35: -475 | N35: -1061 | O35: -815 | P35: 262 | Q35: -530 | R35: -807 | S35: -1318 | T35: -2362 | U35: -1165 | V35: -3950 | W35: -1532 | Y35: -223 | Z35: -239 | AA35: -490 | AB35: -2080 | AC35: 816 | AD35: -473 | AE35: -556 | AF35: 296 | AG35: 385 | AH35: -806 | AI35: -475 | AJ35: -1061 | AK35: -815 | AL35: 262 | AM35: -530 | AN35: -807 | AO35: 98424
B36: Gross profit on sales | C36: 44067 | D36: 49036 | E36: 53109 | F36: 68539 | G36: 56090 | H36: 63553 | I36: 66536 | J36: 76339 | K36: 70859 | L36: 72279 | M36: 78663 | N36: 95197 | O36: 84586 | P36: 96690 | Q36: 101047 | R36: 110847 | S36: 98838 | T36: 99676 | U36: 109636 | V36: 114061 | W36: 95989 | Y36: 44399 | Z36: 49532 | AA36: 53613 | AB36: 66751 | AC36: 56090 | AD36: 63489 | AE36: 66218 | AF36: 75955 | AG36: 70469 | AH36: 72279 | AI36: 78242 | AJ36: 94185 | AK36: 83791 | AL36: 95729 | AM36: 101924 | AN36: 111235 | AO36: -24225
B37: Selling costs | C37: -11605 | D37: -12425 | E37: -13003 | F37: -16006 | G37: -13090 | H37: -13678 | I37: -13514 | J37: -15261 | K37: -16875 | L37: -14135 | M37: -15558 | N37: -22044 | O37: -19355 | P37: -23134 | Q37: -23325 | R37: -27225 | S37: -24225 | T37: -23362 | U37: -25561 | V37: -28160 | W37: -24082 | Y37: -11605 | Z37: -12425 | AA37: -13003 | AB37: -16006 | AC37: -13090 | AD37: -13678 | AE37: -13514 | AF37: -15261 | AG37: -16875 | AH37: -14135 | AI37: -15558 | AJ37: -22044 | AK37: -19355 | AL37: -23134 | AM37: -23325 | AN37: -27225 | AO37: -24533
B38: General and administrative expenses | C38: -11539 | D38: -14162 | E38: -11638 | F38: -16442 | G38: -14878 | H38: -14540 | I38: -15791 | J38: -16278 | K38: -15630 | L38: -16237 | M38: -16213 | N38: -19953 | O38: -18554 | P38: -21402 | Q38: -22796 | R38: -22003 | S38: -24533 | T38: -22704 | U38: -24246 | V38: -24511 | W38: -24449 | Y38: -11539 | Z38: -14162 | AA38: -11638 | AB38: -16442 | AC38: -14878 | AD38: -14540 | AE38: -15791 | AF38: -16278 | AG38: -15630 | AH38: -16237 | AI38: -16213 | AJ38: -19953 | AK38: -18554 | AL38: -21402 | AM38: -22796 | AN38: -22003 | AO38: 49666
B39: Net profit on sales | C39: 20923 | D39: 22448 | E39: 28468 | F39: 36091 | G39: 28122 | H39: 35335 | I39: 37231 | J39: 44800 | K39: 38354 | L39: 41907 | M39: 46892 | N39: 53200 | O39: 46677 | P39: 52154 | Q39: 54926 | R39: 61619 | S39: 50080 | T39: 53610 | U39: 59829 | V39: 61390 | W39: 47458 | Y39: 21255 | Z39: 22945 | AA39: 28972 | AB39: 34303 | AC39: 28122 | AD39: 35271 | AE39: 36913 | AF39: 44416 | AG39: 37964 | AH39: 41907 | AI39: 46471 | AJ39: 52188 | AK39: 45882 | AL39: 51193 | AM39: 55803 | AN39: 62007 | AO39: 722
B40: Other operating income | C40: 1418 | D40: -135 | E40: 1855 | F40: 1116 | G40: 450 | H40: 635 | I40: 501 | J40: 1387 | K40: 749 | L40: 525 | M40: 337 | N40: 1412 | O40: 375 | P40: 732 | Q40: 1184 | R40: 876 | S40: 722 | T40: 384 | U40: 728 | V40: 1838 | W40: 475 | Y40: 1418 | Z40: 696 | AA40: 1872 | AB40: 1116 | AC40: 450 | AD40: 635 | AE40: 501 | AF40: 1387 | AG40: 749 | AH40: 525 | AI40: 337 | AJ40: 1412 | AK40: 375 | AL40: 732 | AM40: 1184 | AN40: 876 | AO40: -582
B41: Other operating expenses | C41: -1067 | D41: -575 | E41: -429 | F41: -683 | G41: -194 | H41: -316 | I41: -438 | J41: -1866 | K41: -208 | L41: -195 | M41: -137 | N41: -995 | O41: -333 | P41: -345 | Q41: -219 | R41: -1683 | S41: -582 | T41: -87 | U41: -481 | V41: -1505 | W41: -489 | Y41: -1067 | Z41: -575 | AA41: -446 | AB41: -683 | AC41: -194 | AD41: -316 | AE41: -438 | AF41: -1866 | AG41: -208 | AH41: -195 | AI41: -137 | AJ41: -995 | AK41: -333 | AL41: -345 | AM41: -219 | AN41: -1683 | AO41: 0
B42: Share of profits of associates and joint ventures | C42: -55 | D42: -6 | E42: 0 | F42: 0 | G42: 0 | H42: 0 | I42: 0 | J42: 0 | K42: 0 | L42: 0 | M42: 0 | N42: 0 | O42: 0 | P42: 0 | Q42: 0 | R42: -19 | S42: 0 | T42: 18 | U42: 65 | V42: -1 | W42: 14 | Y42: -55 | Z42: -6 | AA42: 0 | AB42: 0 | AC42: 0 | AD42: 0 | AE42: 0 | AF42: 0 | AG42: 0 | AH42: 0 | AI42: 0 | AJ42: 0 | AK42: 0 | AL42: 0 | AM42: 0 | AN42: -19 | AO42: 49806
B43: Operating profit | C43: 21219 | D43: 22564 | E43: 29894 | F43: 36524 | G43: 28378 | H43: 35654 | I43: 37294 | J43: 44321 | K43: 38895 | L43: 42237 | M43: 47092 | N43: 53617 | O43: 46719 | P43: 52541 | Q43: 55891 | R43: 60793 | S43: 50220 | T43: 53925 | U43: 60141 | V43: 61722 | W43: 47458 | Y43: 21551 | Z43: 23060 | AA43: 30398 | AB43: 34736 | AC43: 28378 | AD43: 35590 | AE43: 36976 | AF43: 43937 | AG43: 38505 | AH43: 42237 | AI43: 46671 | AJ43: 52605 | AK43: 45924 | AL43: 51580 | AM43: 56768 | AN43: 61181 | AO43: 12169
B44: Financial income | C44: 2014 | D44: 3103 | E44: 940 | F44: 124 | G44: 4320 | H44: 401 | I44: 3569 | J44: 1091 | K44: 5243 | L44: 1862 | M44: 1886 | N44: 16172 | O44: 6269 | P44: 25856 | Q44: 12350 | R44: -299 | S44: 12169 | T44: 12276 | U44: 18338 | V44: 13924 | W44: 16826 | Y44: 2014 | Z44: 3036 | AA44: 860 | AB44: 124 | AC44: 4320 | AD44: 401 | AE44: 3569 | AF44: 1091 | AG44: 5243 | AH44: 1591 | AI44: 1558 | AJ44: 16172 | AK44: 6269 | AL44: 25856 | AM44: 12350 | AN44: -299 | AO44: -4570
B45: Financial expenses | C45: -1761 | D45: -1224 | E45: -1429 | F45: -1448 | G45: -4576 | H45: -2151 | I45: -3724 | J45: -2917 | K45: -3751 | L45: -2010 | M45: -1948 | N45: -4878 | O45: -2806 | P45: -3077 | Q45: -6605 | R45: -9422 | S45: -4570 | T45: -7175 | U45: -3010 | V45: -12534 | W45: -6492 | Y45: -1761 | Z45: -1134 | AA45: -1349 | AB45: -1538 | AC45: -4576 | AD45: -2151 | AE45: -3724 | AF45: -2917 | AG45: -3751 | AH45: -1739 | AI45: -1620 | AJ45: -4878 | AK45: -2806 | AL45: -3075 | AM45: -6586 | AN45: -9443 | AO45: -6
B46: Impairment losses on financial instruments | C46: 0 | D46: 0 | E46: 0 | F46: -90 | G46: 0 | H46: 0 | I46: 0 | J46: 0 | K46: 0 | L46: 0 | M46: 0 | N46: -325 | O46: 0 | P46: -10 | Q46: -3 | R46: 13 | S46: -6 | T46: -6 | U46: -6 | V46: 18 | W46: -5 | Y46: 0 | Z46: -90 | AA46: 0 | AB46: 0 | AC46: 0 | AD46: 0 | AE46: 0 | AF46: 0 | AG46: 0 | AH46: 0 | AI46: 0 | AJ46: -325 | AK46: 0 | AL46: -10 | AM46: -3 | AN46: 13 | AO46: 57399
B47: Pre-tax profit | C47: 21472 | D47: 24443 | E47: 29405 | F47: 35110 | G47: 28122 | H47: 33904 | I47: 37139 | J47: 42495 | K47: 40387 | L47: 42089 | M47: 47030 | N47: 64586 | O47: 50182 | P47: 75310 | Q47: 61633 | R47: 51085 | S47: 57813 | T47: 59020 | U47: 75463 | V47: 63130 | W47: 57787 | Y47: 21804 | Z47: 24939 | AA47: 29909 | AB47: 33322 | AC47: 28122 | AD47: 33840 | AE47: 36821 | AF47: 42111 | AG47: 39997 | AH47: 42089 | AI47: 46609 | AJ47: 63574 | AK47: 49387 | AL47: 74351 | AM47: 62529 | AN47: 51452 | AO47: -10573
B48: Corporate income tax (current and deferred tax expense) | C48: -3147 | D48: -6204 | E48: -4156 | F48: -5601 | G48: -4486 | H48: -6374 | I48: -5435 | J48: -7195 | K48: -7760 | L48: -7256 | M48: -8218 | N48: -15315 | O48: -9793 | P48: -8626 | Q48: -10507 | R48: -13298 | S48: -10612 | T48: -10056 | U48: -12295 | V48: -14135 | W48: -9201 | Y48: -3230 | Z48: -6328 | AA48: -4282 | AB48: -5184 | AC48: -4486 | AD48: -6363 | AE48: -5377 | AF48: -7126 | AG48: -7690 | AH48: -7256 | AI48: -8147 | AJ48: -15141 | AK48: -9670 | AL48: -8536 | AM48: -10569 | AN48: -13388 | AO48: 46826
B49: Net profit for the reporting period | C49: 18325 | D49: 18239 | E49: 25249 | F49: 29509 | G49: 23636 | H49: 27530 | I49: 31704 | J49: 35300 | K49: 32627 | L49: 34833 | M49: 38812 | N49: 49271 | O49: 40389 | P49: 66684 | Q49: 51126 | R49: 37787 | S49: 47201 | T49: 48964 | U49: 63168 | V49: 48995 | W49: 48586 | Y49: 18574 | Z49: 18611 | AA49: 25627 | AB49: 28138 | AC49: 23636 | AD49: 27477 | AE49: 31444 | AF49: 34985 | AG49: 32307 | AH49: 34833 | AI49: 38462 | AJ49: 48433 | AK49: 39717 | AL49: 65815 | AM49: 51960 | AN49: 38064 | AO49: 45138
B50: Shareholders of the Parent Company | C50: 18025 | D50: 17785 | E50: 25249 | F50: 28930 | G50: 23547 | H50: 26905 | I50: 31452 | J50: 34624 | K50: 31711 | L50: 33412 | M50: 37734 | N50: 47854 | O50: 39120 | P50: 65142 | Q50: 49102 | R50: 34894 | S50: 45513 | T50: 46969 | U50: 62077 | V50: 45803 | W50: 47010 | Y50: 18193 | Z50: 18037 | AA50: 25505 | AB50: 27912 | AC50: 23547 | AD50: 26865 | AE50: 31229 | AF50: 34347 | AG50: 31429 | AH50: 33413 | AI50: 37384 | AJ50: 47016 | AK50: 38448 | AL50: 64273 | AM50: 49936 | AN50: 35171 | AO50: 1688
B51: Non-controlling interests | C51: 300 | D51: 454 | E51: 0 | F51: 579 | G51: 89 | H51: 625 | I51: 252 | J51: 676 | K51: 916 | L51: 1421 | M51: 1078 | N51: 1417 | O51: 1269 | P51: 1542 | Q51: 2024 | R51: 2893 | S51: 1688 | T51: 1995 | U51: 1091 | V51: 3192 | W51: 1576 | Y51: 381 | Z51: 574 | AA51: 122 | AB51: 226 | AC51: 89 | AD51: 612 | AE51: 215 | AF51: 638 | AG51: 878 | AH51: 1420 | AI51: 1078 | AJ51: 1417 | AK51: 1269 | AL51: 1542 | AM51: 2024 | AN51: 2893

Sheet P&L check (hidden)
A1: report code | B1: (All) | F1: report code | G1: 2024_Q1
A2: amount_type | B2: cumulated | F2: amount_type | G2: cumulated
A3: type | B3: reported | F3: type | G3: reported
A4: Quarter | B4: Q1 | F4: Quarter | G4: Q1
A5: currency | B5: kEUR | F5: currency | G5: kEUR
A6: Position | B6: Sales revenues | F6: Position | G6: Sales revenues
A8: Sum of Value | B8: Year | F8: Sum of Value | G8: Year
A9: Country | B9: 2024 | C9: Grand Total | F9: Country | G9: 2024 | H9: Grand Total | J9: check
A10: Bosnia | B10: 5868 | C10: 5868 | F10: Bosnia | G10: 5868 | H10: 5868 | J10: =G10-B10 -> 0 | L10: =B10-G10 -> 0 | M10: =C10-H10 -> 0
A11: Central Europe | B11: 2394 | C11: 2394 | F11: Central Europe | G11: 2394 | H11: 2394 | J11: =G11-B11 -> 0 | L11: =B11-G11 -> 0 | M11: 0
A12: Croatia | B12: 12964 | C12: 12964 | F12: Croatia | G12: 12964 | H12: 12964 | J12: 0 | L12: 0 | M12: 0
A13: Eliminations | B13: -2023 | C13: -2023 | F13: Eliminations | G13: -2023 | H13: -2023 | J13: 0 | L13: 0 | M13: 0
A14: Latin America | B14: 1981 | C14: 1981 | F14: Latin America | G14: 1981 | H14: 1981 | J14: 0 | L14: 0 | M14: 0
A15: Macedonia | B15: 3336 | C15: 3336 | F15: Macedonia | G15: 3336 | H15: 3336 | J15: 0 | L15: 0 | M15: 0
A16: Other | B16: 5467 | C16: 5467 | F16: Other | G16: 5467 | H16: 5467 | J16: 0 | L16: 0 | M16: 0
A17: Romania | B17: 10069 | C17: 10069 | F17: Romania | G17: 10069 | H17: 10069 | J17: =G17-B17 -> 0 | L17: 0 | M17: 0
A18: Serbia | B18: 22743 | C18: 22743 | F18: Serbia | G18: 22743 | H18: 22743 | J18: 0 | L18: 0 | M18: 0
A19: Turkey | B19: 10212 | C19: 10212 | F19: Turkey | G19: 10212 | H19: 10212 | J19: 0 | L19: 0 | M19: 0
A20: Western Europe | B20: 11535 | C20: 11535 | F20: Western Europe | G20: 11535 | H20: 11535 | J20: 0 | L20: 0 | M20: 0
A21: Hiperinflation | B21: 399 | C21: 399 | F21: Hiperinflation | G21: 399 | H21: 399 | J21: 0 | L21: 0 | M21: 0
A22: Grand Total | B22: 84945 | C22: 84945 | F22: Grand Total | G22: 84945 | H22: 84945 | J22: 0 | L22: 0 | M22: 0
A24: check | B24: =B49-B36 -> -1 | C24: =C49-C36 -> 0 | D24: 0 | E24: 0 | F24: 0 | G24: 0 | H24: 0 | I24: 0 | J24: 0 | K24: 0 | L24: 0 | M24: 0 | N24: 0 | O24: 0 | P24: 0 | Q24: 0 | R24: 0 | S24: =S49-S36 -> 0 | T24: =T49-T36 -> 0 | U24: 0 | V24: 0 | W24: 0 | X24: 0 | Y24: 0 | Z24: 0
A26: report code | B26: (All)
A27: amount_type | B27: cumulated
A28: Position | B28: Sales revenues
A29: currency | B29: kPLN
A31: Sum of Value | B31: Year | C31: Quarter
B32: 2018 | F32: 2019 | J32: 2020 | N32: 2021 | R32: 2022 | V32: 2023 | Z32: 2024 | AA32: Grand Total
A33: type | B33: Q1 | C33: Q2 | D33: Q3 | E33: Q4 | F33: Q1 | G33: Q2 | H33: Q3 | I33: Q4 | J33: Q1 | K33: Q2 | L33: Q3 | M33: Q4 | N33: Q1 | O33: Q2 | P33: Q3 | Q33: Q4 | R33: Q1 | S33: Q2 | T33: Q3 | U33: Q4 | V33: Q1 | W33: Q2 | X33: Q3 | Y33: Q4 | Z33: Q1
A34: reported | F34: 178816 | G34: 376974 | H34: 605776 | I34: 881336 | J34: 230985 | K34: 464345 | L34: 691823 | M34: 1026490 | N34: 252766 | O34: 525741 | P34: 790061 | Q34: 1146649 | R34: 311175 | S34: 661098 | T34: 1080586 | U34: 1565493 | V34: 380064 | W34: 755591 | X34: 1153937 | Y34: 1642531 | Z34: 367056 | AA34: 15089293
A35: restated | B35: 138605 | C35: 297344 | D35: 448874 | E35: 670377 | F35: 178816 | G35: 376974 | H35: 605776 | I35: 881336 | J35: 230985 | K35: 464345 | L35: 691823 | M35: 1026490 | N35: 252766 | O35: 525741 | P35: 790061 | Q35: 1146649 | R35: 311665 | S35: 661098 | T35: 1080586 | U35: 1565493 | V35: 380064 | AA35: 12725868
A36: Grand Total | B36: 138605 | C36: 297344 | D36: 448874 | E36: 670377 | F36: 357632 | G36: 753948 | H36: 1211552 | I36: 1762672 | J36: 461970 | K36: 928690 | L36: 1383646 | M36: 2052980 | N36: 505532 | O36: 1051482 | P36: 1580122 | Q36: 2293298 | R36: 622840 | S36: 1322196 | T36: 2161172 | U36: 3130986 | V36: 760128 | W36: 755591 | X36: 1153937 | Y36: 1642531 | Z36: 367056 | AA36: 27815161
A39: report_code | B39: (All)
A40: amount_type | B40: cumulated
A41: Position | B41: Sales revenues:
A42: currency | B42: kPLN
A44: Sum of Value | B44: year | C44: quarter
B45: 2018 | F45: 2019 | J45: 2020 | N45: 2021 | R45: 2022 | V45: 2023 | Z45: 2024 | AA45: Grand Total
A46: type | B46: Q1 | C46: Q2 | D46: Q3 | E46: Q4 | F46: Q1 | G46: Q2 | H46: Q3 | I46: Q4 | J46: Q1 | K46: Q2 | L46: Q3 | M46: Q4 | N46: Q1 | O46: Q2 | P46: Q3 | Q46: Q4 | R46: Q1 | S46: Q2 | T46: Q3 | U46: Q4 | V46: Q1 | W46: Q2 | X46: Q3 | Y46: Q4 | Z46: Q1
A47: reported | F47: 178816 | G47: 376974 | H47: 605776 | I47: 881336 | J47: 230985 | K47: 464345 | L47: 691823 | M47: 1026490 | N47: 252766 | O47: 525741 | P47: 790061 | Q47: 1146649 | R47: 311175 | S47: 661098 | T47: 1080586 | U47: 1565493 | V47: 380064 | W47: 755591 | X47: 1153937 | Y47: 1642531 | Z47: 367056 | AA47: 15089293
A48: restated | B48: 138604 | C48: 297344 | D48: 448874 | E48: 670377 | F48: 178816 | G48: 376974 | H48: 605776 | I48: 881336 | J48: 230985 | K48: 464345 | L48: 691823 | M48: 1026490 | N48: 252766 | O48: 525741 | P48: 790061 | Q48: 1146649 | R48: 311665 | S48: 661098 | T48: 1080586 | U48: 1565493 | V48: 380064 | AA48: 12725867
A49: Grand Total | B49: 138604 | C49: 297344 | D49: 448874 | E49: 670377 | F49: 357632 | G49: 753948 | H49: 1211552 | I49: 1762672 | J49: 461970 | K49: 928690 | L49: 1383646 | M49: 2052980 | N49: 505532 | O49: 1051482 | P49: 1580122 | Q49: 2293298 | R49: 622840 | S49: 1322196 | T49: 2161172 | U49: 3130986 | V49: 760128 | W49: 755591 | X49: 1153937 | Y49: 1642531 | Z49: 367056 | AA49: 27815160
A51: check | B51: =B76-B63 -> 0 | C51: =C76-C63 -> 0.21554 | D51: -0.03534 | E51: 0 | F51: 4 | G51: 0 | H51: 0 | I51: 0 | J51: 0 | K51: 0 | L51: 0 | M51: 0 | N51: 0 | O51: =O76-O63 -> 1 | P51: =P76-P63 -> 0 | Q51: 0 | R51: 0 | S51: 0 | T51: =T76-T63 -> 0 | U51: =U76-U63 -> 0 | V51: 0 | W51: 0 | X51: 0 | Y51: 0 | Z51: =Z76-Z63 -> 0
A53: report code | B53: (All)
A54: amount_type | B54: cumulated
A55: Position | B55: Operating profit (loss)
A56: currency | B56: kPLN
A58: Sum of Value | B58: Year | C58: Quarter
B59: 2018 | F59: 2019 | J59: 2020 | N59: 2021 | R59: 2022 | V59: 2023 | Z59: 2024 | AA59: Grand Total
A60: type | B60: Q1 | C60: Q2 | D60: Q3 | E60: Q4 | F60: Q1 | G60: Q2 | H60: Q3 | I60: Q4 | J60: Q1 | K60: Q2 | L60: Q3 | M60: Q4 | N60: Q1 | O60: Q2 | P60: Q3 | Q60: Q4 | R60: Q1 | S60: Q2 | T60: Q3 | U60: Q4 | V60: Q1 | W60: Q2 | X60: Q3 | Y60: Q4 | Z60: Q1
A61: reported | F61: 21218 | G61: 43782 | H61: 73676 | I61: 110200 | J61: 28378 | K61: 64032 | L61: 101326 | M61: 145647 | N61: 38895 | O61: 80742 | P61: 127834 | Q61: 181451 | R61: 46719 | S61: 99260 | T61: 155151 | U61: 215944 | V61: 50220 | W61: 104145 | X61: 164286 | Y61: 226008 | Z61: 47458 | AA61: 2126372
A62: restated | B62: 13093 | C62: 30881 | D62: 49642 | E62: 74482 | F62: 21548 | G62: 44610 | H62: 75008 | I62: 109744 | J62: 28378 | K62: 63968 | L62: 100944 | M62: 144881 | N62: 38505 | O62: 80741 | P62: 127413 | Q62: 180018 | R62: 45924 | S62: 97504 | T62: 154272 | U62: 215453 | V62: 49806 | AA62: 1746815
A63: Grand Total | B63: 13093 | C63: 30881 | D63: 49642 | E63: 74482 | F63: 42766 | G63: 88392 | H63: 148684 | I63: 219944 | J63: 56756 | K63: 128000 | L63: 202270 | M63: 290528 | N63: 77400 | O63: 161483 | P63: 255247 | Q63: 361469 | R63: 92643 | S63: 196764 | T63: 309423 | U63: 431397 | V63: 100026 | W63: 104145 | X63: 164286 | Y63: 226008 | Z63: 47458 | AA63: 3873187
A66: report_code | B66: (All)
A67: amount_type | B67: cumulated
A68: Position | B68: Operating profit
A69: currency | B69: kPLN
A71: Sum of Value | B71: year | C71: quarter
B72: 2018 | F72: 2019 | J72: 2020 | N72: 2021 | R72: 2022 | V72: 2023 | Z72: 2024 | AA72: Grand Total
A73: type | B73: Q1 | C73: Q2 | D73: Q3 | E73: Q4 | F73: Q1 | G73: Q2 | H73: Q3 | I73: Q4 | J73: Q1 | K73: Q2 | L73: Q3 | M73: Q4 | N73: Q1 | O73: Q2 | P73: Q3 | Q73: Q4 | R73: Q1 | S73: Q2 | T73: Q3 | U73: Q4 | V73: Q1 | W73: Q2 | X73: Q3 | Y73: Q4 | Z73: Q1
A74: reported | F74: 21219 | G74: 43782 | H74: 73676 | I74: 110200 | J74: 28378 | K74: 64032 | L74: 101326 | M74: 145647 | N74: 38895 | O74: 80742 | P74: 127834 | Q74: 181451 | R74: 46719 | S74: 99260 | T74: 155151 | U74: 215944 | V74: 50220 | W74: 104145 | X74: 164286 | Y74: 226008 | Z74: 47458 | AA74: 2126373
A75: restated | B75: 13093 | C75: 30881.21554 | D75: 49641.96466 | E75: 74482 | F75: 21551 | G75: 44610 | H75: 75008 | I75: 109744 | J75: 28378 | K75: 63968 | L75: 100944 | M75: 144881 | N75: 38505 | O75: 80742 | P75: 127413 | Q75: 180018 | R75: 45924 | S75: 97504 | T75: 154272 | U75: 215453 | V75: 49806 | AA75: 1746819.18
A76: Grand Total | B76: 13093 | C76: 30881.21554 | D76: 49641.96466 | E76: 74482 | F76: 42770 | G76: 88392 | H76: 148684 | I76: 219944 | J76: 56756 | K76: 128000 | L76: 202270 | M76: 290528 | N76: 77400 | O76: 161484 | P76: 255247 | Q76: 361469 | R76: 92643 | S76: 196764 | T76: 309423 | U76: 431397 | V76: 100026 | W76: 104145 | X76: 164286 | Y76: 226008 | Z76: 47458 | AA76: 3873192.18

Sheet BS
C3: Reported data | Y3: Restated comparative
B4: Balance Sheet | C4: 2019 | D4: 2019 | E4: 2019 | F4: 2019 | G4: 2020 | H4: 2020 | I4: 2020 | J4: 2020 | K4: 2021 | L4: 2021 | M4: 2021 | N4: 2021 | O4: 2022 | P4: 2022 | Q4: 2022 | R4: 2022 | S4: 2023 | T4: 2023 | U4: 2023 | V4: 2023 | W4: 2024 | Y4: 2019 | Z4: 2020 | AA4: 2021 | AB4: 2021 | AC4: 2021 | AD4: 2022 | AE4: 2022 | AF4: 2022 | AG4: 2022 | AH4: 2023
C5: Q1 | D5: Q2 | E5: Q3 | F5: Q4 | G5: Q1 | H5: Q2 | I5: Q3 | J5: Q4 | K5: Q1 | L5: Q2 | M5: Q3 | N5: Q4 | O5: Q1 | P5: Q2 | Q5: Q3 | R5: Q4 | S5: Q1 | T5: Q2 | U5: Q3 | V5: Q4 | W5: Q1 | Y5: Q4 | Z5: Q4 | AA5: Q4 | AB5: Q3 | AC5: Q4 | AD5: Q1 | AE5: Q2 | AF5: Q3 | AG5: Q4 | AH5: Q1
B6: ASSETS | C6: k. PLN | D6: k. PLN | E6: k. PLN | F6: k. PLN | G6: k. PLN | H6: k. PLN | I6: k. PLN | J6: k. PLN | K6: k. PLN | L6: k. PLN | M6: k. PLN | N6: k. PLN | O6: k. PLN | P6: k. PLN | Q6: k. PLN | R6: k. PLN | S6: k. PLN | T6: k. PLN | U6: k. PLN | V6: k. PLN | W6: k. PLN | Y6: k. PLN | Z6: k. PLN | AA6: k. PLN | AB6: k. PLN | AC6: k. PLN | AD6: k. PLN | AE6: k. PLN | AF6: k. PLN | AG6: k. PLN | AH6: k. PLN
B8: Non-current assets | C8: 712133 | D8: 727838 | E8: 806721 | F8: 781483 | G8: 822574 | H8: 808580 | I8: 812510 | J8: 821082 | K8: 824193 | L8: 797928 | M8: 850949 | N8: 939053 | O8: 940595 | P8: 1037364 | Q8: 1070591 | R8: 1056434 | S8: 1062884 | T8: 996720 | U8: 1046851 | V8: 1165460 | W8: 1165574 | Y8: 783815 | Z8: 822495 | AA8: 940080 | AB8: 853485 | AC8: 944976 | AD8: 942939 | AE8: 1056634 | AF8: 1069452 | AG8: 1056717 | AH8: 1062752
B10: Property plant and equipment | C10: 137032 | D10: 141965 | E10: 156326 | F10: 147061 | G10: 151479 | H10: 146781 | I10: 145394 | J10: 143171 | K10: 140831 | L10: 132588 | M10: 133036 | N10: 129557 | O10: 127766 | P10: 133191 | Q10: 137475 | R10: 135969 | S10: 138883 | T10: 130895 | U10: 136011 | V10: 137030 | W10: 141295 | Y10: 147061 | Z10: 143173 | AA10: 129557 | AB10: 133036 | AC10: 129349 | AD10: 127556 | AE10: 135969 | AF10: 137475 | AG10: 135969 | AH10: 138883
B11: Intangible assets | C11: 19509 | D11: 18445 | E11: 18806 | F11: 14120 | G11: 24440 | H11: 22947 | I11: 20512 | J11: 22999 | K11: 24169 | L11: 29524 | M11: 31031 | N11: 35121 | O11: 41046 | P11: 48404 | Q11: 58281 | R11: 51807 | S11: 50199 | T11: 47207 | U11: 49685 | V11: 43450 | W11: 78675 | Y11: 23978 | Z11: 30101 | AA11: 43578 | AB11: 47969 | AC11: 68338 | AD11: 64761 | AE11: 54802 | AF11: 65600 | AG11: 59616 | AH11: 57545
B12: Right-of-use assets | C12: 46435 | D12: 60257 | E12: 69445 | F12: 65055 | G12: 66984 | H12: 65618 | I12: 62764 | J12: 55711 | K12: 52899 | L12: 52109 | M12: 50928 | N12: 51008 | O12: 49499 | P12: 46099 | Q12: 43735 | R12: 43131 | S12: 43189 | T12: 45743 | U12: 49416 | V12: 46309 | W12: 44846 | Y12: 65055 | Z12: 55711 | AA12: 51008 | AB12: 50928 | AC12: 51216 | AD12: 49709 | AE12: 43131 | AF12: 43735 | AG12: 43131 | AH12: 43189
B13: Investment property | C13: 626 | D13: 613 | E13: 622 | F13: 596 | G13: 630 | H13: 605 | I13: 606 | J13: 599 | K13: 607 | L13: 581 | M13: 586 | N13: 573 | O13: 571 | P13: 566 | Q13: 573 | R13: 550 | S13: 540 | T13: 504 | U13: 516 | V13: 474 | W13: 465 | Y13: 596 | Z13: 599 | AA13: 573 | AB13: 586 | AC13: 573 | AD13: 571 | AE13: 550 | AF13: 573 | AG13: 550 | AH13: 540
B14: Goodwill | C14: 494445 | D14: 492712 | E14: 547509 | F14: 539665 | G14: 563640 | H14: 556978 | I14: 566665 | J14: 575526 | K14: 590365 | L14: 567000 | M14: 618916 | N14: 709419 | O14: 707274 | P14: 791900 | Q14: 804259 | R14: 801626 | S14: 804996 | T14: 748531 | U14: 785610 | V14: 913187 | W14: 875391 | Y14: 532139 | Z14: 569835 | AA14: 701989 | AB14: 604514 | AC14: 680774 | AD14: 685843 | AE14: 798831 | AF14: 795804 | AG14: 794100 | AH14: 797518
B15: Investments accounted for using the equity method | C15: 57 | D15: 0 | E15: 0 | F15: 0 | G15: 0 | H15: 0 | I15: 0 | J15: 0 | K15: 0 | L15: 0 | M15: 0 | N15: 0 | O15: 0 | Q15: 0 | R15: 170 | S15: 169 | T15: 189 | U15: 262 | V15: 252 | W15: 196 | Y15: - | Z15: - | AA15: 0 | AB15: 0 | AC15: 0 | AD15: 0 | AE15: 170 | AF15: 0 | AG15: 170 | AH15: 169
B16: Other receivables | C16: 909 | D16: 899 | E16: 480 | F16: 724 | G16: 740 | H16: 774 | I16: 923 | J16: 821 | K16: 783 | L16: 774 | M16: 662 | N16: 634 | O16: 686 | P16: 627 | Q16: 9074 | R16: 7886 | S16: 7866 | T16: 7457 | U16: 8698 | V16: 7274 | W16: 7202 | Y16: 724 | Z16: 821 | AA16: 634 | AB16: 662 | AC16: 634 | AD16: 686 | AE16: 7886 | AF16: 9074 | AG16: 7886 | AH16: 7866
B17: Deferred tax assets | C17: 7226 | D17: 7669 | E17: 8095 | F17: 8978 | G17: 9221 | H17: 9830 | I17: 10666 | J17: 10948 | K17: 11145 | L17: 11180 | M17: 11947 | N17: 10638 | O17: 9613 | P17: 12698 | Q17: 13170 | R17: 11417 | S17: 12785 | T17: 13519 | U17: 13762 | V17: 12375 | W17: 12862 | Y17: 8978 | Z17: 10948 | AA17: 10638 | AB17: 11947 | AC17: 10747 | AD17: 9673 | AE17: 11417 | AF17: 13167 | AG17: 11417 | AH17: 12785
B18: Other financial assets | C18: 5135 | D18: 5120 | E18: 5272 | F18: 4670 | G18: 4885 | H18: 4800 | I18: 4840 | J18: 5165 | K18: 395 | L18: 392 | M18: 476 | N18: 47 | O18: 1306 | P18: 1315 | Q18: 1354 | R18: 2424 | S18: 2401 | T18: 1486 | U18: 1561 | V18: 2021 | W18: 2013 | Y18: 4670 | Z18: 5165 | AA18: 47 | AB18: 476 | AC18: 1289 | AD18: 1306 | AE18: 2424 | AF18: 1354 | AG18: 2424 | AH18: 2401
B19: Prepayments and accrued income | C19: 759 | D19: 158 | E19: 166 | F19: 614 | G19: 555 | H19: 247 | I19: 140 | J19: 6142 | K19: 2999 | L19: 3780 | M19: 3367 | N19: 2056 | O19: 2834 | P19: 2564 | Q19: 2670 | R19: 1454 | S19: 1856 | T19: 1189 | U19: 1330 | V19: 3088 | W19: 2629 | Y19: 614 | Z19: 6142 | AA19: 2056 | AB19: 3367 | AC19: 2056 | AD19: 2834 | AE19: 1454 | AF19: 2670 | AG19: 1454 | AH19: 1856
B21: Current assets | C21: 355964 | D21: 389627 | E21: 417139 | F21: 468284 | G21: 427062 | H21: 462308 | I21: 427383 | J21: 560008 | K21: 528527 | L21: 535791 | M21: 505337 | N21: 578805 | O21: 598636 | P21: 688444 | Q21: 714785 | R21: 812500 | S21: 800445 | T21: 766730 | U21: 819862 | V21: 950631 | W21: 796648 | Y21: 468284 | Z21: 560008 | AA21: 578805 | AB21: 505337 | AC21: 577563 | AD21: 598677 | AE21: 812500 | AF21: 715383 | AG21: 812500 | AH21: 800445
B23: Inventories | C23: 31079 | D23: 34953 | E23: 34675 | F23: 37215 | G23: 27075 | H23: 26911 | I23: 26518 | J23: 27912 | K23: 34641 | L23: 31908 | M23: 32931 | N23: 36576 | O23: 46287 | P23: 57667 | Q23: 74361 | R23: 57045 | S23: 74105 | T23: 70974 | U23: 112661 | V23: 97872 | W23: 76309 | Y23: 37215 | Z23: 27912 | AA23: 36576 | AB23: 32931 | AC23: 36576 | AD23: 46287 | AE23: 57045 | AF23: 74361 | AG23: 57045 | AH23: 74105
B24: Prepayments and accrued income | C24: 17593 | D24: 17662 | E24: 16436 | F24: 21746 | G24: 25897 | H24: 24930 | I24: 23156 | J24: 30991 | K24: 36967 | L24: 33427 | M24: 36594 | N24: 39348 | O24: 39458 | P24: 50534 | Q24: 43726 | R24: 48008 | S24: 54744 | T24: 44291 | U24: 49708 | V24: 53904 | W24: 54900 | Y24: 21746 | Z24: 30991 | AA24: 39348 | AB24: 36594 | AC24: 39348 | AD24: 39458 | AE24: 48008 | AF24: 43726 | AG24: 48008 | AH24: 54744
B25: Trade receivables | C25: 124599 | D25: 140734 | E25: 135389 | F25: 164530 | G25: 131739 | H25: 132189 | I25: 109108 | J25: 207672 | K25: 149781 | L25: 138465 | M25: 127338 | N25: 205631 | O25: 171755 | P25: 203943 | Q25: 203908 | R25: 290358 | S25: 207028 | T25: 201676 | U25: 222736 | V25: 299114 | W25: 180618 | Y25: 164530 | Z25: 207672 | AA25: 205631 | AB25: 127338 | AC25: 205631 | AD25: 171755 | AE25: 290358 | AF25: 203908 | AG25: 290358 | AH25: 207028
B26: Contract assets | C26: 27939 | D26: 34593 | E26: 45575 | F26: 28050 | G26: 51082 | H26: 59760 | I26: 67139 | J26: 29625 | K26: 39223 | L26: 52249 | M26: 58162 | N26: 44233 | O26: 70893 | P26: 82986 | Q26: 110003 | R26: 78739 | S26: 113102 | T26: 116940 | U26: 134001 | V26: 95104 | W26: 117386 | Y26: 28050 | Z26: 29625 | AA26: 44233 | AB26: 58162 | AC26: 44233 | AD26: 70934 | AE26: 78739 | AF26: 110601 | AG26: 78739 | AH26: 113102
B27: Corporate income tax receivable | C27: 5240 | D27: 4802 | E27: 2721 | F27: 1364 | G27: 2029 | H27: 1481 | I27: 1234 | J27: 2105 | K27: 1636 | L27: 1392 | M27: 1952 | N27: 2818 | O27: 1896 | P27: 3187 | Q27: 2476 | R27: 2433 | S27: 1365 | T27: 2129 | U27: 2336 | V27: 2693 | W27: 4088 | Y27: 1364 | Z27: 2105 | AA27: 2818 | AB27: 1952 | AC27: 2818 | AD27: 1896 | AE27: 2433 | AF27: 2476 | AG27: 2433 | AH27: 1365
B28: Receivables from the state and local budgets | C28: 3721 | D28: 3545 | E28: 3301 | F28: 2008 | G28: 2794 | H28: 2661 | I28: 3333 | J28: 5100 | K28: 5488 | L28: 3715 | M28: 4503 | N28: 3993 | O28: 4814 | P28: 4177 | Q28: 8221 | R28: 3806 | S28: 5358 | T28: 4739 | U28: 8288 | V28: 5044 | W28: 5080 | Y28: 2008 | Z28: 5100 | AA28: 3993 | AB28: 4503 | AC28: 3993 | AD28: 4814 | AE28: 3806 | AF28: 8221 | AG28: 3806 | AH28: 5358
B29: Other receivables | C29: 7039 | D29: 11226 | E29: 5320 | F29: 2889 | G29: 4034 | H29: 4198 | I29: 4215 | J29: 3970 | K29: 4311 | L29: 5619 | M29: 10845 | N29: 9766 | O29: 10819 | P29: 13067 | Q29: 20611 | R29: 23822 | S29: 26180 | T29: 22993 | U29: 31306 | V29: 79663 | W29: 89112 | Y29: 2889 | Z29: 3970 | AA29: 9766 | AB29: 10845 | AC29: 9766 | AD29: 10819 | AE29: 23822 | AF29: 20611 | AG29: 23822 | AH29: 26180
B30: Other non-financial assets | E30: 21072 | F30: 10247 | G30: 9460 | H30: 10823 | I30: 12405 | J30: 3557 | K30: 5634 | L30: 4832 | M30: 5748 | N30: 5302 | O30: 3842 | P30: 2793 | Q30: 6942 | R30: 9936 | S30: 12147 | T30: 6210 | U30: 5112 | V30: 2952 | W30: 8107 | Y30: 10247 | Z30: 3557 | AA30: 5302 | AB30: 5748 | AC30: 5302 | AD30: 3842 | AE30: 9936 | AF30: 6942 | AG30: 9936 | AH30: 12147
B31: Other financial assets | C31: 3677 | D31: 249 | E31: 2833 | F31: 572 | G31: 608 | H31: 41 | I31: 47 | J31: 48 | K31: 5183 | L31: 253 | M31: 249 | N31: 135 | O31: 203 | P31: 271 | Q31: 287 | R31: 319 | S31: 385 | T31: 1014 | U31: 823 | V31: 1173 | W31: 1399 | Y31: 572 | Z31: 48 | AA31: 135 | AB31: 249 | AC31: 135 | AD31: 203 | AE31: 319 | AF31: 287 | AG31: 319 | AH31: 385
B32: Cash and bank deposits | C32: 135077 | D32: 141863 | E32: 149817 | F32: 199663 | G32: 172344 | H32: 199314 | I32: 180228 | J32: 249028 | K32: 245663 | L32: 263931 | M32: 227015 | N32: 231003 | O32: 248669 | P32: 269819 | Q32: 244250 | R32: 298034 | S32: 306031 | T32: 295764 | U32: 252891 | V32: 313112 | W32: 259649 | Y32: 199663 | Z32: 249028 | AA32: 231003 | AB32: 227015 | AC32: 229761 | AD32: 248669 | AE32: 298034 | AF32: 244250 | AG32: 298034 | AH32: 306031
B34: TOTAL ASSETS | C34: 1068097 | D34: 1117466 | E34: 1223860 | F34: 1249767 | G34: 1249636 | H34: 1270888 | I34: 1239893 | J34: 1381090 | K34: 1352720 | L34: 1333719 | M34: 1356286 | N34: 1517858 | O34: 1539231 | P34: 1725808 | Q34: 1785376 | R34: 1868934 | S34: 1863329 | T34: 1763450 | U34: 1866713 | V34: 2116091 | W34: 1962222 | Y34: 1252099 | Z34: 1382503 | AA34: 1518885 | AB34: 1358822 | AC34: 1522539 | AD34: 1541616 | AE34: 1869134 | AF34: 1784835 | AG34: 1869217 | AH34: 1863197
B36: EQUITY AND LIABILITIES
B38: Equity (attributable to shareholders of the Parent Company) | C38: 767104 | D38: 755163 | E38: 804606 | F38: 798152 | G38: 866731 | H38: 831617 | I38: 864710 | J38: 910612 | K38: 950895 | L38: 911036 | M38: 970828 | N38: 967532 | O38: 1011994 | P38: 1032952 | Q38: 1108005 | R38: 1110602 | S38: 1150084 | T38: 1044068 | U38: 1141468 | V38: 1115786 | W38: 1145679 | Y38: 798661 | Z38: 910746 | AA38: 967037 | AB38: 970473 | AC38: 966319 | AD38: 1010591 | AE38: 1110323 | AF38: 1107134 | AG38: 1110165 | AH38: 1149275
B39: Share capital | C39: 518942 | D39: 518942 | E39: 518942 | F39: 518942 | G39: 518942 | H39: 518942 | I39: 518942 | J39: 518942 | K39: 518942 | L39: 518942 | M39: 518942 | N39: 518943 | O39: 518943 | P39: 518943 | Q39: 518943 | R39: 518943 | S39: 518943 | T39: 518943 | U39: 518943 | V39: 518943 | W39: 518943 | Y39: 518942 | Z39: 518943 | AA39: 518943 | AB39: 518943 | AC39: 518943 | AD39: 518943 | AE39: 518943 | AF39: 518943 | AG39: 518943 | AH39: 518943
B40: Share premium | C40: 38825 | D40: 38825 | E40: 38825 | F40: 38825 | G40: 38825 | H40: 38825 | I40: 38825 | J40: 38825 | K40: 38825 | L40: 38825 | M40: 38825 | N40: 38826 | O40: 38826 | P40: 38826 | Q40: 38826 | R40: 38826 | S40: 38826 | T40: 38826 | U40: 38826 | V40: 38826 | W40: 38826 | Y40: 38825 | Z40: 38826 | AA40: 38826 | AB40: 38826 | AC40: 38826 | AD40: 38826 | AE40: 38826 | AF40: 38826 | AG40: 38826 | AH40: 38826
B41: Transactions with non-controlling interests | D41: -3921 | E41: -4410 | F41: -9186 | G41: -9506 | H41: -11897 | I41: -12095 | J41: -12290 | K41: -11949 | L41: -3922 | M41: -3070 | N41: -19887 | O41: -18642 | P41: -34476 | Q41: -38053 | R41: -35692 | S41: -34315 | T41: -34957 | U41: -35841 | V41: -34877 | W41: -35226 | Y41: -8335 | Z41: -11624 | AA41: -19887 | AB41: -3070 | AC41: -19887 | AD41: -18642 | AE41: -35692 | AF41: -38053 | AG41: -35692 | AH41: -34315
B42: Other capitals | C42: 3826 | D42: 933 | E42: 893 | F42: -1319 | G42: -1017 | H42: -586 | I42: -586 | J42: -584 | K42: -584 | L42: -581 | M42: -577 | N42: -500 | O42: -442 | P42: -349 | Q42: -237 | R42: -77 | S42: 83 | T42: 313 | U42: 490 | V42: 717 | W42: 954 | Y42: -1319 | Z42: -584 | AA42: -500 | AB42: -577 | AC42: -500 | AD42: -442 | AE42: -77 | AF42: -237 | AG42: -77 | AH42: 83
B43: Foreign exchange differences on translation of foreign operations | C43: -108029 | D43: -115913 | E43: -91190 | F43: -119586 | G43: -74194 | H43: -95851 | I43: -94012 | J43: -82541 | K43: -74310 | L43: -102896 | M43: -81693 | N43: -116104 | O43: -111573 | P43: -73022 | Q43: -43606 | R43: -78297 | S43: -85865 | T43: -162392 | U43: -126212 | V43: -198888 | W43: -215495 | Y43: -119586 | Z43: -82533 | AA43: -116107 | AB43: -81698 | AC43: -116129 | AD43: -111608 | AE43: -78296 | AF43: -43642 | AG43: -78304 | AH43: -85869
B44: Retained earnings | C44: 313540 | D44: 316297 | E44: 341546 | F44: 370476 | G44: 393681 | H44: 382184 | I44: 413636 | J44: 448260 | K44: 479971 | L44: 460668 | M44: 498401 | N44: 546254 | O44: 584882 | P44: 583030 | Q44: 632132 | R44: 666899 | S44: 712412 | T44: 683335 | U44: 745262 | V44: 791065 | W44: 837677 | Y44: 370134 | Z44: 447718 | AA44: 545762 | AB44: 498049 | AC44: 545066 | AD44: 583514 | AE44: 666619 | AF44: 631297 | AG44: 666469 | AH44: 711607
B45: Non-controlling interests | C45: 1980 | D45: 1742 | E45: 1960 | F45: 2051 | G45: 1927 | H45: 1909 | I45: 2139 | J45: 2460 | K45: 3550 | L45: 3494 | M45: 3774 | N45: 4157 | O45: 3791 | P45: 3697 | Q45: 8097 | R45: 8515 | S45: 8384 | T45: 7966 | U45: 7654 | V45: 7810 | W45: 7950 | Y45: 2051 | Z45: 2460 | AA45: 4157 | AB45: 3774 | AC45: 4157 | AD45: 3791 | AE45: 8515 | AF45: 8097 | AG45: 8515 | AH45: 8384
B46: Total equity | C46: 769084 | D46: 756905 | E46: 806566 | F46: 800203 | G46: 868658 | H46: 833526 | I46: 866849 | J46: 913072 | K46: 954445 | L46: 914530 | M46: 974602 | N46: 971689 | O46: 1015785 | P46: 1036649 | Q46: 1116102 | R46: 1119117 | S46: 1158468 | T46: 1052034 | U46: 1149122 | V46: 1123596 | W46: 1153629 | Y46: 800712 | Z46: 913206 | AA46: 971194 | AB46: 974247 | AC46: 970476 | AD46: 1014382 | AE46: 1118838 | AF46: 1115231 | AG46: 1118680 | AH46: 1157659
B48: Non-current liabilities | C48: 94949 | D48: 110317 | E48: 139677 | F48: 123956 | G48: 129094 | H48: 124398 | I48: 118574 | J48: 113337 | K48: 84588 | L48: 79443 | M48: 91382 | N48: 141906 | O48: 150400 | P48: 173411 | Q48: 171931 | R48: 184801 | S48: 177520 | T48: 153332 | U48: 168913 | V48: 276952 | W48: 274904 | Y48: 125779 | Z48: 114615 | AA48: 143428 | AB48: 94273 | AC48: 146713 | AD48: 153545 | AE48: 185280 | AF48: 173182 | AG48: 185521 | AH48: 178197
B49: Bank loans and borrowings | C49: 27707 | D49: 39077 | E49: 50586 | F49: 43255 | G49: 44202 | H49: 39342 | I49: 34187 | J49: 29139 | K49: 24777 | L49: 21424 | M49: 24859 | N49: 39614 | O49: 48311 | P49: 51147 | Q49: 48111 | R49: 48635 | S49: 41102 | T49: 32772 | U49: 43288 | V49: 54124 | W49: 42965 | Y49: 43255 | Z49: 29139 | AA49: 39614 | AB49: 24859 | AC49: 39614 | AD49: 48311 | AE49: 48635 | AF49: 48111 | AG49: 48635 | AH49: 41102
B50: Lease liabilities | F50: 47489 | G50: 47813 | H50: 45965 | I50: 43435 | J50: 39847 | K50: 37605 | L50: 36255 | M50: 34702 | N50: 33312 | O50: 31939 | P50: 28963 | Q50: 25939 | R50: 25700 | S50: 26656 | T50: 29164 | U50: 32472 | V50: 29867 | W50: 29795 | Y50: 47489 | Z50: 39847 | AA50: 33312 | AB50: 34702 | AC50: 33312 | AD50: 31939 | AE50: 25700 | AF50: 25939 | AG50: 25700 | AH50: 26656
B51: Other financial liabilities | C51: 61448 | D51: 64848 | E51: 83460 | F51: 28557 | G51: 30025 | H51: 32161 | I51: 34585 | J51: 25885 | K51: 4772 | L51: 2930 | M51: 15264 | N51: 54682 | O51: 55928 | P51: 73842 | Q51: 77655 | R51: 91566 | S51: 91990 | T51: 75582 | U51: 79415 | V51: 174055 | W51: 176809 | Y51: 28557 | Z51: 25885 | AA51: 54682 | AB51: 15264 | AC51: 54682 | AD51: 55928 | AE51: 91566 | AF51: 77655 | AG51: 91566 | AH51: 91990
B52: Deferred tax liabilities | C52: 3757 | D52: 3505 | E52: 2548 | F52: 1344 | G52: 3010 | H52: 3048 | I52: 2977 | J52: 2905 | K52: 2887 | L52: 4009 | M52: 3636 | N52: 3623 | O52: 4962 | P52: 7294 | Q52: 7814 | R52: 6485 | S52: 6488 | T52: 5956 | U52: 5951 | V52: 4263 | W52: 8895 | Y52: 3167 | Z52: 4183 | AA52: 5145 | AB52: 6527 | AC52: 8430 | AD52: 8107 | AE52: 6964 | AF52: 9065 | AG52: 7205 | AH52: 7165
B53: Provisions | C53: 1751 | D53: 1747 | E53: 2012 | F53: 2013 | G53: 2018 | H53: 1936 | I53: 1856 | J53: 2072 | K53: 2206 | L53: 2108 | M53: 2317 | N53: 2311 | O53: 2328 | P53: 2841 | Q53: 2976 | R53: 3886 | S53: 3554 | T53: 3211 | U53: 3465 | V53: 3906 | W53: 3858 | Y53: 2013 | Z53: 2072 | AA53: 2311 | AB53: 2317 | AC53: 2311 | AD53: 2328 | AE53: 3886 | AF53: 2976 | AG53: 3886 | AH53: 3554
B54: Accruals | W54: 1550 | AH54: 0
B55: Contract liabilities | C55: 193 | D55: 278 | E55: 437 | F55: 804 | G55: 1559 | H55: 1224 | I55: 994 | J55: 9402 | K55: 6171 | L55: 8046 | M55: 7085 | N55: 6118 | O55: 5407 | P55: 8202 | Q55: 8863 | R55: 8455 | S55: 7668 | T55: 6588 | U55: 4272 | V55: 10690 | W55: 10985 | Y55: 804 | Z55: 9402 | AA55: 6118 | AB55: 7085 | AC55: 6118 | AD55: 5407 | AE55: 8455 | AF55: 8863 | AG55: 8455 | AH55: 7668
B56: Other liabilities | C56: 93 | D56: 862 | E56: 634 | F56: 494 | G56: 467 | H56: 722 | I56: 540 | J56: 4087 | K56: 6170 | L56: 4671 | M56: 3519 | N56: 2246 | O56: 1525 | P56: 1122 | Q56: 573 | R56: 74 | S56: 62 | T56: 59 | U56: 50 | V56: 47 | W56: 47 | Y56: 494 | Z56: 4087 | AA56: 2246 | AB56: 3519 | AC56: 2246 | AD56: 1525 | AE56: 74 | AF56: 573 | AG56: 74 | AH56: 62
B58: Current liabilities | C58: 204064 | D58: 250244 | E58: 277617 | F58: 325608 | G58: 251884 | H58: 312964 | I58: 254470 | J58: 354681 | K58: 313687 | L58: 339746 | M58: 290302 | N58: 404263 | O58: 373046 | P58: 515748 | Q58: 497343 | R58: 565016 | S58: 527341 | T58: 558084 | U58: 548678 | V58: 715543 | W58: 533689 | Y58: 325608 | Z58: 354682 | AA58: 404263 | AB58: 290302 | AC58: 405350 | AD58: 373689 | AE58: 565016 | AF58: 496422 | AG58: 565016 | AH58: 527341
B59: Bank loans and borrowings | C59: 26530 | D59: 31507 | E59: 51902 | F59: 49742 | G59: 44178 | H59: 39441 | I59: 34591 | J59: 30145 | K59: 27972 | L59: 21128 | M59: 22490 | N59: 46155 | O59: 43767 | P59: 64085 | Q59: 58196 | R59: 66455 | S59: 63946 | T59: 62177 | U59: 52508 | V59: 51610 | W59: 47054 | Y59: 49742 | Z59: 30145 | AA59: 46155 | AB59: 22490 | AC59: 46206 | AD59: 43767 | AE59: 66455 | AF59: 58196 | AG59: 66455 | AH59: 63946
B60: Lease liabilities | F60: 18923 | G60: 20672 | H60: 21243 | I60: 21054 | J60: 18995 | K60: 17946 | L60: 19235 | M60: 19351 | N60: 20822 | O60: 20640 | P60: 19784 | Q60: 19659 | R60: 19418 | S60: 18501 | T60: 17976 | U60: 18355 | V60: 17833 | W60: 16417 | Y60: 18923 | Z60: 18995 | AA60: 20822 | AB60: 19351 | AC60: 20822 | AD60: 20640 | AE60: 19418 | AF60: 19659 | AG60: 19418 | AH60: 18501
B61: Other financial liabilities | C61: 13627 | D61: 46745 | E61: 45877 | F61: 13879 | G61: 8311 | H61: 51065 | I61: 13696 | J61: 21190 | K61: 43916 | L61: 85538 | M61: 17775 | N61: 43815 | O61: 42492 | P61: 131996 | Q61: 57442 | R61: 62071 | S61: 60839 | T61: 142190 | U61: 62236 | V61: 58928 | W61: 45857 | Y61: 13879 | Z61: 21190 | AA61: 43815 | AB61: 17775 | AC61: 43764 | AD61: 42492 | AE61: 62071 | AF61: 54753 | AG61: 62071 | AH61: 60839
B62: Trade payables | C62: 74094 | D62: 78666 | E62: 81234 | F62: 109977 | G62: 60742 | H62: 68926 | I62: 48567 | J62: 111830 | K62: 76850 | L62: 73968 | M62: 70299 | N62: 89907 | O62: 81142 | P62: 103955 | Q62: 130388 | R62: 123980 | S62: 123497 | T62: 104551 | U62: 152613 | V62: 214561 | W62: 98133 | Y62: 109977 | Z62: 111830 | AA62: 89907 | AB62: 70299 | AC62: 89907 | AD62: 81142 | AE62: 123980 | AF62: 130388 | AG62: 123980 | AH62: 123497
B63: Contract liabilities | C63: 45742 | D63: 44130 | E63: 43664 | F63: 58707 | G63: 62069 | H63: 61177 | I63: 59884 | J63: 74087 | K63: 70223 | L63: 57761 | M63: 64199 | N63: 93247 | O63: 95417 | P63: 101438 | Q63: 119202 | R63: 148360 | S63: 143014 | T63: 119229 | U63: 130176 | V63: 158114 | W63: 137838 | Y63: 58707 | Z63: 74087 | AA63: 93247 | AB63: 63370 | AC63: 92703 | AD63: 94423 | AE63: 148360 | AF63: 121006 | AG63: 148360 | AH63: 143014
B64: Corporate income tax payable | C64: 4509 | D64: 3683 | E64: 3551 | F64: 5738 | G64: 5137 | H64: 7599 | I64: 6626 | J64: 7986 | K64: 8787 | L64: 5174 | M64: 6852 | N64: 11005 | O64: 9557 | P64: 7485 | Q64: 8359 | R64: 9081 | S64: 12521 | T64: 9217 | U64: 10696 | V64: 15275 | W64: 17422 | Y64: 5738 | Z64: 7986 | AA64: 11005 | AB64: 6852 | AC64: 11005 | AD64: 9557 | AE64: 9081 | AF64: 8359 | AG64: 9081 | AH64: 12521
B65: Liabilities to the state and local budgets | C65: 14760 | D65: 14040 | E65: 13943 | F65: 24231 | G65: 18506 | H65: 22767 | I65: 22240 | J65: 35062 | K65: 23234 | L65: 22022 | M65: 21823 | N65: 36783 | O65: 24123 | P65: 22050 | Q65: 22326 | R65: 46357 | S65: 24120 | T65: 23872 | U65: 26185 | V65: 50849 | W65: 28230 | Y65: 24231 | Z65: 35062 | AA65: 36783 | AB65: 21823 | AC65: 36783 | AD65: 24123 | AE65: 46357 | AF65: 22326 | AG65: 46357 | AH65: 24120
B66: Other liabilities | C66: 8435 | D66: 8621 | E66: 9041 | F66: 19247 | G66: 9477 | H66: 10934 | I66: 11474 | J66: 27184 | K66: 16436 | L66: 17144 | M66: 20574 | N66: 33329 | O66: 24950 | P66: 22793 | Q66: 27961 | R66: 48894 | S66: 35268 | T66: 31491 | U66: 39114 | V66: 102856 | W66: 100228 | Y66: 19247 | Z66: 27184 | AA66: 33329 | AB66: 20574 | AC66: 33329 | AD66: 24950 | AE66: 48894 | AF66: 27923 | AG66: 48894 | AH66: 35268
B67: Provisions | C67: 2823 | D67: 2853 | E67: 3184 | F67: 2847 | G67: 3481 | H67: 3840 | I67: 4382 | J67: 3451 | K67: 3483 | L67: 3565 | M67: 3798 | N67: 4053 | O67: 5043 | P67: 4271 | Q67: 4924 | R67: 5289 | S67: 4263 | T67: 5474 | U67: 6078 | V67: 6688 | W67: 5344 | Y67: 2847 | Z67: 3451 | AA67: 4053 | AB67: 3798 | AC67: 4053 | AD67: 5043 | AE67: 5289 | AF67: 4926 | AG67: 5289 | AH67: 4263
B68: Accruals | C68: 13544 | D68: 19999 | E68: 25221 | F68: 22317 | G68: 19311 | H68: 25972 | I68: 31956 | J68: 24751 | K68: 24840 | L68: 34211 | M68: 43141 | N68: 25147 | O68: 25915 | P68: 37891 | Q68: 48886 | R68: 35111 | S68: 41372 | T68: 41907 | U68: 50717 | V68: 38829 | W68: 37166 | Y68: 22317 | Z68: 24752 | AA68: 25147 | AB68: 43970 | AC68: 26778 | AD68: 27552 | AE68: 35111 | AF68: 48886 | AG68: 35111 | AH68: 41372
B70: TOTAL LIABILITIES | C70: 299013 | D70: 360561 | E70: 417294 | F70: 449564 | G70: 380978 | H70: 437362 | I70: 373044 | J70: 468018 | K70: 398275 | L70: 419189 | M70: 381684 | N70: 546169 | O70: 523446 | P70: 689159 | Q70: 669274 | R70: 749817 | S70: 704861 | T70: 711416 | U70: 717591 | V70: 992495 | W70: 808593 | Y70: 451387 | Z70: 469297 | AA70: 547691 | AB70: 384575 | AC70: 552063 | AD70: 527234 | AE70: 750296 | AF70: 669604 | AG70: 750537 | AH70: 705538
B72: TOTAL EQUITY AND LIABILITIES | C72: 1068097 | D72: 1117466 | E72: 1223860 | F72: 1249767 | G72: 1249636 | H72: 1270888 | I72: 1239893 | J72: 1381090 | K72: 1352720 | L72: 1333719 | M72: 1356286 | N72: 1517858 | O72: 1539231 | P72: 1725808 | Q72: 1785376 | R72: 1868934 | S72: 1863329 | T72: 1763450 | U72: 1866713 | V72: 2116091 | W72: 1962222 | Y72: 1252099 | Z72: 1382503 | AA72: 1518885 | AB72: 1358822 | AC72: 1522539 | AD72: 1541616 | AE72: 1869134 | AF72: 1784835 | AG72: 1869217 | AH72: 1863197

Sheet CF
C3: Reported data | Y3: Restated comparative
B4: Profit & Loss Statement | C4: 2019 | D4: 2019 | E4: 2019 | F4: 2019 | G4: 2020 | H4: 2020 | I4: 2020 | J4: 2020 | K4: 2021 | L4: 2021 | M4: 2021 | N4: 2021 | O4: 2022 | P4: 2022 | Q4: 2022 | R4: 2022 | S4: 2023 | T4: 2023 | U4: 2023 | V4: 2023 | W4: 2024 | Y4: 2019 | Z4: 2019 | AA4: 2019 | AB4: 2019 | AC4: 2020 | AD4: 2020 | AE4: 2020 | AF4: 2020 | AG4: 2021 | AH4: 2021 | AI4: 2021 | AJ4: 2021 | AK4: 2022 | AL4: 2022 | AM4: 2022 | AN4: 2022 | AO4: 2023
C5: Q1 | D5: Q2 | E5: Q3 | F5: Q4 | G5: Q1 | H5: Q2 | I5: Q3 | J5: Q4 | K5: Q1 | L5: Q2 | M5: Q3 | N5: Q4 | O5: Q1 | P5: Q2 | Q5: Q3 | R5: Q4 | S5: Q1 | T5: Q2 | U5: Q3 | V5: Q4 | W5: Q1 | Y5: Q1 | Z5: Q2 | AA5: Q3 | AB5: Q4 | AC5: Q1 | AD5: Q2 | AE5: Q3 | AF5: Q4 | AG5: Q1 | AH5: Q2 | AI5: Q3 | AJ5: Q4 | AK5: Q1 | AL5: Q2 | AM5: Q3 | AN5: Q4 | AO5: Q1
C6: k. PLN | D6: k. PLN | E6: k. PLN | F6: k. PLN | G6: k. PLN | H6: k. PLN | I6: k. PLN | J6: k. PLN | K6: k. PLN | L6: k. PLN | M6: k. PLN | N6: k. PLN | O6: k. PLN | P6: k. PLN | Q6: k. PLN | R6: k. PLN | S6: k. PLN | T6: k. PLN | U6: k. PLN | V6: k. PLN | W6: k. PLN | Y6: k. PLN | Z6: k. PLN | AA6: k. PLN | AB6: k. PLN | AC6: k. PLN | AD6: k. PLN | AE6: k. PLN | AF6: k. PLN | AG6: k. PLN | AH6: k. PLN | AI6: k. PLN | AJ6: k. PLN | AK6: k. PLN | AL6: k. PLN | AM6: k. PLN | AN6: k. PLN | AO6: k. PLN
B9: Cash flows – operating activities
B10: Pre-tax profit | C10: 21472 | D10: 45915 | E10: 75320 | F10: 110430 | G10: 28122 | H10: 62026 | I10: 99165 | J10: 141660 | K10: 40387 | L10: 82086 | M10: 129116 | N10: 193702 | O10: 50182 | P10: 125492 | Q10: 187125 | R10: 238210 | S10: 57813 | T10: 116833 | U10: 192296 | V10: 255426 | W10: =IFERROR(_xlfn.XLOOKUP(B10,[1]CF!$E:$E,[1]CF!$C:$C),"") -> 57787 | Y10: 21804 | Z10: 46743 | AA10: 76652 | AB10: 109974 | AC10: 28122 | AD10: 61962 | AE10: 98783 | AF10: 140894 | AG10: 39997 | AH10: =L10 -> 82086 | AI10: 128695 | AJ10: 192269 | AK10: 49387 | AL10: 123738 | AM10: 186267 | AN10: 237719 | AO10: =IFERROR(_xlfn.XLOOKUP(B10,[1]CF!$E:$E,[1]CF!$D:$D),"") -> 57399
B11: Total adjustments: | C11: -10803 | D11: -15215 | E11: -6994 | F11: 65381 | G11: -24903 | H11: 3441 | I11: 26744 | J11: 87115 | K11: -5580 | L11: 14327 | M11: 38510 | N11: 76316 | O11: -8361 | P11: -34626 | Q11: 2308 | R11: 48024 | S11: -7035 | T11: -11315 | U11: -19777 | V11: 102176 | W11: =IFERROR(_xlfn.XLOOKUP(B11,[1]CF!$E:$E,[1]CF!$C:$C),"") -> -53042 | Y11: -11134 | Z11: -16043 | AA11: -8322 | AB11: 65837 | AC11: -24903 | AD11: 3505 | AE11: 27126 | AF11: 87881 | AG11: -5190 | AH11: =L11 -> 14327 | AI11: 38931 | AJ11: 77749 | AK11: -7566 | AL11: -32870 | AM11: 3187 | AN11: 48515 | AO11: =IFERROR(_xlfn.XLOOKUP(B11,[1]CF!$E:$E,[1]CF!$D:$D),"") -> -6621
B12: Depreciation and amortization | C12: 14782 | D12: 30876 | E12: 48624 | F12: 65687 | G12: 19121 | H12: 38675 | I12: 58224 | J12: 77284 | K12: 18608 | L12: 37903 | M12: 57414 | N12: 77109 | O12: 20954 | P12: 43725 | Q12: 68621 | R12: 92876 | S12: 22539 | T12: 43838 | U12: 67188 | V12: 88441 | W12: =IFERROR(_xlfn.XLOOKUP(B12,[1]CF!$E:$E,[1]CF!$C:$C),"") -> 23595 | Y12: 14450 | Z12: 30048 | AA12: 47292 | AB12: 66143 | AC12: 19121 | AD12: 38739 | AE12: 58606 | AF12: 78050 | AG12: 18998 | AH12: 37903 | AI12: 57835 | AJ12: 78542 | AK12: 22239 | AL12: 45481 | AM12: 69500 | AN12: 93367 | AO12: =IFERROR(_xlfn.XLOOKUP(B12,[1]CF!$E:$E,[1]CF!$D:$D),"") -> 22953
B13: Change in inventories | C13: 1168 | D13: -2933 | E13: -2467 | F13: -7519 | G13: 12117 | H13: 11026 | I13: 11439 | J13: 13558 | K13: -7992 | L13: -7290 | M13: -9985 | N13: -4530 | O13: -9793 | P13: -23025 | Q13: -38238 | R13: -39198 | S13: -22008 | T13: -51947 | U13: -67936 | V13: 32163 | W13: =IFERROR(_xlfn.XLOOKUP(B13,[1]CF!$E:$E,[1]CF!$C:$C),"") -> -69556 | Y13: 1168 | Z13: -2933 | AA13: -2467 | AB13: -7519 | AC13: 12117 | AD13: 11026 | AE13: 11439 | AF13: 13558 | AG13: -7992 | AH13: -7290 | AI13: -9985 | AJ13: -4469 | AK13: -30139 | AL13: -60480 | AM13: -44370 | AN13: -39198 | AO13: =IFERROR(_xlfn.XLOOKUP(B13,[1]CF!$E:$E,[1]CF!$D:$D),"") -> -22008
B14: Change in receivables and other non-financial assets | C14: 11495 | D14: -14309 | E14: -19082 | F14: -21589 | G14: 20049 | H14: 3369 | I14: 16929 | J14: -37239 | K14: 48598 | L14: 42205 | M14: 49831 | N14: 11952 | O14: 21590 | P14: -32866 | Q14: -64386 | W14: =IFERROR(_xlfn.XLOOKUP(B14,[1]CF!$E:$E,[1]CF!$C:$C),"") ->  | Y14: 11495 | Z14: -14309 | AA14: -19082 | AB14: -21589 | AC14: 20049 | AD14: 3369 | AE14: 16929 | AF14: -37239 | AG14: 48598 | AH14: 42205 | AI14: 49831 | AO14: =IFERROR(_xlfn.XLOOKUP(B14,[1]CF!$E:$E,[1]CF!$D:$D),"") -> 
B15: Change in liabilities accruals and provisions | C15: -38649 | D15: -31178 | E15: -39160 | F15: 21064 | G15: -79300 | H15: -54672 | I15: -69975 | J15: 18139 | K15: -66135 | L15: -61144 | M15: -61233 | N15: -11891 | O15: -41446 | P15: -4589 | Q15: 58254 | W15: =IFERROR(_xlfn.XLOOKUP(B15,[1]CF!$E:$E,[1]CF!$C:$C),"") ->  | Y15: -38649 | Z15: -31178 | AA15: -39160 | AB15: 21064 | AC15: -79300 | AD15: -54672 | AE15: -69975 | AF15: 18139 | AG15: -66135 | AH15: -61144 | AI15: -61233 | AO15: =IFERROR(_xlfn.XLOOKUP(B15,[1]CF!$E:$E,[1]CF!$D:$D),"") -> 
B16: Interest income/expenses | C16: 156 | D16: 1275 | E16: 2201 | F16: 3316 | G16: 1064 | H16: 2036 | I16: 2867 | J16: 3635 | K16: 686 | L16: 1492 | M16: 2176 | N16: 2878 | O16: 1339 | P16: 1845 | Q16: 3056 | R16: 3906 | S16: 1168 | T16: 2644 | U16: 3450 | V16: 5296 | W16: =IFERROR(_xlfn.XLOOKUP(B16,[1]CF!$E:$E,[1]CF!$C:$C),"") -> 1322 | Y16: 156 | Z16: 1275 | AA16: 2201 | AB16: 3316 | AC16: 1064 | AD16: 2036 | AE16: 2867 | AF16: 3635 | AG16: 686 | AH16: 1492 | AI16: 2176 | AJ16: 2878 | AK16: 1339 | AL16: 1845 | AM16: 3056 | AN16: 3906 | AO16: =IFERROR(_xlfn.XLOOKUP(B16,[1]CF!$E:$E,[1]CF!$D:$D),"") -> 1168
B17: Gain/loss on foreign currency translation differences | C17: -703 | D17: -1086 | E17: -195 | F17: -122 | G17: 823 | H17: 922 | I17: 1321 | J17: 1497 | K17: -931 | L17: -558 | M17: -1055 | N17: -410 | O17: -1204 | P17: -812 | Q17: -2022 | R17: 388 | S17: 282 | T17: -322 | U17: -194 | V17: 409 | W17: =IFERROR(_xlfn.XLOOKUP(B17,[1]CF!$E:$E,[1]CF!$C:$C),"") -> -803 | Y17: -703 | Z17: -1086 | AA17: -195 | AB17: -122 | AC17: 823 | AD17: 922 | AE17: 1321 | AF17: 1497 | AG17: -931 | AH17: -558 | AI17: -1055 | AJ17: -410 | AK17: -1204 | AL17: -812 | AM17: -2022 | AN17: 388 | AO17: =IFERROR(_xlfn.XLOOKUP(B17,[1]CF!$E:$E,[1]CF!$D:$D),"") -> 282
B18: Gain/loss on investing activities | C18: -70 | D18: 583 | E18: 1274 | P18: 122 | Q18: 3029 | R18: 3035 | S18: 0 | T18: 0 | U18: 0 | V18: 0 | W18: =IFERROR(_xlfn.XLOOKUP(B18,[1]CF!$E:$E,[1]CF!$C:$C),"") -> 0 | AH18: 0 | AI18: 0 | AJ18: 0 | AM18: 3029 | AN18: 3035 | AO18: =IFERROR(_xlfn.XLOOKUP(B18,[1]CF!$E:$E,[1]CF!$D:$D),"") -> 0
B19: Gain/loss on financial assets (valuation disposal etc.) | F19: -33 | G19: 408 | H19: -394 | I19: 470 | Q19: 457 | R19: 15 | S19: -24 | T19: -20 | U19: -440 | V19: -905 | W19: =IFERROR(_xlfn.XLOOKUP(B19,[1]CF!$E:$E,[1]CF!$C:$C),"") -> -63 | AA19: 44 | AD19: -394 | AE19: 470 | AH19: 0 | AI19: 0 | AJ19: 1513 | AL19: 122 | AM19: 457 | AN19: 15 | AO19: =IFERROR(_xlfn.XLOOKUP(B19,[1]CF!$E:$E,[1]CF!$D:$D),"") -> -24
B20: Other financial income/expenses | F20: -623 | G20: -187 | H20: 751 | I20: 2474 | J20: 3105 | K20: 1736 | L20: 2218 | M20: 1824 | N20: 1513 | O20: 139 | P20: 2115 | Q20: 2648 | R20: 7617 | S20: 821 | T20: -475 | U20: 134 | V20: -4322 | W20: =IFERROR(_xlfn.XLOOKUP(B20,[1]CF!$E:$E,[1]CF!$C:$C),"") -> 2647 | AA20: -1415 | AB20: -656 | AC20: 221 | AD20: 751 | AE20: 2474 | AF20: 3105 | AG20: 1736 | AH20: 2218 | AI20: 1824 | AJ20: 0 | AK20: 139 | AL20: 2115 | AM20: 2648 | AN20: 7617 | AO20: =IFERROR(_xlfn.XLOOKUP(B20,[1]CF!$E:$E,[1]CF!$D:$D),"") -> 821
B21: Gain/loss on sale disposal and impairment of property plant and equipment and intangible assets | F21: 3035 | G21: 692 | H21: 991 | I21: 2157 | J21: 6069 | K21: -150 | L21: -535 | M21: -579 | N21: -403 | O21: -2 | P21: 621 | Q21: -156 | R21: 5255 | S21: -49 | T21: -111 | U21: 504 | V21: 1452 | W21: =IFERROR(_xlfn.XLOOKUP(B21,[1]CF!$E:$E,[1]CF!$C:$C),"") -> 78 | Y21: -70 | Z21: 583 | AA21: 2621 | AB21: 3035 | AC21: 692 | AD21: 991 | AE21: 2157 | AF21: 6069 | AG21: -150 | AH21: -535 | AI21: -579 | AJ21: -403 | AK21: -2 | AL21: 621 | AM21: -156 | AN21: 5255 | AO21: =IFERROR(_xlfn.XLOOKUP(B21,[1]CF!$E:$E,[1]CF!$D:$D),"") -> -49
B22: Costs of share-based payment transactions with employees | C22: 673 | D22: 1497 | E22: 1778 | F22: 2094 | G22: 316 | H22: 740 | I22: 740 | J22: 740 | N22: 80 | O22: 62 | P22: 144 | Q22: 256 | R22: 418 | S22: 158 | T22: 318 | U22: 480 | V22: 642 | W22: =IFERROR(_xlfn.XLOOKUP(B22,[1]CF!$E:$E,[1]CF!$C:$C),"") -> 160 | Y22: 673 | Z22: 1497 | AA22: 1778 | AB22: 2094 | AC22: 316 | AD22: 740 | AE22: 740 | AF22: 740 | AH22: 0 | AI22: 0 | AJ22: 80 | AK22: 62 | AL22: 144 | AM22: 256 | AN22: 418 | AO22: =IFERROR(_xlfn.XLOOKUP(B22,[1]CF!$E:$E,[1]CF!$D:$D),"") -> 158
B23: Other adjustments to pre-tax profit | C23: 345 | D23: 60 | E23: 33 | F23: 71 | G23: -6 | H23: -3 | I23: 98 | J23: 327 | L23: 36 | M23: 117 | N23: 18 | P23: -21906 | Q23: 12 | R23: -26293 | S23: -33 | T23: -18 | U23: -130 | V23: -93 | W23: =IFERROR(_xlfn.XLOOKUP(B23,[1]CF!$E:$E,[1]CF!$C:$C),"") -> -13 | Y23: 346 | Z23: 60 | AA23: 61 | AB23: 71 | AC23: -6 | AD23: -3 | AE23: 98 | AF23: 327 | AH23: 36 | AI23: 117 | AJ23: 0 | AK23: 0 | AM23: 12 | AN23: 5 | AO23: =IFERROR(_xlfn.XLOOKUP(B23,[1]CF!$E:$E,[1]CF!$D:$D),"") -> -33
B24: Hiperinflation | Q24: -29223 | R24: 5 | S24: -9889 | T24: -5222 | U24: -22833 | V24: -20907 | W24: =IFERROR(_xlfn.XLOOKUP(B24,[1]CF!$E:$E,[1]CF!$C:$C),"") -> -10409 | AJ24: 18 | AK24: 0 | AL24: -21906 | AM24: -29223 | AN24: -26293 | AO24: =IFERROR(_xlfn.XLOOKUP(B24,[1]CF!$E:$E,[1]CF!$D:$D),"") -> -9889
AH25: 0
B26: Net cash generated from operating activities / Cash provided by (used in) operating activities | C26: 10670 | D26: 30700 | E26: 68326 | F26: 175811 | G26: 3219 | H26: 65467 | I26: 125909 | J26: 228775 | K26: 34807 | L26: 96413 | M26: 167626 | N26: 270018 | O26: 41821 | P26: 90866 | Q26: 189433 | R26: 286234 | S26: 50778 | T26: 105518 | U26: 172519 | V26: 357602 | W26: =IFERROR(_xlfn.XLOOKUP(B26,[1]CF!$E:$E,[1]CF!$C:$C),"") -> 4745 | Y26: 10670 | Z26: 30700 | AA26: 68330 | AB26: 175811 | AC26: 3219 | AD26: 65467 | AE26: 125909 | AF26: 228775 | AG26: 34807 | AH26: 96413 | AI26: 167626 | AJ26: 270018 | AK26: 41821 | AL26: 90868 | AM26: 189454 | AN26: 286234 | AO26: =IFERROR(_xlfn.XLOOKUP(B26,[1]CF!$E:$E,[1]CF!$D:$D),"") -> 50778
B27: Corporate income tax paid | C27: -5137 | D27: -11337 | E27: -14239 | F27: -16998 | G27: -5653 | H27: -9963 | I27: -17110 | J27: -24153 | K27: -6551 | L27: -17392 | M27: -25074 | N27: -35175 | O27: -9453 | P27: -22750 | Q27: -32700 | R27: -45658 | S27: -7163 | T27: -23115 | U27: -35620 | V27: -47993 | W27: =IFERROR(_xlfn.XLOOKUP(B27,[1]CF!$E:$E,[1]CF!$C:$C),"") -> -9171 | Y27: -5137 | Z27: -11337 | AA27: -14239 | AB27: -16998 | AC27: -5653 | AD27: -9963 | AE27: -17110 | AF27: -24153 | AG27: -6551 | AH27: -17392 | AI27: -25074 | AJ27: -35175 | AK27: -9453 | AL27: -22750 | AM27: -32700 | AN27: -45658 | AO27: =IFERROR(_xlfn.XLOOKUP(B27,[1]CF!$E:$E,[1]CF!$D:$D),"") -> -7163
B28: Net cash provided by (used in) operating activities | C28: 5532 | D28: 19363 | E28: 54087 | F28: 158813 | G28: -2434 | H28: 55504 | I28: 108799 | J28: 204622 | K28: 28256 | L28: 79021 | M28: 142552 | N28: 234843 | O28: 32368 | P28: 68116 | Q28: 156733 | R28: 240576 | S28: 43615 | T28: 82403 | U28: 136899 | V28: 309609 | W28: =IFERROR(_xlfn.XLOOKUP(B28,[1]CF!$E:$E,[1]CF!$C:$C),"") -> -4426 | Y28: 5533 | Z28: 19363 | AA28: 54091 | AB28: 158813 | AC28: -2434 | AD28: 55504 | AE28: 108799 | AF28: 204622 | AG28: 28256 | AH28: 79021 | AI28: 142552 | AJ28: 234843 | AK28: 32368 | AL28: 68118 | AM28: 156754 | AN28: 240576 | AO28: =IFERROR(_xlfn.XLOOKUP(B28,[1]CF!$E:$E,[1]CF!$D:$D),"") -> 43615
AH29: 0
B30: Cash flows – investing activities | AH30: 0
B31: Inflows | W31: =IFERROR(_xlfn.XLOOKUP(B31,[1]CF!$E:$E,[1]CF!$C:$C),"") ->  | AH31: 0
B32: Disposal of property plant and equipment and intangible assets | C32: 244 | D32: 740 | E32: 1026 | F32: 1401 | G32: 191 | H32: 191 | I32: 1494 | J32: 1718 | K32: 409 | L32: 1021 | M32: 1206 | N32: 3054 | O32: 134 | P32: 537 | Q32: 999 | R32: 1328 | S32: 161 | T32: 575 | U32: 746 | V32: 1014 | W32: =IFERROR(_xlfn.XLOOKUP(B32,[1]CF!$E:$E,[1]CF!$C:$C),"") -> 199 | Y32: 244 | Z32: 740 | AA32: 1026 | AB32: 1401 | AC32: 191 | AD32: 191 | AE32: 1494 | AF32: 1718 | AG32: 409 | AH32: 1021 | AI32: 1206 | AJ32: 3054 | AK32: 134 | AL32: 537 | AM32: 999 | AN32: 1328 | AO32: =IFERROR(_xlfn.XLOOKUP(B32,[1]CF!$E:$E,[1]CF!$D:$D),"") -> 161
B33: Disposal/settlement of shares for the acquisition of subsidiaries and associates less cash and cash equivalents in subsidiaries acquired | Q33: 1211 | R33: 3423 | U33: 0 | V33: 721 | W33: =IFERROR(_xlfn.XLOOKUP(B33,[1]CF!$E:$E,[1]CF!$C:$C),"") -> 158 | AI33: 0 | AJ33: 0 | AM33: 1211 | AN33: 3423 | AO33: =IFERROR(_xlfn.XLOOKUP(B33,[1]CF!$E:$E,[1]CF!$D:$D),"") -> 0
B34: Disposal/settlement of financial assets carried at fair value through profit or loss/other comprehensive income | C34: 64 | D34: 143 | E34: 144 | F34: 140 | H34: 468 | I34: 4 | J34: 8 | M34: 37 | N34: 83 | P34: 3 | Q34: 3 | R34: 3 | U34: 0 | V34: 236 | W34: =IFERROR(_xlfn.XLOOKUP(B34,[1]CF!$E:$E,[1]CF!$C:$C),"") -> 10 | Y34: 64 | Z34: 143 | AA34: 144 | AB34: 140 | AD34: 468 | AE34: 4 | AF34: 8 | AH34: 0 | AI34: 37 | AJ34: 83 | AL34: 3 | AM34: 3 | AN34: 3 | AO34: =IFERROR(_xlfn.XLOOKUP(B34,[1]CF!$E:$E,[1]CF!$D:$D),"") -> 0
B35: Disposal of investments in other debt securities carried at amortized cost (cash deposits) | D35: 3491 | E35: 3507 | F35: 3500 | H35: 539 | I35: 540 | J35: 543 | L35: 4807 | M35: 4821 | N35: 4837 | O35: 0 | Q35: 7 | R35: 0 | T35: 53 | U35: 61 | V35: 0 | W35: =IFERROR(_xlfn.XLOOKUP(B35,[1]CF!$E:$E,[1]CF!$C:$C),"") -> 111 | Y35: -4549 | Z35: 3491 | AA35: 3507 | AB35: 3500 | AD35: 539 | AE35: 540 | AF35: 543 | AH35: 4807 | AI35: 4821 | AJ35: 4837 | AM35: 7 | AN35: 0 | AO35: =IFERROR(_xlfn.XLOOKUP(B35,[1]CF!$E:$E,[1]CF!$D:$D),"") -> 0
B36: Loans collected | D36: 8 | E36: 33 | F36: 225 | G36: 16 | H36: 17 | I36: 17 | J36: 17 | M36: 3 | N36: 251 | O36: 18 | P36: 32 | Q36: 49 | R36: 251 | S36: 76 | T36: 182 | U36: 269 | V36: 511 | W36: =IFERROR(_xlfn.XLOOKUP(B36,[1]CF!$E:$E,[1]CF!$C:$C),"") -> 53 | Z36: 8 | AA36: 33 | AB36: 225 | AC36: 16 | AD36: 17 | AE36: 17 | AF36: 17 | AH36: 0 | AI36: 3 | AJ36: 251 | AK36: 18 | AL36: 32 | AM36: 49 | AN36: 251 | AO36: =IFERROR(_xlfn.XLOOKUP(B36,[1]CF!$E:$E,[1]CF!$D:$D),"") -> 76
B37: Interest received | C37: 98 | E37: 1 | F37: 41 | G37: 15 | J37: 2 | K37: 3 | L37: 3 | M37: 19 | N37: 15 | O37: 1 | P37: 8 | Q37: 2 | R37: 12 | S37: 0 | T37: 1 | U37: 1 | V37: 444 | W37: =IFERROR(_xlfn.XLOOKUP(B37,[1]CF!$E:$E,[1]CF!$C:$C),"") -> 73 | Y37: 98 | AB37: 41 | AC37: 15 | AF37: 2 | AG37: 3 | AH37: 3 | AI37: 19 | AJ37: 15 | AK37: 1 | AL37: 8 | AM37: 2 | AN37: 12 | AO37: =IFERROR(_xlfn.XLOOKUP(B37,[1]CF!$E:$E,[1]CF!$D:$D),"") -> 0
B38: Dividends received | F38: 1 | I38: 1 | J38: 1 | R38: 2 | S38: 1 | T38: 1 | U38: 0 | V38: 0 | W38: =IFERROR(_xlfn.XLOOKUP(B38,[1]CF!$E:$E,[1]CF!$C:$C),"") -> 69 | AA38: 1 | AB38: 1 | AE38: 1 | AF38: 1 | AH38: 0 | AI38: 0 | AK38: 0 | AL38: 0 | AM38: 0 | AN38: 2 | AO38: =IFERROR(_xlfn.XLOOKUP(B38,[1]CF!$E:$E,[1]CF!$D:$D),"") -> 1
B39: Other | E39: 3 | W39: =IFERROR(_xlfn.XLOOKUP(B39,[1]CF!$E:$E,[1]CF!$C:$C),"") ->  | AH39: 0 | AO39: =IFERROR(_xlfn.XLOOKUP(B39,[1]CF!$E:$E,[1]CF!$D:$D),"") -> 
B40: Outlows | W40: =IFERROR(_xlfn.XLOOKUP(B40,[1]CF!$E:$E,[1]CF!$C:$C),"") ->  | AH40: 0 | AO40: =IFERROR(_xlfn.XLOOKUP(B40,[1]CF!$E:$E,[1]CF!$D:$D),"") -> 
B41: Acquisition of property plant and equipment intangible assets (including R&D expenditures) and investment property | C41: -15877 | D41: -33960 | E41: -45675 | F41: -55616 | G41: -8228 | H41: -18232 | I41: -26885 | J41: -35563 | K41: -8332 | L41: -18545 | M41: -27146 | N41: -40008 | O41: -11786 | P41: -26741 | Q41: -42463 | R41: -59151 | S41: -15536 | T41: -26373 | U41: -38389 | V41: -61812 | W41: =IFERROR(_xlfn.XLOOKUP(B41,[1]CF!$E:$E,[1]CF!$C:$C),"") -> -10961 | Y41: -15876 | Z41: -33960 | AA41: -45675 | AB41: -55616 | AC41: -8228 | AD41: -18232 | AE41: -26885 | AF41: -35563 | AG41: -8332 | AH41: -18545 | AI41: -27146 | AJ41: -40008 | AK41: -11786 | AL41: -26741 | AM41: -42463 | AN41: -59151 | AO41: =IFERROR(_xlfn.XLOOKUP(B41,[1]CF!$E:$E,[1]CF!$D:$D),"") -> -15536
B42: Expenditures for the acquisition of subsidiaries and associates less cash and cash equivalents in subsidiaries acquired | C42: -8478 | D42: -10915 | E42: -18010 | F42: -45388 | G42: -5135 | H42: -8845 | I42: -15251 | J42: -18690 | K42: -10514 | L42: -12766 | M42: -56080 | N42: -142737 | O42: -1839 | P42: -14326 | Q42: -31456 | R42: -40900 | S42: -914 | T42: -2732 | U42: -9485 | V42: -60062 | W42: =IFERROR(_xlfn.XLOOKUP(B42,[1]CF!$E:$E,[1]CF!$C:$C),"") -> -2944 | Y42: -8479 | Z42: -10915 | AA42: -18010 | AB42: -45388 | AC42: -5135 | AD42: -8845 | AE42: -15251 | AF42: -18690 | AG42: -10514 | AH42: -12766 | AI42: -56080 | AJ42: -143979 | AK42: -1839 | AL42: -14326 | AM42: -31456 | AN42: -40900 | AO42: =IFERROR(_xlfn.XLOOKUP(B42,[1]CF!$E:$E,[1]CF!$D:$D),"") -> -914
B43: Acquisition/settlement of financial assets carried at fair value through profit or loss | C43: -53 | F43: -46 | G43: -360 | I43: -365 | J43: -365 | L43: -2 | N43: 0 | O43: -24 | P43: -115 | Q43: -447 | R43: -43 | S43: 0 | T43: -164 | U43: -38 | V43: -41 | W43: =IFERROR(_xlfn.XLOOKUP(B43,[1]CF!$E:$E,[1]CF!$C:$C),"") -> 0 | Y43: -53 | AB43: -46 | AC43: -360 | AE43: -365 | AF43: -365 | AH43: -2 | AI43: 0 | AK43: -24 | AL43: -115 | AM43: -447 | AN43: -43 | AO43: =IFERROR(_xlfn.XLOOKUP(B43,[1]CF!$E:$E,[1]CF!$D:$D),"") -> 0
B44: Acquisition/settlement of financial assets carried at fair value through OCI | R44: -1169 | V44: -525 | W44: =IFERROR(_xlfn.XLOOKUP(B44,[1]CF!$E:$E,[1]CF!$C:$C),"") -> -128 | AN44: -1169 | AO44: =IFERROR(_xlfn.XLOOKUP(B44,[1]CF!$E:$E,[1]CF!$D:$D),"") -> 0
B45: Acquisition/settlement of financial assets carried at amortized cost | V45: -116 | W45: =IFERROR(_xlfn.XLOOKUP(B45,[1]CF!$E:$E,[1]CF!$C:$C),"") ->  | AO45: =IFERROR(_xlfn.XLOOKUP(B45,[1]CF!$E:$E,[1]CF!$D:$D),"") -> 
B46: Loans granted | C46: -12 | D46: -167 | E46: -2762 | F46: -2827 | G46: -12 | H46: -1 | I46: -5 | J46: -38 | K46: -211 | L46: -201 | M46: -194 | N46: -294 | O46: -13 | P46: -159 | Q46: -189 | R46: -205 | S46: -160 | T46: -185 | U46: -139 | V46: -327 | W46: =IFERROR(_xlfn.XLOOKUP(B46,[1]CF!$E:$E,[1]CF!$C:$C),"") -> -273 | Y46: -12 | Z46: -167 | AA46: -2762 | AB46: -2827 | AC46: -12 | AD46: -1 | AE46: 0 | AF46: -38 | AG46: -211 | AH46: -201 | AI46: 0 | AJ46: -294 | AK46: -13 | AL46: -159 | AM46: -189 | AN46: -205 | AO46: =IFERROR(_xlfn.XLOOKUP(B46,[1]CF!$E:$E,[1]CF!$D:$D),"") -> -160
B47: Acquisition of investments in other debt securities carried at amortized cost (cash deposits) | C47: -4549 | D47: -4538 | E47: -4560 | F47: -4549 | O47: -1239 | U47: 0 | V47: 0 | W47: =IFERROR(_xlfn.XLOOKUP(B47,[1]CF!$E:$E,[1]CF!$C:$C),"") -> 0 | Z47: -4538 | AA47: -4560 | AB47: -4549 | AE47: -5 | AH47: 0 | AI47: -194 | AM47: 0 | AN47: 0 | AO47: =IFERROR(_xlfn.XLOOKUP(B47,[1]CF!$E:$E,[1]CF!$D:$D),"") -> 0
B48: Other | M48: -8 | N48: -14 | R48: 0 | W48: =IFERROR(_xlfn.XLOOKUP(B48,[1]CF!$E:$E,[1]CF!$C:$C),"") ->  | AH48: 0 | AI48: -8 | AJ48: -14 | AO48: =IFERROR(_xlfn.XLOOKUP(B48,[1]CF!$E:$E,[1]CF!$D:$D),"") -> 
AH49: 0
B50: Net cash provided by (used in) investing activities | C50: -28562 | D50: -45198 | E50: -66293 | F50: -103118 | G50: -13513 | H50: -25863 | I50: -40450 | J50: -52367 | K50: -18645 | L50: -25683 | M50: -77342 | N50: -174813 | O50: -14748 | P50: -40761 | Q50: -72284 | R50: -96449 | S50: -16372 | T50: -28642 | U50: -46974 | V50: -119957 | W50: =IFERROR(_xlfn.XLOOKUP(B50,[1]CF!$E:$E,[1]CF!$C:$C),"") -> -13633 | Y50: -28563 | Z50: -45198 | AA50: -66296 | AB50: -103118 | AC50: -13513 | AD50: -25863 | AE50: -40450 | AF50: -52367 | AG50: -18645 | AH50: -25683 | AI50: -77342 | AJ50: -176055 | AK50: -13509 | AL50: -40761 | AM50: -72284 | AN50: -96449 | AO50: =IFERROR(_xlfn.XLOOKUP(B50,[1]CF!$E:$E,[1]CF!$D:$D),"") -> -16372
AH51: 0
B52: Cash flows – financing activities | AH52: 0
B53: Inflows | AH53: 0
B54: Proceeds from non-controlling shareholders due to issuance of shares in subsidiaries | F54: 1119 | O54: 4 | P54: 4 | Q54: 4 | R54: 4 | S54: 0 | U54: 0 | V54: 0 | W54: =IFERROR(_xlfn.XLOOKUP(B54,[1]CF!$E$43:$E$58,[1]CF!$C$42:$C$58),"") ->  | AB54: 1119 | AH54: 0 | AI54: 0 | AK54: 4 | AL54: 4 | AM54: 4 | AN54: 4 | AO54: =IFERROR(_xlfn.XLOOKUP(B54,[1]CF!$E$44:$E$58,[1]CF!$D$44:$D$58),"") -> 0
B55: Proceeds from bank loans and borrowings | C55: 7111 | D55: 27411 | E55: 50186 | F55: 54477 | G55: 804 | H55: 8925 | I55: 8938 | J55: 9939 | K55: 418 | L55: 1813 | M55: 13284 | N55: 31673 | O55: 13790 | P55: 35029 | Q55: 40099 | R55: 55057 | S55: 4795 | T55: 1370 | U55: 1275 | V55: 32216 | W55: =IFERROR(_xlfn.XLOOKUP(B55,[1]CF!$E$43:$E$58,[1]CF!$C$42:$C$58),"") ->  | Y55: 7290 | Z55: 27411 | AA55: 50186 | AB55: 54477 | AC55: 804 | AD55: 8925 | AE55: 8938 | AF55: 9939 | AG55: 418 | AH55: 1813 | AI55: 13284 | AJ55: 31673 | AK55: 13790 | AL55: 35029 | AM55: 40099 | AN55: 55057 | AO55: =IFERROR(_xlfn.XLOOKUP(B55,[1]CF!$E$44:$E$58,[1]CF!$D$44:$D$58),"") -> 4795
B56: Acquisition of property plant and equipment intangible assets (including R&D expenditures) and investment property | P56: 391 | Q56: 654 | R56: 909 | S56: 233 | T56: 477 | U56: 566 | V56: 903 | W56: =IFERROR(_xlfn.XLOOKUP(B56,[1]CF!$E$43:$E$58,[1]CF!$C$42:$C$58),"") ->  | AH56: 0 | AI56: 0 | AK56: 0 | AL56: 391 | AM56: 654 | AN56: 909 | AO56: =IFERROR(_xlfn.XLOOKUP(B56,[1]CF!$E$44:$E$58,[1]CF!$D$44:$D$58),"") -> 233
B57: Outlows | AH57: 0
B58: Repayments of bank loans and borrowings | C58: -10272 | D58: -16984 | E58: -23965 | F58: -32606 | G58: -9620 | H58: -24325 | I58: -34497 | J58: -42822 | K58: -7968 | L58: -17999 | M58: -26281 | N58: -32887 | O58: -6411 | P58: -12902 | Q58: -27589 | R58: -34869 | S58: -8413 | T58: -15600 | U58: -21311 | V58: -30043 | W58: =IFERROR(_xlfn.XLOOKUP(B58,[1]CF!$E$44:$E$58,[1]CF!$C$44:$C$58),"") -> -14992 | Y58: -10451 | Z58: -16984 | AA58: -23965 | AB58: -32606 | AC58: -9620 | AD58: -24325 | AE58: -34497 | AF58: -42822 | AG58: -7968 | AH58: -17999 | AI58: -26281 | AJ58: -32887 | AK58: -6411 | AL58: -12902 | AM58: -27589 | AN58: -34869 | AO58: =IFERROR(_xlfn.XLOOKUP(B58,[1]CF!$E$44:$E$58,[1]CF!$D$44:$D$58),"") -> -8413
B59: Payments of lease liabilities | C59: -2898 | D59: -7352 | E59: -12173 | F59: -17230 | G59: -5317 | H59: -10923 | I59: -16595 | J59: -23656 | K59: -4775 | L59: -9862 | M59: -14838 | N59: -20039 | O59: -5401 | P59: -11057 | Q59: -16519 | R59: -21886 | S59: -5683 | T59: -11226 | U59: -16844 | V59: -22009 | W59: =IFERROR(_xlfn.XLOOKUP(B59,[1]CF!$E$44:$E$58,[1]CF!$C$44:$C$58),"") -> -5449 | Y59: -2898 | Z59: -7352 | AA59: -12173 | AB59: -17230 | AC59: -5317 | AD59: -10923 | AE59: -16595 | AF59: -23656 | AG59: -4775 | AH59: -9862 | AI59: -14838 | AJ59: -20039 | AK59: -5401 | AL59: -11057 | AM59: -16519 | AN59: -21886 | AO59: =IFERROR(_xlfn.XLOOKUP(B59,[1]CF!$E$44:$E$58,[1]CF!$D$44:$D$58),"") -> -5683
B60: Interest paid | C60: -462 | D60: -1246 | E60: -2097 | F60: -3233 | G60: -959 | H60: -1939 | I60: -2792 | J60: -3627 | K60: -706 | L60: -1333 | M60: -1930 | N60: -2670 | O60: -914 | P60: -1734 | Q60: -2949 | R60: -3826 | S60: -738 | T60: -2322 | U60: -3112 | V60: -5340 | W60: =IFERROR(_xlfn.XLOOKUP(B60,[1]CF!$E$44:$E$58,[1]CF!$C$44:$C$58),"") -> -1401 | Y60: -462 | Z60: -1246 | AA60: -2097 | AB60: -3233 | AC60: -959 | AD60: -1939 | AE60: -2792 | AF60: -3627 | AG60: -706 | AH60: -1333 | AI60: -1931 | AJ60: -2670 | AK60: -914 | AL60: -1734 | AM60: -2949 | AN60: -3826 | AO60: =IFERROR(_xlfn.XLOOKUP(B60,[1]CF!$E$44:$E$58,[1]CF!$D$44:$D$58),"") -> -738
B61: Acquisition of non-controlling interests | L61: -2495 | M61: -2505 | N61: -2514 | P61: -198 | Q61: -201 | R61: -201 | S61: -339 | T61: -333 | U61: -330 | V61: -22454 | W61: =IFERROR(_xlfn.XLOOKUP(B61,[1]CF!$E$44:$E$58,[1]CF!$C$44:$C$58),"") -> -6050 | AH61: -2495 | AI61: -2505 | AJ61: -2514 | AK61: 0 | AL61: -198 | AM61: -201 | AN61: -201 | AO61: =IFERROR(_xlfn.XLOOKUP(B61,[1]CF!$E$44:$E$58,[1]CF!$D$44:$D$58),"") -> -339
B62: Dividends paid out by the Parent Company | E62: -26985 | F62: -26985 | I62: -38402 | J62: -38402 | M62: -51895 | N62: -51894 | Q62: -66425 | R62: -66425 | U62: -75766 | V62: -75765 | W62: =IFERROR(_xlfn.XLOOKUP(B62,[1]CF!$E$44:$E$58,[1]CF!$C$44:$C$58),"") -> 0 | AA62: -26985 | AB62: -26985 | AE62: -38402 | AF62: -38402 | AH62: 0 | AI62: -51894 | AJ62: -51894 | AL62: 0 | AM62: -66425 | AN62: -66425 | AO62: =IFERROR(_xlfn.XLOOKUP(B62,[1]CF!$E$44:$E$58,[1]CF!$D$44:$D$58),"") -> 0
B63: Dividends paid out to non-controlling shareholders | D63: -383 | E63: -451 | F63: -452 | G63: -382 | H63: -630 | I63: -705 | J63: -710 | K63: -395 | L63: -393 | M63: -489 | N63: -4192 | O63: -403 | P63: -560 | Q63: -3731 | R63: -3925 | S63: -235 | T63: -4170 | U63: -5854 | V63: -10713 | W63: =IFERROR(_xlfn.XLOOKUP(B63,[1]CF!$E$44:$E$58,[1]CF!$C$44:$C$58),"") -> -4134 | Z63: -383 | AA63: -451 | AB63: -452 | AC63: -382 | AD63: -630 | AE63: -705 | AF63: -710 | AG63: -395 | AH63: -393 | AI63: -489 | AJ63: -4192 | AK63: -403 | AL63: -560 | AM63: -3731 | AN63: -3925 | AO63: =IFERROR(_xlfn.XLOOKUP(B63,[1]CF!$E$44:$E$58,[1]CF!$D$44:$D$58),"") -> -235
AH64: 0
B65: Net cash provided by (used in) financing activities | C65: -6521 | D65: 1446 | E65: -15485 | F65: -24910 | G65: -15474 | H65: -28892 | I65: -84053 | J65: -99278 | K65: -13426 | L65: -30269 | M65: -84654 | N65: -82523 | O65: 665 | P65: 8973 | Q65: -76657 | R65: -75162 | S65: -10380 | T65: -31804 | U65: -121376 | V65: -133205 | W65: =IFERROR(_xlfn.XLOOKUP(B65,[1]CF!$E$44:$E$58,[1]CF!$C$44:$C$58),"") -> -32026 | Y65: -6521 | Z65: 1446 | AA65: -15485 | AB65: -24910 | AC65: -15474 | AD65: -28892 | AE65: -84053 | AF65: -99278 | AG65: -13426 | AH65: -30269 | AI65: -84654 | AJ65: -82523 | AK65: 665 | AL65: 8973 | AM65: -76657 | AN65: -75162 | AO65: =IFERROR(_xlfn.XLOOKUP(B65,[1]CF!$E$44:$E$58,[1]CF!$D$44:$D$58),"") -> -10380
AH66: 0
B67: Net increase (decrease) in cash and cash equivalents | C67: -29551 | D67: -24390 | E67: -27691 | F67: 30785 | G67: -31421 | H67: 749 | I67: -15704 | J67: 52977 | K67: -3815 | L67: 23069 | M67: -19444 | N67: -22493 | O67: 18285 | P67: 36328 | Q67: 7792 | R67: 68965 | S67: 16863 | T67: 21957 | U67: -31451 | V67: 56447 | W67: =IFERROR(_xlfn.XLOOKUP(B67,[1]CF!$E$44:$E$58,[1]CF!$C$44:$C$58),"") -> -50085 | Y67: -29551 | Z67: -24389 | AA67: -27690 | AB67: 30785 | AC67: -31421 | AD67: 749 | AE67: -15704 | AF67: 52977 | AG67: -3815 | AH67: 23069 | AI67: -19444 | AJ67: -23735 | AK67: 19524 | AL67: 36330 | AM67: 7813 | AN67: 68965 | AO67: =IFERROR(_xlfn.XLOOKUP(B67,[1]CF!$E$44:$E$58,[1]CF!$D$44:$D$58),"") -> 16863
B68: Net foreign currency translation differences | C68: -352 | D68: -1642 | E68: 1122 | F68: -4963 | G68: 7461 | H68: 3964 | I68: 2153 | J68: 5222 | K68: 469 | L68: -8081 | M68: -2547 | N68: -20496 | O68: 60 | P68: -2105 | Q68: 2629 | R68: -8830 | S68: -2257 | T68: -22002 | U68: -15719 | V68: -35914 | W68: =IFERROR(_xlfn.XLOOKUP(B68,[1]CF!$E$44:$E$58,[1]CF!$C$44:$C$58),"") -> -3253 | Y68: -352 | Z68: -1643 | AA68: 1121 | AB68: -4963 | AC68: 7461 | AD68: 3964 | AE68: 2153 | AF68: 5222 | AG68: 469 | AH68: -8081 | AI68: -2547 | AJ68: -20496 | AK68: 62 | AL68: -2107 | AM68: 2608 | AN68: -8830 | AO68: =IFERROR(_xlfn.XLOOKUP(B68,[1]CF!$E$44:$E$58,[1]CF!$D$44:$D$58),"") -> -2257
B69: Cash and cash equivalents as at 1 January | C69: 164839 | D69: 164839 | E69: 164839 | F69: 164839 | G69: 190661 | H69: 190661 | I69: 190661 | J69: 190661 | K69: 248860 | L69: 248860 | M69: 248860 | N69: 248860 | O69: 205871 | P69: 204629 | Q69: 204629 | R69: 204629 | S69: 264764 | T69: 264764 | U69: 264750 | V69: 264764 | W69: =IFERROR(_xlfn.XLOOKUP(B69,[1]CF!$E$44:$E$58,[1]CF!$C$44:$C$58),"") -> 285297 | Y69: 164839 | Z69: 164839 | AA69: 164839 | AB69: 164839 | AC69: 190661 | AD69: 190661 | AE69: 190661 | AF69: 190661 | AG69: 248860 | AH69: 248860 | AI69: 248860 | AJ69: 248860 | AK69: 204629 | AL69: 204629 | AM69: 204629 | AN69: 204629 | AO69: =IFERROR(_xlfn.XLOOKUP(B69,[1]CF!$E$44:$E$58,[1]CF!$D$44:$D$58),"") -> 264764
B70: Cash and cash equivalents as at reporting period | C70: 134936 | D70: 138807 | E70: 138270 | F70: 190661 | G70: 166701 | H70: 195374 | I70: 177110 | J70: 248860 | K70: 245514 | L70: 263848 | M70: 226869 | N70: 205871 | O70: 224216 | P70: 238852 | Q70: 215050 | R70: 264764 | S70: 279370 | T70: 264719 | U70: 217580 | V70: 285297 | W70: =IFERROR(_xlfn.XLOOKUP(B70,[1]CF!$E$44:$E$58,[1]CF!$C$44:$C$58),"") -> 231959 | Y70: 134936 | Z70: 138807 | AA70: 138270 | AB70: 190661 | AC70: 166701 | AD70: 195374 | AE70: 177110 | AF70: 248860 | AG70: 245514 | AH70: =L70 -> 263848 | AI70: 226869 | AJ70: 204629 | AK70: 224215 | AL70: 238852 | AM70: 215050 | AN70: 264764 | AO70: =IFERROR(_xlfn.XLOOKUP(B70,[1]CF!$E$44:$E$58,[1]CF!$D$44:$D$58),"") -> 279370

Sheet pivot - Countries
A1: currency | B1: kPLN
A2: type | B2: reported
A3: amount_type | B3: cumulated
A4: Position | B4: Net profit (loss) on sales
A6: Sum of Value | B6: Year | C6: Quarter
B7: 2019 | F7: 2019 Total | G7: 2020 | K7: 2020 Total | L7: 2021 | P7: 2021 Total | Q7: 2022 | U7: 2022 Total | V7: 2023 | Z7: 2023 Total | AA7: 2024 | AB7: 2024 Total
A8: Country | B8: Q1 | C8: Q2 | D8: Q3 | E8: Q4 | G8: Q1 | H8: Q2 | I8: Q3 | J8: Q4 | L8: Q1 | M8: Q2 | N8: Q3 | O8: Q4 | Q8: Q1 | R8: Q2 | S8: Q3 | T8: Q4 | V8: Q1 | W8: Q2 | X8: Q3 | Y8: Q4 | AA8: Q1
A9: Bosnia | B9: 1416 | C9: 2001 | D9: 3125 | E9: 5062 | F9: 11604 | G9: 1214 | H9: 2659 | I9: 4672 | J9: 5331 | K9: 13876 | L9: 1465 | M9: 3206 | N9: 4421 | O9: 6876 | P9: 15968 | Q9: 4400 | R9: 12838 | S9: 16096 | T9: 23281 | U9: 56615 | V9: 4427 | W9: 9018 | X9: 14198 | Y9: 13602 | Z9: 41245 | AA9: 2724 | AB9: 2724
A10: Croatia | B10: 3262 | C10: 8211 | D10: 17656 | E10: 25168 | F10: 54297 | G10: 2935 | H10: 11019 | I10: 18180 | J10: 27177 | K10: 59311 | L10: 2830 | M10: 11385 | N10: 22858 | O10: 35833 | P10: 72906 | Q10: 2374 | R10: 7505 | S10: 21603 | T10: 26628 | U10: 58110 | V10: 599 | W10: 12388 | X10: 25238 | Y10: 35856 | Z10: 74081 | AA10: 4281 | AB10: 4281
A11: Macedonia | B11: 2987 | C11: 5233 | D11: 7597 | E11: 11590 | F11: 27407 | G11: 3013 | H11: 4513 | I11: 9277 | J11: 12062 | K11: 28865 | L11: 3074 | M11: 5370 | N11: 8395 | O11: 12563 | P11: 29402 | Q11: 2534 | R11: 4682 | S11: 6818 | T11: 13145 | U11: 27179 | V11: 2064 | W11: 3659 | X11: 5578 | Y11: 12370 | Z11: 23671 | AA11: 2071 | AB11: 2071
A12: Romania | B12: -50 | C12: 1833 | D12: 2958 | E12: 6865 | F12: 11606 | G12: 1221 | H12: 2253 | I12: 3040 | J12: 7109 | K12: 13623 | L12: 988 | M12: 3171 | N12: 5313 | O12: 8994 | P12: 18466 | Q12: 2773 | R12: 3998 | S12: 6090 | T12: 9244 | U12: 22105 | V12: 1017 | W12: 4748 | X12: 8611 | Y12: 14157 | Z12: 28533 | AA12: -338 | AB12: -338
A13: Serbia | B13: 5470 | C13: 10314 | D13: 16375 | E13: 25853 | F13: 58012 | G13: 8254 | H13: 17457 | I13: 32329 | J13: 45887 | K13: 103927 | L13: 14318 | M13: 26323 | N13: 42367 | O13: 54721 | P13: 137729 | Q13: 14557 | R13: 28403 | S13: 42932 | T13: 60803 | U13: 146695 | V13: 26302 | W13: 39185 | X13: 55872 | Y13: 68134 | Z13: 189493 | AA13: 16435 | AB13: 16435
A14: Turkey | B14: 5441 | C14: 10176 | D14: 13926 | E14: 18787 | F14: 48330 | G14: 6334 | H14: 12596 | I14: 16975 | J14: 26120 | K14: 62025 | L14: 8628 | M14: 15415 | N14: 21372 | O14: 30185 | P14: 75600 | Q14: 10815 | R14: 20744 | S14: 23065 | T14: 28817 | U14: 83441 | V14: 4815 | W14: 12360 | X14: 17679 | Y14: 27629 | Z14: 62483 | AA14: 10799 | AB14: 10799
A15: Western Europe | B15: 409 | C15: 1202 | D15: 372 | E15: 1245 | F15: 3228 | G15: 314 | H15: 3930 | I15: 4761 | J15: 8334 | K15: 17339 | L15: 3734 | M15: 7983 | N15: 11498 | O15: 15276 | P15: 38491 | Q15: 5430 | R15: 11539 | S15: 18050 | T15: 28240 | U15: 63259 | V15: 6553 | W15: 13484 | X15: 15600 | Y15: 27912 | Z15: 63549 | AA15: 7042 | AB15: 7042
A16: Latin America | B16: 144 | C16: 387 | D16: 758 | E16: 1502 | F16: 2791 | G16: 435 | H16: -195 | I16: -424 | J16: -778 | K16: -962 | L16: -134 | M16: 367 | N16: 509 | O16: 850 | P16: 1592 | Q16: 226 | R16: 615 | S16: 1307 | T16: 1366 | U16: 3514 | V16: 404 | W16: 929 | X16: 1284 | Y16: 3837 | Z16: 6454 | AA16: 744 | AB16: 744
A17: Central Europe | B17: 0 | C17: 0 | D17: 0 | E17: 0 | F17: 0 | G17: 1780 | H17: 3174 | I17: 4226 | J17: 4489 | K17: 13669 | L17: 942 | M17: 2007 | N17: 2797 | O17: 3077 | P17: 8823 | Q17: 1322 | R17: 2282 | S17: 3611 | T17: 5670 | U17: 12885 | V17: 1837 | W17: 3416 | X17: 4395 | Y17: 4786 | Z17: 14434 | AA17: 1558 | AB17: 1558
A18: Other | B18: 2102 | C18: 4401 | D18: 9536 | E18: 11435 | F18: 27474 | G18: 2623 | H18: 6661 | I18: 8595 | J18: 10752 | K18: 28631 | L18: 2685 | M18: 5084 | N18: 7915 | O18: 12459 | P18: 28143 | Q18: 2605 | R18: 6440 | S18: 12016 | T18: 17550 | U18: 38611 | V18: 2276 | W18: 7877 | X18: 15454 | Y18: 20290 | Z18: 45897 | AA18: 2786 | AB18: 2786
A19: Eliminations | B19: -257 | C19: -386 | D19: -691 | E19: -849 | F19: -2183 | G19: -1 | H19: -610 | I19: -943 | J19: -995 | K19: -2549 | L19: -176 | M19: -440 | N19: -682 | O19: -871 | P19: -2169 | Q19: -359 | R19: -700 | S19: -1560 | T19: -1391 | U19: -4010 | V19: -184 | W19: -298 | X19: -296 | Y19: -550 | Z19: -1328 | AA19: -183 | AB19: -183
A20: Czech Republic &Slovakia | B20: 0 | C20: 0 | D20: 228 | E20: 1273 | F20: 1501 | G20: 0 | H20: 0 | I20: 0 | J20: 0 | K20: 0 | L20: 0 | M20: 0 | P20: 0 | Q20: 0 | U20: 0
A21: Hiperinflation | R21: 485 | S21: 3729 | T21: 2023 | U21: 6237 | V21: -30 | W21: -3076 | X21: -94 | Y21: -3114 | Z21: -6314 | AA21: -461 | AB21: -461
A22: Grand Total | B22: 20924 | C22: 43372 | D22: 71840 | E22: 107931 | F22: 244067 | G22: 28122 | H22: 63457 | I22: 100688 | J22: 145488 | K22: 337755 | L22: 38354 | M22: 79871 | N22: 126763 | O22: 179963 | P22: 424951 | Q22: 46677 | R22: 98831 | S22: 153757 | T22: 215376 | U22: 514641 | V22: 50080 | W22: 103690 | X22: 163519 | Y22: 224909 | Z22: 542198 | AA22: 47458 | AB22: 47458
A24: currency | B24: kPLN
A25: type | B25: reported
A26: amount_type | B26: quarterly
A27: Position | B27: Net profit (loss) on sales
A29: Sum of Value | B29: Year | C29: Quarter
B30: 2019 | F30: 2019 Total | G30: 2020 | K30: 2020 Total | L30: 2021 | P30: 2021 Total | Q30: 2022 | U30: 2022 Total | V30: 2023 | Z30: 2023 Total | AA30: 2024 | AB30: 2024 Total
A31: Country | B31: Q1 | C31: Q2 | D31: Q3 | E31: Q4 | G31: Q1 | H31: Q2 | I31: Q3 | J31: Q4 | L31: Q1 | M31: Q2 | N31: Q3 | O31: Q4 | Q31: Q1 | R31: Q2 | S31: Q3 | T31: Q4 | V31: Q1 | W31: Q2 | X31: Q3 | Y31: Q4 | AA31: Q1
A32: Bosnia | B32: 1416 | C32: 5062 | D32: 1214 | E32: 2659 | F32: 10351 | G32: 1214 | H32: 1445 | I32: 2013 | J32: 659 | K32: 5331 | L32: 1465 | M32: 1741 | N32: 1215 | O32: 2455 | P32: 6876 | Q32: 4400 | R32: 8438 | S32: 3258 | T32: 7185 | U32: 23281 | V32: 4427 | W32: 4591 | X32: 5180 | Y32: -596 | Z32: 13602 | AA32: 2724 | AB32: 2724
A33: Croatia | B33: 3262 | C33: 25168 | D33: 2935 | E33: 11019 | F33: 42384 | G33: 2935 | H33: 8084 | I33: 7161 | J33: 8997 | K33: 27177 | L33: 2830 | M33: 8555 | N33: 11473 | O33: 12975 | P33: 35833 | Q33: 2374 | R33: 5131 | S33: 14098 | T33: 5025 | U33: 26628 | V33: 599 | W33: 11789 | X33: 12850 | Y33: 10618 | Z33: 35856 | AA33: 4281 | AB33: 4281
A34: Macedonia | B34: 2987 | C34: 11590 | D34: 3013 | E34: 4513 | F34: 22103 | G34: 3013 | H34: 1500 | I34: 4764 | J34: 2785 | K34: 12062 | L34: 3074 | M34: 2296 | N34: 3025 | O34: 4168 | P34: 12563 | Q34: 2534 | R34: 2148 | S34: 2136 | T34: 6327 | U34: 13145 | V34: 2064 | W34: 1595 | X34: 1919 | Y34: 6792 | Z34: 12370 | AA34: 2071 | AB34: 2071
A35: Romania | B35: -50 | C35: 6865 | D35: 1221 | E35: 2253 | F35: 10289 | G35: 1221 | H35: 1032 | I35: 787 | J35: 4069 | K35: 7109 | L35: 988 | M35: 2183 | N35: 2142 | O35: 3681 | P35: 8994 | Q35: 2773 | R35: 1225 | S35: 2092 | T35: 3154 | U35: 9244 | V35: 1017 | W35: 3731 | X35: 3863 | Y35: 5546 | Z35: 14157 | AA35: -338 | AB35: -338
A36: Serbia | B36: 5470 | C36: 25853 | D36: 8254 | E36: 17457 | F36: 57034 | G36: 8254 | H36: 9203 | I36: 14872 | J36: 13558 | K36: 45887 | L36: 14318 | M36: 12005 | N36: 16044 | O36: 12354 | P36: 54721 | Q36: 14557 | R36: 13846 | S36: 14529 | T36: 17871 | U36: 60803 | V36: 26302 | W36: 12883 | X36: 16687 | Y36: 12262 | Z36: 68134 | AA36: 16435 | AB36: 16435
A37: Turkey | B37: 5441 | C37: 18787 | D37: 6334 | E37: 12596 | F37: 43158 | G37: 6334 | H37: 6262 | I37: 4379 | J37: 9145 | K37: 26120 | L37: 8628 | M37: 6787 | N37: 5957 | O37: 8813 | P37: 30185 | Q37: 10815 | R37: 9929 | S37: 2321 | T37: 5752 | U37: 28817 | V37: 4815 | W37: 7545 | X37: 5319 | Y37: 9950 | Z37: 27629 | AA37: 10799 | AB37: 10799
A38: Western Europe | B38: 409 | C38: 1245 | D38: 314 | E38: 3930 | F38: 5898 | G38: 314 | H38: 3616 | I38: 831 | J38: 3573 | K38: 8334 | L38: 3734 | M38: 4249 | N38: 3515 | O38: 3778 | P38: 15276 | Q38: 5430 | R38: 6109 | S38: 6511 | T38: 10190 | U38: 28240 | V38: 6553 | W38: 6931 | X38: 2116 | Y38: 12312 | Z38: 27912 | AA38: 7042 | AB38: 7042
A39: Latin America | B39: 144 | C39: 1502 | D39: 435 | E39: -195 | F39: 1886 | G39: 435 | H39: -630 | I39: -229 | J39: -354 | K39: -778 | L39: -134 | M39: 501 | N39: 142 | O39: 341 | P39: 850 | Q39: 226 | R39: 389 | S39: 692 | T39: 59 | U39: 1366 | V39: 404 | W39: 525 | X39: 355 | Y39: 2553 | Z39: 3837 | AA39: 744 | AB39: 744
A40: Central Europe | B40: 0 | C40: 0 | D40: 1780 | E40: 3174 | F40: 4954 | G40: 1780 | H40: 1394 | I40: 1052 | J40: 263 | K40: 4489 | L40: 942 | M40: 1065 | N40: 790 | O40: 280 | P40: 3077 | Q40: 1322 | R40: 960 | S40: 1329 | T40: 2059 | U40: 5670 | V40: 1837 | W40: 1579 | X40: 979 | Y40: 391 | Z40: 4786 | AA40: 1558 | AB40: 1558
A41: Other | B41: 2102 | C41: 11435 | D41: 2623 | E41: 6661 | F41: 22821 | G41: 2623 | H41: 4038 | I41: 1934 | J41: 2157 | K41: 10752 | L41: 2685 | M41: 2399 | N41: 2831 | O41: 4544 | P41: 12459 | Q41: 2605 | R41: 3835 | S41: 5576 | T41: 5534 | U41: 17550 | V41: 2276 | W41: 5601 | X41: 7577 | Y41: 4836 | Z41: 20290 | AA41: 2786 | AB41: 2786
A42: Eliminations | B42: -257 | C42: -849 | D42: -1 | E42: -610 | F42: -1717 | G42: -1 | H42: -609 | I42: -333 | J42: -52 | K42: -995 | L42: -176 | M42: -264 | N42: -242 | O42: -189 | P42: -871 | Q42: -359 | R42: -341 | S42: -860 | T42: 169 | U42: -1391 | V42: -184 | W42: -114 | X42: 2 | Y42: -254 | Z42: -550 | AA42: -183 | AB42: -183
A43: Czech Republic &Slovakia | B43: 0 | C43: 1273 | D43: 0 | E43: 0 | F43: 1273 | G43: 0 | H43: 0 | I43: 0 | J43: 0 | K43: 0 | L43: 0 | M43: 0 | N43: 0 | O43: 0 | P43: 0 | Q43: 0 | S43: 0 | T43: 0 | U43: 0 | W43: 0 | X43: 0 | Y43: 0 | Z43: 0
A44: Hiperinflation | M44: 0 | N44: 0 | O44: 0 | P44: 0 | R44: 485 | S44: 3244 | T44: -1706 | U44: 2023 | V44: -30 | W44: -3046 | X44: 2982 | Y44: -3020 | Z44: -3114 | AA44: -461 | AB44: -461
A45: Grand Total | B45: 20924 | C45: 107931 | D45: 28122 | E45: 63457 | F45: 220434 | G45: 28122 | H45: 35335 | I45: 37231 | J45: 44800 | K45: 145488 | L45: 38354 | M45: 41517 | N45: 46892 | O45: 53200 | P45: 179963 | Q45: 46677 | R45: 52154 | S45: 54926 | T45: 61619 | U45: 215376 | V45: 50080 | W45: 53610 | X45: 59829 | Y45: 61390 | Z45: 224909 | AA45: 47458 | AB45: 47458

Sheet pvtSrc - Countries (hidden)
B4: amount_type | C4: report code | D4: type | E4: currency | F4: period | G4: Quarter | H4: Year | I4: Position | J4: Country | K4: Value
B5: cumulated | C5: 2021_Q4 | D5: reported | E5: kPLN | F5: 2021-12-31 | G5: Q4 | H5: 2021 | I5: Sales revenues | J5: Bosnia | K5: 35457
B6: cumulated | C6: 2021_Q4 | D6: reported | E6: kPLN | F6: 2021-12-31 | G6: Q4 | H6: 2021 | I6: Sales revenues | J6: Croatia | K6: 177980
B7: cumulated | C7: 2021_Q4 | D7: reported | E7: kPLN | F7: 2021-12-31 | G7: Q4 | H7: 2021 | I7: Sales revenues | J7: Macedonia | K7: 68137
B8: cumulated | C8: 2021_Q4 | D8: reported | E8: kPLN | F8: 2021-12-31 | G8: Q4 | H8: 2021 | I8: Sales revenues | J8: Romania | K8: 172279
B9: cumulated | C9: 2021_Q4 | D9: reported | E9: kPLN | F9: 2021-12-31 | G9: Q4 | H9: 2021 | I9: Sales revenues | J9: Serbia | K9: 339220
B10: cumulated | C10: 2021_Q4 | D10: reported | E10: kPLN | F10: 2021-12-31 | G10: Q4 | H10: 2021 | I10: Sales revenues | J10: Turkey | K10: 102769
B11: cumulated | C11: 2021_Q4 | D11: reported | E11: kPLN | F11: 2021-12-31 | G11: Q4 | H11: 2021 | I11: Sales revenues | J11: Western Europe | K11: 155116
B12: cumulated | C12: 2021_Q4 | D12: reported | E12: kPLN | F12: 2021-12-31 | G12: Q4 | H12: 2021 | I12: Sales revenues | J12: Latin America | K12: 22078
B13: cumulated | C13: 2021_Q4 | D13: reported | E13: kPLN | F13: 2021-12-31 | G13: Q4 | H13: 2021 | I13: Sales revenues | J13: Central Europe | K13: 36067
B14: cumulated | C14: 2021_Q4 | D14: reported | E14: kPLN | F14: 2021-12-31 | G14: Q4 | H14: 2021 | I14: Sales revenues | J14: Other | K14: 77344
B15: cumulated | C15: 2021_Q4 | D15: reported | E15: kPLN | F15: 2021-12-31 | G15: Q4 | H15: 2021 | I15: Sales revenues | J15: Eliminations | K15: -39798
B16: cumulated | C16: 2021_Q4 | D16: reported | E16: kPLN | F16: 2021-12-31 | G16: Q4 | H16: 2021 | I16: Cost of sales | J16: Bosnia | K16: -22735
B17: cumulated | C17: 2021_Q4 | D17: reported | E17: kPLN | F17: 2021-12-31 | G17: Q4 | H17: 2021 | I17: Cost of sales | J17: Croatia | K17: -116614
B18: cumulated | C18: 2021_Q4 | D18: reported | E18: kPLN | F18: 2021-12-31 | G18: Q4 | H18: 2021 | I18: Cost of sales | J18: Macedonia | K18: -46746
B19: cumulated | C19: 2021_Q4 | D19: reported | E19: kPLN | F19: 2021-12-31 | G19: Q4 | H19: 2021 | I19: Cost of sales | J19: Romania | K19: -145558
B20: cumulated | C20: 2021_Q4 | D20: reported | E20: kPLN | F20: 2021-12-31 | G20: Q4 | H20: 2021 | I20: Cost of sales | J20: Serbia | K20: -249726
B21: cumulated | C21: 2021_Q4 | D21: reported | E21: kPLN | F21: 2021-12-31 | G21: Q4 | H21: 2021 | I21: Cost of sales | J21: Turkey | K21: -52145
B22: cumulated | C22: 2021_Q4 | D22: reported | E22: kPLN | F22: 2021-12-31 | G22: Q4 | H22: 2021 | I22: Cost of sales | J22: Western Europe | K22: -130778
B23: cumulated | C23: 2021_Q4 | D23: reported | E23: kPLN | F23: 2021-12-31 | G23: Q4 | H23: 2021 | I23: Cost of sales | J23: Latin America | K23: -16685
B24: cumulated | C24: 2021_Q4 | D24: reported | E24: kPLN | F24: 2021-12-31 | G24: Q4 | H24: 2021 | I24: Cost of sales | J24: Central Europe | K24: -26347
B25: cumulated | C25: 2021_Q4 | D25: reported | E25: kPLN | F25: 2021-12-31 | G25: Q4 | H25: 2021 | I25: Cost of sales | J25: Other | K25: -57162
B26: cumulated | C26: 2021_Q4 | D26: reported | E26: kPLN | F26: 2021-12-31 | G26: Q4 | H26: 2021 | I26: Cost of sales | J26: Eliminations | K26: 36412
B27: cumulated | C27: 2021_Q4 | D27: reported | E27: kPLN | F27: 2021-12-31 | G27: Q4 | H27: 2021 | I27: Recognition (reversal) of impairment losses on financial instruments | J27: Bosnia | K27: -65
B28: cumulated | C28: 2021_Q4 | D28: reported | E28: kPLN | F28: 2021-12-31 | G28: Q4 | H28: 2021 | I28: Recognition (reversal) of impairment losses on financial instruments | J28: Croatia | K28: 460
B29: cumulated | C29: 2021_Q4 | D29: reported | E29: kPLN | F29: 2021-12-31 | G29: Q4 | H29: 2021 | I29: Recognition (reversal) of impairment losses on financial instruments | J29: Macedonia | K29: -56
B30: cumulated | C30: 2021_Q4 | D30: reported | E30: kPLN | F30: 2021-12-31 | G30: Q4 | H30: 2021 | I30: Recognition (reversal) of impairment losses on financial instruments | J30: Romania | K30: -312
B31: cumulated | C31: 2021_Q4 | D31: reported | E31: kPLN | F31: 2021-12-31 | G31: Q4 | H31: 2021 | I31: Recognition (reversal) of impairment losses on financial instruments | J31: Serbia | K31: 424
B32: cumulated | C32: 2021_Q4 | D32: reported | E32: kPLN | F32: 2021-12-31 | G32: Q4 | H32: 2021 | I32: Recognition (reversal) of impairment losses on financial instruments | J32: Turkey | K32: -2398
B33: cumulated | C33: 2021_Q4 | D33: reported | E33: kPLN | F33: 2021-12-31 | G33: Q4 | H33: 2021 | I33: Recognition (reversal) of impairment losses on financial instruments | J33: Western Europe | K33: -21
B34: cumulated | C34: 2021_Q4 | D34: reported | E34: kPLN | F34: 2021-12-31 | G34: Q4 | H34: 2021 | I34: Recognition (reversal) of impairment losses on financial instruments | J34: Latin America | K34: 22
B35: cumulated | C35: 2021_Q4 | D35: reported | E35: kPLN | F35: 2021-12-31 | G35: Q4 | H35: 2021 | I35: Recognition (reversal) of impairment losses on financial instruments | J35: Central Europe | K35: 18
B36: cumulated | C36: 2021_Q4 | D36: reported | E36: kPLN | F36: 2021-12-31 | G36: Q4 | H36: 2021 | I36: Recognition (reversal) of impairment losses on financial instruments | J36: Other | K36: -30
B37: cumulated | C37: 2021_Q4 | D37: reported | E37: kPLN | F37: 2021-12-31 | G37: Q4 | H37: 2021 | I37: Recognition (reversal) of impairment losses on financial instruments | J37: Eliminations | K37: 1
B38: cumulated | C38: 2021_Q4 | D38: reported | E38: kPLN | F38: 2021-12-31 | G38: Q4 | H38: 2021 | I38: Gross profit on sales | J38: Bosnia | K38: 12657
B39: cumulated | C39: 2021_Q4 | D39: reported | E39: kPLN | F39: 2021-12-31 | G39: Q4 | H39: 2021 | I39: Gross profit on sales | J39: Croatia | K39: 61826
B40: cumulated | C40: 2021_Q4 | D40: reported | E40: kPLN | F40: 2021-12-31 | G40: Q4 | H40: 2021 | I40: Gross profit on sales | J40: Macedonia | K40: 21335
B41: cumulated | C41: 2021_Q4 | D41: reported | E41: kPLN | F41: 2021-12-31 | G41: Q4 | H41: 2021 | I41: Gross profit on sales | J41: Romania | K41: 26409
B42: cumulated | C42: 2021_Q4 | D42: reported | E42: kPLN | F42: 2021-12-31 | G42: Q4 | H42: 2021 | I42: Gross profit on sales | J42: Serbia | K42: 89918
B43: cumulated | C43: 2021_Q4 | D43: reported | E43: kPLN | F43: 2021-12-31 | G43: Q4 | H43: 2021 | I43: Gross profit on sales | J43: Turkey | K43: 48226
B44: cumulated | C44: 2021_Q4 | D44: reported | E44: kPLN | F44: 2021-12-31 | G44: Q4 | H44: 2021 | I44: Gross profit on sales | J44: Western Europe | K44: 24317
B45: cumulated | C45: 2021_Q4 | D45: reported | E45: kPLN | F45: 2021-12-31 | G45: Q4 | H45: 2021 | I45: Gross profit on sales | J45: Latin America | K45: 5415
B46: cumulated | C46: 2021_Q4 | D46: reported | E46: kPLN | F46: 2021-12-31 | G46: Q4 | H46: 2021 | I46: Gross profit on sales | J46: Central Europe | K46: 9738
B47: cumulated | C47: 2021_Q4 | D47: reported | E47: kPLN | F47: 2021-12-31 | G47: Q4 | H47: 2021 | I47: Gross profit on sales | J47: Other | K47: 20152
B48: cumulated | C48: 2021_Q4 | D48: reported | E48: kPLN | F48: 2021-12-31 | G48: Q4 | H48: 2021 | I48: Gross profit on sales | J48: Eliminations | K48: -3385
B49: cumulated | C49: 2021_Q4 | D49: reported | E49: kPLN | F49: 2021-12-31 | G49: Q4 | H49: 2021 | I49: Selling costs | J49: Bosnia | K49: -2754
B50: cumulated | C50: 2021_Q4 | D50: reported | E50: kPLN | F50: 2021-12-31 | G50: Q4 | H50: 2021 | I50: Selling costs | J50: Croatia | K50: -13914
B51: cumulated | C51: 2021_Q4 | D51: reported | E51: kPLN | F51: 2021-12-31 | G51: Q4 | H51: 2021 | I51: Selling costs | J51: Macedonia | K51: -4395
B52: cumulated | C52: 2021_Q4 | D52: reported | E52: kPLN | F52: 2021-12-31 | G52: Q4 | H52: 2021 | I52: Selling costs | J52: Romania | K52: -9400
B53: cumulated | C53: 2021_Q4 | D53: reported | E53: kPLN | F53: 2021-12-31 | G53: Q4 | H53: 2021 | I53: Selling costs | J53: Serbia | K53: -19846
B54: cumulated | C54: 2021_Q4 | D54: reported | E54: kPLN | F54: 2021-12-31 | G54: Q4 | H54: 2021 | I54: Selling costs | J54: Turkey | K54: -9016
B55: cumulated | C55: 2021_Q4 | D55: reported | E55: kPLN | F55: 2021-12-31 | G55: Q4 | H55: 2021 | I55: Selling costs | J55: Western Europe | K55: -2553
B56: cumulated | C56: 2021_Q4 | D56: reported | E56: kPLN | F56: 2021-12-31 | G56: Q4 | H56: 2021 | I56: Selling costs | J56: Latin America | K56: -1069
B57: cumulated | C57: 2021_Q4 | D57: reported | E57: kPLN | F57: 2021-12-31 | G57: Q4 | H57: 2021 | I57: Selling costs | J57: Central Europe | K57: -3984
B58: cumulated | C58: 2021_Q4 | D58: reported | E58: kPLN | F58: 2021-12-31 | G58: Q4 | H58: 2021 | I58: Selling costs | J58: Other | K58: -3542
B59: cumulated | C59: 2021_Q4 | D59: reported | E59: kPLN | F59: 2021-12-31 | G59: Q4 | H59: 2021 | I59: Selling costs | J59: Eliminations | K59: 1861
B60: cumulated | C60: 2021_Q4 | D60: reported | E60: kPLN | F60: 2021-12-31 | G60: Q4 | H60: 2021 | I60: General and administrative expenses | J60: Bosnia | K60: -3027
B61: cumulated | C61: 2021_Q4 | D61: reported | E61: kPLN | F61: 2021-12-31 | G61: Q4 | H61: 2021 | I61: General and administrative expenses | J61: Croatia | K61: -12079
B62: cumulated | C62: 2021_Q4 | D62: reported | E62: kPLN | F62: 2021-12-31 | G62: Q4 | H62: 2021 | I62: General and administrative expenses | J62: Macedonia | K62: -4377
B63: cumulated | C63: 2021_Q4 | D63: reported | E63: kPLN | F63: 2021-12-31 | G63: Q4 | H63: 2021 | I63: General and administrative expenses | J63: Romania | K63: -8015
B64: cumulated | C64: 2021_Q4 | D64: reported | E64: kPLN | F64: 2021-12-31 | G64: Q4 | H64: 2021 | I64: General and administrative expenses | J64: Serbia | K64: -15351
B65: cumulated | C65: 2021_Q4 | D65: reported | E65: kPLN | F65: 2021-12-31 | G65: Q4 | H65: 2021 | I65: General and administrative expenses | J65: Turkey | K65: -9025
B66: cumulated | C66: 2021_Q4 | D66: reported | E66: kPLN | F66: 2021-12-31 | G66: Q4 | H66: 2021 | I66: General and administrative expenses | J66: Western Europe | K66: -6488
B67: cumulated | C67: 2021_Q4 | D67: reported | E67: kPLN | F67: 2021-12-31 | G67: Q4 | H67: 2021 | I67: General and administrative expenses | J67: Latin America | K67: -3496
B68: cumulated | C68: 2021_Q4 | D68: reported | E68: kPLN | F68: 2021-12-31 | G68: Q4 | H68: 2021 | I68: General and administrative expenses | J68: Central Europe | K68: -2677
B69: cumulated | C69: 2021_Q4 | D69: reported | E69: kPLN | F69: 2021-12-31 | G69: Q4 | H69: 2021 | I69: General and administrative expenses | J69: Other | K69: -4151
B70: cumulated | C70: 2021_Q4 | D70: reported | E70: kPLN | F70: 2021-12-31 | G70: Q4 | H70: 2021 | I70: General and administrative expenses | J70: Eliminations | K70: 653
B71: cumulated | C71: 2021_Q4 | D71: reported | E71: kPLN | F71: 2021-12-31 | G71: Q4 | H71: 2021 | I71: Net profit (loss) on sales | J71: Bosnia | K71: 6876
B72: cumulated | C72: 2021_Q4 | D72: reported | E72: kPLN | F72: 2021-12-31 | G72: Q4 | H72: 2021 | I72: Net profit (loss) on sales | J72: Croatia | K72: 35833
B73: cumulated | C73: 2021_Q4 | D73: reported | E73: kPLN | F73: 2021-12-31 | G73: Q4 | H73: 2021 | I73: Net profit (loss) on sales | J73: Macedonia | K73: 12563
B74: cumulated | C74: 2021_Q4 | D74: reported | E74: kPLN | F74: 2021-12-31 | G74: Q4 | H74: 2021 | I74: Net profit (loss) on sales | J74: Romania | K74: 8994
B75: cumulated | C75: 2021_Q4 | D75: reported | E75: kPLN | F75: 2021-12-31 | G75: Q4 | H75: 2021 | I75: Net profit (loss) on sales | J75: Serbia | K75: 54721
B76: cumulated | C76: 2021_Q4 | D76: reported | E76: kPLN | F76: 2021-12-31 | G76: Q4 | H76: 2021 | I76: Net profit (loss) on sales | J76: Turkey | K76: 30185
B77: cumulated | C77: 2021_Q4 | D77: reported | E77: kPLN | F77: 2021-12-31 | G77: Q4 | H77: 2021 | I77: Net profit (loss) on sales | J77: Western Europe | K77: 15276
B78: cumulated | C78: 2021_Q4 | D78: reported | E78: kPLN | F78: 2021-12-31 | G78: Q4 | H78: 2021 | I78: Net profit (loss) on sales | J78: Latin America | K78: 850
B79: cumulated | C79: 2021_Q4 | D79: reported | E79: kPLN | F79: 2021-12-31 | G79: Q4 | H79: 2021 | I79: Net profit (loss) on sales | J79: Central Europe | K79: 3077
B80: cumulated | C80: 2021_Q4 | D80: reported | E80: kPLN | F80: 2021-12-31 | G80: Q4 | H80: 2021 | I80: Net profit (loss) on sales | J80: Other | K80: 12459
B81: cumulated | C81: 2021_Q4 | D81: reported | E81: kPLN | F81: 2021-12-31 | G81: Q4 | H81: 2021 | I81: Net profit (loss) on sales | J81: Eliminations | K81: -871
B82: cumulated | C82: 2021_Q4 | D82: reported | E82: kPLN | F82: 2021-12-31 | G82: Q4 | H82: 2021 | I82: Other operating income | J82: Bosnia | K82: 82
B83: cumulated | C83: 2021_Q4 | D83: reported | E83: kPLN | F83: 2021-12-31 | G83: Q4 | H83: 2021 | I83: Other operating income | J83: Croatia | K83: 1303
B84: cumulated | C84: 2021_Q4 | D84: reported | E84: kPLN | F84: 2021-12-31 | G84: Q4 | H84: 2021 | I84: Other operating income | J84: Macedonia | K84: 261
B85: cumulated | C85: 2021_Q4 | D85: reported | E85: kPLN | F85: 2021-12-31 | G85: Q4 | H85: 2021 | I85: Other operating income | J85: Romania | K85: 253
B86: cumulated | C86: 2021_Q4 | D86: reported | E86: kPLN | F86: 2021-12-31 | G86: Q4 | H86: 2021 | I86: Other operating income | J86: Serbia | K86: 594
B87: cumulated | C87: 2021_Q4 | D87: reported | E87: kPLN | F87: 2021-12-31 | G87: Q4 | H87: 2021 | I87: Other operating income | J87: Turkey | K87: 254
B88: cumulated | C88: 2021_Q4 | D88: reported | E88: kPLN | F88: 2021-12-31 | G88: Q4 | H88: 2021 | I88: Other operating income | J88: Western Europe | K88: 202
B89: cumulated | C89: 2021_Q4 | D89: reported | E89: kPLN | F89: 2021-12-31 | G89: Q4 | H89: 2021 | I89: Other operating income | J89: Latin America | K89: 40
B90: cumulated | C90: 2021_Q4 | D90: reported | E90: kPLN | F90: 2021-12-31 | G90: Q4 | H90: 2021 | I90: Other operating income | J90: Central Europe | K90: 9
B91: cumulated | C91: 2021_Q4 | D91: reported | E91: kPLN | F91: 2021-12-31 | G91: Q4 | H91: 2021 | I91: Other operating income | J91: Other | K91: 154
B92: cumulated | C92: 2021_Q4 | D92: reported | E92: kPLN | F92: 2021-12-31 | G92: Q4 | H92: 2021 | I92: Other operating income | J92: Eliminations | K92: -129
B93: cumulated | C93: 2021_Q4 | D93: reported | E93: kPLN | F93: 2021-12-31 | G93: Q4 | H93: 2021 | I93: Other operating expenses | J93: Bosnia | K93: -38
B94: cumulated | C94: 2021_Q4 | D94: reported | E94: kPLN | F94: 2021-12-31 | G94: Q4 | H94: 2021 | I94: Other operating expenses | J94: Croatia | K94: -486
B95: cumulated | C95: 2021_Q4 | D95: reported | E95: kPLN | F95: 2021-12-31 | G95: Q4 | H95: 2021 | I95: Other operating expenses | J95: Macedonia | K95: -74
B96: cumulated | C96: 2021_Q4 | D96: reported | E96: kPLN | F96: 2021-12-31 | G96: Q4 | H96: 2021 | I96: Other operating expenses | J96: Romania | K96: -350
B97: cumulated | C97: 2021_Q4 | D97: reported | E97: kPLN | F97: 2021-12-31 | G97: Q4 | H97: 2021 | I97: Other operating expenses | J97: Serbia | K97: -264
B98: cumulated | C98: 2021_Q4 | D98: reported | E98: kPLN | F98: 2021-12-31 | G98: Q4 | H98: 2021 | I98: Other operating expenses | J98: Turkey | K98: -181
B99: cumulated | C99: 2021_Q4 | D99: reported | E99: kPLN | F99: 2021-12-31 | G99: Q4 | H99: 2021 | I99: Other operating expenses | J99: Western Europe | K99: -22
B100: cumulated | C100: 2021_Q4 | D100: reported | E100: kPLN | F100: 2021-12-31 | G100: Q4 | H100: 2021 | I100: Other operating expenses | J100: Latin America | K100: -32
B101: cumulated | C101: 2021_Q4 | D101: reported | E101: kPLN | F101: 2021-12-31 | G101: Q4 | H101: 2021 | I101: Other operating expenses | J101: Central Europe | K101: -63
B102: cumulated | C102: 2021_Q4 | D102: reported | E102: kPLN | F102: 2021-12-31 | G102: Q4 | H102: 2021 | I102: Other operating expenses | J102: Other | K102: -131
B103: cumulated | C103: 2021_Q4 | D103: reported | E103: kPLN | F103: 2021-12-31 | G103: Q4 | H103: 2021 | I103: Other operating expenses | J103: Eliminations | K103: 106
B104: cumulated | C104: 2021_Q4 | D104: reported | E104: kPLN | F104: 2021-12-31 | G104: Q4 | H104: 2021 | I104: Share of profits of associates | J104: Bosnia | K104: 0
B105: cumulated | C105: 2021_Q4 | D105: reported | E105: kPLN | F105: 2021-12-31 | G105: Q4 | H105: 2021 | I105: Share of profits of associates | J105: Croatia | K105: 0
B106: cumulated | C106: 2021_Q4 | D106: reported | E106: kPLN | F106: 2021-12-31 | G106: Q4 | H106: 2021 | I106: Share of profits of associates | J106: Macedonia | K106: 0
B107: cumulated | C107: 2021_Q4 | D107: reported | E107: kPLN | F107: 2021-12-31 | G107: Q4 | H107: 2021 | I107: Share of profits of associates | J107: Romania | K107: 0
B108: cumulated | C108: 2021_Q4 | D108: reported | E108: kPLN | F108: 2021-12-31 | G108: Q4 | H108: 2021 | I108: Share of profits of associates | J108: Serbia | K108: 0
B109: cumulated | C109: 2021_Q4 | D109: reported | E109: kPLN | F109: 2021-12-31 | G109: Q4 | H109: 2021 | I109: Share of profits of associates | J109: Turkey | K109: 0
B110: cumulated | C110: 2021_Q4 | D110: reported | E110: kPLN | F110: 2021-12-31 | G110: Q4 | H110: 2021 | I110: Share of profits of associates | J110: Western Europe | K110: 0
B111: cumulated | C111: 2021_Q4 | D111: reported | E111: kPLN | F111: 2021-12-31 | G111: Q4 | H111: 2021 | I111: Share of profits of associates | J111: Latin America | K111: 0
B112: cumulated | C112: 2021_Q4 | D112: reported | E112: kPLN | F112: 2021-12-31 | G112: Q4 | H112: 2021 | I112: Share of profits of associates | J112: Central Europe | K112: 0
B113: cumulated | C113: 2021_Q4 | D113: reported | E113: kPLN | F113: 2021-12-31 | G113: Q4 | H113: 2021 | I113: Share of profits of associates | J113: Other | K113: 0
B114: cumulated | C114: 2021_Q4 | D114: reported | E114: kPLN | F114: 2021-12-31 | G114: Q4 | H114: 2021 | I114: Share of profits of associates | J114: Eliminations | K114: 0
B115: cumulated | C115: 2021_Q4 | D115: reported | E115: kPLN | F115: 2021-12-31 | G115: Q4 | H115: 2021 | I115: Operating profit (loss) | J115: Bosnia | K115: 6920
B116: cumulated | C116: 2021_Q4 | D116: reported | E116: kPLN | F116: 2021-12-31 | G116: Q4 | H116: 2021 | I116: Operating profit (loss) | J116: Croatia | K116: 36650
B117: cumulated | C117: 2021_Q4 | D117: reported | E117: kPLN | F117: 2021-12-31 | G117: Q4 | H117: 2021 | I117: Operating profit (loss) | J117: Macedonia | K117: 12750
B118: cumulated | C118: 2021_Q4 | D118: reported | E118: kPLN | F118: 2021-12-31 | G118: Q4 | H118: 2021 | I118: Operating profit (loss) | J118: Romania | K118: 8897
B119: cumulated | C119: 2021_Q4 | D119: reported | E119: kPLN | F119: 2021-12-31 | G119: Q4 | H119: 2021 | I119: Operating profit (loss) | J119: Serbia | K119: 55051
B120: cumulated | C120: 2021_Q4 | D120: reported | E120: kPLN | F120: 2021-12-31 | G120: Q4 | H120: 2021 | I120: Operating profit (loss) | J120: Turkey | K120: 30258
B121: cumulated | C121: 2021_Q4 | D121: reported | E121: kPLN | F121: 2021-12-31 | G121: Q4 | H121: 2021 | I121: Operating profit (loss) | J121: Western Europe | K121: 15456
B122: cumulated | C122: 2021_Q4 | D122: reported | E122: kPLN | F122: 2021-12-31 | G122: Q4 | H122: 2021 | I122: Operating profit (loss) | J122: Latin America | K122: 858
B123: cumulated | C123: 2021_Q4 | D123: reported | E123: kPLN | F123: 2021-12-31 | G123: Q4 | H123: 2021 | I123: Operating profit (loss) | J123: Central Europe | K123: 3023
B124: cumulated | C124: 2021_Q4 | D124: reported | E124: kPLN | F124: 2021-12-31 | G124: Q4 | H124: 2021 | I124: Operating profit (loss) | J124: Other | K124: 12482
B125: cumulated | C125: 2021_Q4 | D125: reported | E125: kPLN | F125: 2021-12-31 | G125: Q4 | H125: 2021 | I125: Operating profit (loss) | J125: Eliminations | K125: -894
B126: cumulated | C126: 2021_Q4 | D126: reported | E126: kEUR | F126: 2021-12-31 | G126: Q4 | H126: 2021 | I126: Sales revenues | J126: Bosnia | K126: 7746
B127: cumulated | C127: 2021_Q4 | D127: reported | E127: kEUR | F127: 2021-12-31 | G127: Q4 | H127: 2021 | I127: Sales revenues | J127: Croatia | K127: 38881
B128: cumulated | C128: 2021_Q4 | D128: reported | E128: kEUR | F128: 2021-12-31 | G128: Q4 | H128: 2021 | I128: Sales revenues | J128: Macedonia | K128: 14885
B129: cumulated | C129: 2021_Q4 | D129: reported | E129: kEUR | F129: 2021-12-31 | G129: Q4 | H129: 2021 | I129: Sales revenues | J129: Romania | K129: 37636
B130: cumulated | C130: 2021_Q4 | D130: reported | E130: kEUR | F130: 2021-12-31 | G130: Q4 | H130: 2021 | I130: Sales revenues | J130: Serbia | K130: 74106
B131: cumulated | C131: 2021_Q4 | D131: reported | E131: kEUR | F131: 2021-12-31 | G131: Q4 | H131: 2021 | I131: Sales revenues | J131: Turkey | K131: 22451
B132: cumulated | C132: 2021_Q4 | D132: reported | E132: kEUR | F132: 2021-12-31 | G132: Q4 | H132: 2021 | I132: Sales revenues | J132: Western Europe | K132: 33887
B133: cumulated | C133: 2021_Q4 | D133: reported | E133: kEUR | F133: 2021-12-31 | G133: Q4 | H133: 2021 | I133: Sales revenues | J133: Latin America | K133: 4823
B134: cumulated | C134: 2021_Q4 | D134: reported | E134: kEUR | F134: 2021-12-31 | G134: Q4 | H134: 2021 | I134: Sales revenues | J134: Central Europe | K134: 7879
B135: cumulated | C135: 2021_Q4 | D135: reported | E135: kEUR | F135: 2021-12-31 | G135: Q4 | H135: 2021 | I135: Sales revenues | J135: Other | K135: 16897
B136: cumulated | C136: 2021_Q4 | D136: reported | E136: kEUR | F136: 2021-12-31 | G136: Q4 | H136: 2021 | I136: Sales revenues | J136: Eliminations | K136: -8694
B137: cumulated | C137: 2021_Q4 | D137: reported | E137: kEUR | F137: 2021-12-31 | G137: Q4 | H137: 2021 | I137: Cost of sales | J137: Bosnia | K137: -4967
B138: cumulated | C138: 2021_Q4 | D138: reported | E138: kEUR | F138: 2021-12-31 | G138: Q4 | H138: 2021 | I138: Cost of sales | J138: Croatia | K138: -25475
B139: cumulated | C139: 2021_Q4 | D139: reported | E139: kEUR | F139: 2021-12-31 | G139: Q4 | H139: 2021 | I139: Cost of sales | J139: Macedonia | K139: -10212
B140: cumulated | C140: 2021_Q4 | D140: reported | E140: kEUR | F140: 2021-12-31 | G140: Q4 | H140: 2021 | I140: Cost of sales | J140: Romania | K140: -31799
B141: cumulated | C141: 2021_Q4 | D141: reported | E141: kEUR | F141: 2021-12-31 | G141: Q4 | H141: 2021 | I141: Cost of sales | J141: Serbia | K141: -54555
B142: cumulated | C142: 2021_Q4 | D142: reported | E142: kEUR | F142: 2021-12-31 | G142: Q4 | H142: 2021 | I142: Cost of sales | J142: Turkey | K142: -11392
B143: cumulated | C143: 2021_Q4 | D143: reported | E143: kEUR | F143: 2021-12-31 | G143: Q4 | H143: 2021 | I143: Cost of sales | J143: Western Europe | K143: -28570
B144: cumulated | C144: 2021_Q4 | D144: reported | E144: kEUR | F144: 2021-12-31 | G144: Q4 | H144: 2021 | I144: Cost of sales | J144: Latin America | K144: -3645
B145: cumulated | C145: 2021_Q4 | D145: reported | E145: kEUR | F145: 2021-12-31 | G145: Q4 | H145: 2021 | I145: Cost of sales | J145: Central Europe | K145: -5756
B146: cumulated | C146: 2021_Q4 | D146: reported | E146: kEUR | F146: 2021-12-31 | G146: Q4 | H146: 2021 | I146: Cost of sales | J146: Other | K146: -12487
B147: cumulated | C147: 2021_Q4 | D147: reported | E147: kEUR | F147: 2021-12-31 | G147: Q4 | H147: 2021 | I147: Cost of sales | J147: Eliminations | K147: 7955
B148: cumulated | C148: 2021_Q4 | D148: reported | E148: kEUR | F148: 2021-12-31 | G148: Q4 | H148: 2021 | I148: Recognition (reversal) of impairment losses on financial instruments | J148: Bosnia | K148: -14
B149: cumulated | C149: 2021_Q4 | D149: reported | E149: kEUR | F149: 2021-12-31 | G149: Q4 | H149: 2021 | I149: Recognition (reversal) of impairment losses on financial instruments | J149: Croatia | K149: 100
B150: cumulated | C150: 2021_Q4 | D150: reported | E150: kEUR | F150: 2021-12-31 | G150: Q4 | H150: 2021 | I150: Recognition (reversal) of impairment losses on financial instruments | J150: Macedonia | K150: -12
B151: cumulated | C151: 2021_Q4 | D151: reported | E151: kEUR | F151: 2021-12-31 | G151: Q4 | H151: 2021 | I151: Recognition (reversal) of impairment losses on financial instruments | J151: Romania | K151: -68
B152: cumulated | C152: 2021_Q4 | D152: reported | E152: kEUR | F152: 2021-12-31 | G152: Q4 | H152: 2021 | I152: Recognition (reversal) of impairment losses on financial instruments | J152: Serbia | K152: 93
B153: cumulated | C153: 2021_Q4 | D153: reported | E153: kEUR | F153: 2021-12-31 | G153: Q4 | H153: 2021 | I153: Recognition (reversal) of impairment losses on financial instruments | J153: Turkey | K153: -524
B154: cumulated | C154: 2021_Q4 | D154: reported | E154: kEUR | F154: 2021-12-31 | G154: Q4 | H154: 2021 | I154: Recognition (reversal) of impairment losses on financial instruments | J154: Western Europe | K154: -5
B155: cumulated | C155: 2021_Q4 | D155: reported | E155: kEUR | F155: 2021-12-31 | G155: Q4 | H155: 2021 | I155: Recognition (reversal) of impairment losses on financial instruments | J155: Latin America | K155: 5
B156: cumulated | C156: 2021_Q4 | D156: reported | E156: kEUR | F156: 2021-12-31 | G156: Q4 | H156: 2021 | I156: Recognition (reversal) of impairment losses on financial instruments | J156: Central Europe | K156: 4
B157: cumulated | C157: 2021_Q4 | D157: reported | E157: kEUR | F157: 2021-12-31 | G157: Q4 | H157: 2021 | I157: Recognition (reversal) of impairment losses on financial instruments | J157: Other | K157: -6
B158: cumulated | C158: 2021_Q4 | D158: reported | E158: kEUR | F158: 2021-12-31 | G158: Q4 | H158: 2021 | I158: Recognition (reversal) of impairment losses on financial instruments | J158: Eliminations | K158: 0
B159: cumulated | C159: 2021_Q4 | D159: reported | E159: kEUR | F159: 2021-12-31 | G159: Q4 | H159: 2021 | I159: Gross profit on sales | J159: Bosnia | K159: 2765
B160: cumulated | C160: 2021_Q4 | D160: reported | E160: kEUR | F160: 2021-12-31 | G160: Q4 | H160: 2021 | I160: Gross profit on sales | J160: Croatia | K160: 13506
B161: cumulated | C161: 2021_Q4 | D161: reported | E161: kEUR | F161: 2021-12-31 | G161: Q4 | H161: 2021 | I161: Gross profit on sales | J161: Macedonia | K161: 4661
B162: cumulated | C162: 2021_Q4 | D162: reported | E162: kEUR | F162: 2021-12-31 | G162: Q4 | H162: 2021 | I162: Gross profit on sales | J162: Romania | K162: 5769
B163: cumulated | C163: 2021_Q4 | D163: reported | E163: kEUR | F163: 2021-12-31 | G163: Q4 | H163: 2021 | I163: Gross profit on sales | J163: Serbia | K163: 19644
B164: cumulated | C164: 2021_Q4 | D164: reported | E164: kEUR | F164: 2021-12-31 | G164: Q4 | H164: 2021 | I164: Gross profit on sales | J164: Turkey | K164: 10535
B165: cumulated | C165: 2021_Q4 | D165: reported | E165: kEUR | F165: 2021-12-31 | G165: Q4 | H165: 2021 | I165: Gross profit on sales | J165: Western Europe | K165: 5312
B166: cumulated | C166: 2021_Q4 | D166: reported | E166: kEUR | F166: 2021-12-31 | G166: Q4 | H166: 2021 | I166: Gross profit on sales | J166: Latin America | K166: 1183
B167: cumulated | C167: 2021_Q4 | D167: reported | E167: kEUR | F167: 2021-12-31 | G167: Q4 | H167: 2021 | I167: Gross profit on sales | J167: Central Europe | K167: 2127
B168: cumulated | C168: 2021_Q4 | D168: reported | E168: kEUR | F168: 2021-12-31 | G168: Q4 | H168: 2021 | I168: Gross profit on sales | J168: Other | K168: 4404
B169: cumulated | C169: 2021_Q4 | D169: reported | E169: kEUR | F169: 2021-12-31 | G169: Q4 | H169: 2021 | I169: Gross profit on sales | J169: Eliminations | K169: -739
B170: cumulated | C170: 2021_Q4 | D170: reported | E170: kEUR | F170: 2021-12-31 | G170: Q4 | H170: 2021 | I170: Selling costs | J170: Bosnia | K170: -602
B171: cumulated | C171: 2021_Q4 | D171: reported | E171: kEUR | F171: 2021-12-31 | G171: Q4 | H171: 2021 | I171: Selling costs | J171: Croatia | K171: -3040
B172: cumulated | C172: 2021_Q4 | D172: reported | E172: kEUR | F172: 2021-12-31 | G172: Q4 | H172: 2021 | I172: Selling costs | J172: Macedonia | K172: -960
B173: cumulated | C173: 2021_Q4 | D173: reported | E173: kEUR | F173: 2021-12-31 | G173: Q4 | H173: 2021 | I173: Selling costs | J173: Romania | K173: -2054
B174: cumulated | C174: 2021_Q4 | D174: reported | E174: kEUR | F174: 2021-12-31 | G174: Q4 | H174: 2021 | I174: Selling costs | J174: Serbia | K174: -4336
B175: cumulated | C175: 2021_Q4 | D175: reported | E175: kEUR | F175: 2021-12-31 | G175: Q4 | H175: 2021 | I175: Selling costs | J175: Turkey | K175: -1970
B176: cumulated | C176: 2021_Q4 | D176: reported | E176: kEUR | F176: 2021-12-31 | G176: Q4 | H176: 2021 | I176: Selling costs | J176: Western Europe | K176: -558
B177: cumulated | C177: 2021_Q4 | D177: reported | E177: kEUR | F177: 2021-12-31 | G177: Q4 | H177: 2021 | I177: Selling costs | J177: Latin America | K177: -234
B178: cumulated | C178: 2021_Q4 | D178: reported | E178: kEUR | F178: 2021-12-31 | G178: Q4 | H178: 2021 | I178: Selling costs | J178: Central Europe | K178: -870
B179: cumulated | C179: 2021_Q4 | D179: reported | E179: kEUR | F179: 2021-12-31 | G179: Q4 | H179: 2021 | I179: Selling costs | J179: Other | K179: -772
B180: cumulated | C180: 2021_Q4 | D180: reported | E180: kEUR | F180: 2021-12-31 | G180: Q4 | H180: 2021 | I180: Selling costs | J180: Eliminations | K180: 407
B181: cumulated | C181: 2021_Q4 | D181: reported | E181: kEUR | F181: 2021-12-31 | G181: Q4 | H181: 2021 | I181: General and administrative expenses | J181: Bosnia | K181: -661
B182: cumulated | C182: 2021_Q4 | D182: reported | E182: kEUR | F182: 2021-12-31 | G182: Q4 | H182: 2021 | I182: General and administrative expenses | J182: Croatia | K182: -2639
B183: cumulated | C183: 2021_Q4 | D183: reported | E183: kEUR | F183: 2021-12-31 | G183: Q4 | H183: 2021 | I183: General and administrative expenses | J183: Macedonia | K183: -956
B184: cumulated | C184: 2021_Q4 | D184: reported | E184: kEUR | F184: 2021-12-31 | G184: Q4 | H184: 2021 | I184: General and administrative expenses | J184: Romania | K184: -1751
B185: cumulated | C185: 2021_Q4 | D185: reported | E185: kEUR | F185: 2021-12-31 | G185: Q4 | H185: 2021 | I185: General and administrative expenses | J185: Serbia | K185: -3354
B186: cumulated | C186: 2021_Q4 | D186: reported | E186: kEUR | F186: 2021-12-31 | G186: Q4 | H186: 2021 | I186: General and administrative expenses | J186: Turkey | K186: -1972
B187: cumulated | C187: 2021_Q4 | D187: reported | E187: kEUR | F187: 2021-12-31 | G187: Q4 | H187: 2021 | I187: General and administrative expenses | J187: Western Europe | K187: -1417
B188: cumulated | C188: 2021_Q4 | D188: reported | E188: kEUR | F188: 2021-12-31 | G188: Q4 | H188: 2021 | I188: General and administrative expenses | J188: Latin America | K188: -764
B189: cumulated | C189: 2021_Q4 | D189: reported | E189: kEUR | F189: 2021-12-31 | G189: Q4 | H189: 2021 | I189: General and administrative expenses | J189: Central Europe | K189: -585
B190: cumulated | C190: 2021_Q4 | D190: reported | E190: kEUR | F190: 2021-12-31 | G190: Q4 | H190: 2021 | I190: General and administrative expenses | J190: Other | K190: -906
B191: cumulated | C191: 2021_Q4 | D191: reported | E191: kEUR | F191: 2021-12-31 | G191: Q4 | H191: 2021 | I191: General and administrative expenses | J191: Eliminations | K191: 143
B192: cumulated | C192: 2021_Q4 | D192: reported | E192: kEUR | F192: 2021-12-31 | G192: Q4 | H192: 2021 | I192: Net profit (loss) on sales | J192: Bosnia | K192: 1502
B193: cumulated | C193: 2021_Q4 | D193: reported | E193: kEUR | F193: 2021-12-31 | G193: Q4 | H193: 2021 | I193: Net profit (loss) on sales | J193: Croatia | K193: 7827
B194: cumulated | C194: 2021_Q4 | D194: reported | E194: kEUR | F194: 2021-12-31 | G194: Q4 | H194: 2021 | I194: Net profit (loss) on sales | J194: Macedonia | K194: 2745
B195: cumulated | C195: 2021_Q4 | D195: reported | E195: kEUR | F195: 2021-12-31 | G195: Q4 | H195: 2021 | I195: Net profit (loss) on sales | J195: Romania | K195: 1964
B196: cumulated | C196: 2021_Q4 | D196: reported | E196: kEUR | F196: 2021-12-31 | G196: Q4 | H196: 2021 | I196: Net profit (loss) on sales | J196: Serbia | K196: 11954
B197: cumulated | C197: 2021_Q4 | D197: reported | E197: kEUR | F197: 2021-12-31 | G197: Q4 | H197: 2021 | I197: Net profit (loss) on sales | J197: Turkey | K197: 6593
B198: cumulated | C198: 2021_Q4 | D198: reported | E198: kEUR | F198: 2021-12-31 | G198: Q4 | H198: 2021 | I198: Net profit (loss) on sales | J198: Western Europe | K198: 3337
B199: cumulated | C199: 2021_Q4 | D199: reported | E199: kEUR | F199: 2021-12-31 | G199: Q4 | H199: 2021 | I199: Net profit (loss) on sales | J199: Latin America | K199: 185
B200: cumulated | C200: 2021_Q4 | D200: reported | E200: kEUR | F200: 2021-12-31 | G200: Q4 | H200: 2021 | I200: Net profit (loss) on sales | J200: Central Europe | K200: 672
B201: cumulated | C201: 2021_Q4 | D201: reported | E201: kEUR | F201: 2021-12-31 | G201: Q4 | H201: 2021 | I201: Net profit (loss) on sales | J201: Other | K201: 2726
B202: cumulated | C202: 2021_Q4 | D202: reported | E202: kEUR | F202: 2021-12-31 | G202: Q4 | H202: 2021 | I202: Net profit (loss) on sales | J202: Eliminations | K202: -189
B203: cumulated | C203: 2021_Q4 | D203: reported | E203: kEUR | F203: 2021-12-31 | G203: Q4 | H203: 2021 | I203: Other operating income | J203: Bosnia | K203: 18
... 4297 more rows

Sheet Countries_raw (hidden)
A2: amount_type | B2: report code | C2: type | D2: currency | E2: period | F2: Quarter | G2: Year | H2: Position | I2: Bosnia | J2: Croatia | K2: Macedonia | L2: Romania | M2: Serbia | N2: Turkey | O2: Western Europe | P2: Latin America | Q2: Central Europe | R2: Other | S2: Eliminations | T2: Czech Republic &Slovakia | U2: Hiperinflation
A3: cumulated | B3: 2021_Q4 | C3: reported | D3: kPLN | E3: 31 December 2021 | F3: Q4 | G3: =RIGHT(Table7[[#This Row],[period]],4) -> 2021 | H3: Sales revenues | I3: 35457 | J3: 177980 | K3: 68137 | L3: 172279 | M3: 339220 | N3: 102769 | O3: 155116 | P3: 22078 | Q3: 36067 | R3: 77344 | S3: -39798
A4: cumulated | B4: 2021_Q4 | C4: reported | D4: kPLN | E4: 31 December 2021 | F4: Q4 | G4: =RIGHT(Table7[[#This Row],[period]],4) -> 2021 | H4: Cost of sales | I4: -22735 | J4: -116614 | K4: -46746 | L4: -145558 | M4: -249726 | N4: -52145 | O4: -130778 | P4: -16685 | Q4: -26347 | R4: -57162 | S4: 36412
A5: cumulated | B5: 2021_Q4 | C5: reported | D5: kPLN | E5: 31 December 2021 | F5: Q4 | G5: =RIGHT(Table7[[#This Row],[period]],4) -> 2021 | H5: Recognition (reversal) of impairment losses on financial instruments | I5: -65 | J5: 460 | K5: -56 | L5: -312 | M5: 424 | N5: -2398 | O5: -21 | P5: 22 | Q5: 18 | R5: -30 | S5: 1
A6: cumulated | B6: 2021_Q4 | C6: reported | D6: kPLN | E6: 31 December 2021 | F6: Q4 | G6: =RIGHT(Table7[[#This Row],[period]],4) -> 2021 | H6: Gross profit on sales | I6: 12657 | J6: 61826 | K6: 21335 | L6: 26409 | M6: 89918 | N6: 48226 | O6: 24317 | P6: 5415 | Q6: 9738 | R6: 20152 | S6: -3385
A7: cumulated | B7: 2021_Q4 | C7: reported | D7: kPLN | E7: 31 December 2021 | F7: Q4 | G7: =RIGHT(Table7[[#This Row],[period]],4) -> 2021 | H7: Selling costs | I7: -2754 | J7: -13914 | K7: -4395 | L7: -9400 | M7: -19846 | N7: -9016 | O7: -2553 | P7: -1069 | Q7: -3984 | R7: -3542 | S7: 1861
A8: cumulated | B8: 2021_Q4 | C8: reported | D8: kPLN | E8: 31 December 2021 | F8: Q4 | G8: =RIGHT(Table7[[#This Row],[period]],4) -> 2021 | H8: General and administrative expenses | I8: -3027 | J8: -12079 | K8: -4377 | L8: -8015 | M8: -15351 | N8: -9025 | O8: -6488 | P8: -3496 | Q8: -2677 | R8: -4151 | S8: 653
A9: cumulated | B9: 2021_Q4 | C9: reported | D9: kPLN | E9: 31 December 2021 | F9: Q4 | G9: =RIGHT(Table7[[#This Row],[period]],4) -> 2021 | H9: Net profit (loss) on sales | I9: 6876 | J9: 35833 | K9: 12563 | L9: 8994 | M9: 54721 | N9: 30185 | O9: 15276 | P9: 850 | Q9: 3077 | R9: 12459 | S9: -871
A10: cumulated | B10: 2021_Q4 | C10: reported | D10: kPLN | E10: 31 December 2021 | F10: Q4 | G10: =RIGHT(Table7[[#This Row],[period]],4) -> 2021 | H10: Other operating income | I10: 82 | J10: 1303 | K10: 261 | L10: 253 | M10: 594 | N10: 254 | O10: 202 | P10: 40 | Q10: 9 | R10: 154 | S10: -129
A11: cumulated | B11: 2021_Q4 | C11: reported | D11: kPLN | E11: 31 December 2021 | F11: Q4 | G11: =RIGHT(Table7[[#This Row],[period]],4) -> 2021 | H11: Other operating expenses | I11: -38 | J11: -486 | K11: -74 | L11: -350 | M11: -264 | N11: -181 | O11: -22 | P11: -32 | Q11: -63 | R11: -131 | S11: 106
A12: cumulated | B12: 2021_Q4 | C12: reported | D12: kPLN | E12: 31 December 2021 | F12: Q4 | G12: =RIGHT(Table7[[#This Row],[period]],4) -> 2021 | H12: Share of profits of associates | I12: 0 | J12: 0 | K12: 0 | L12: 0 | M12: 0 | N12: 0 | O12: 0 | P12: 0 | Q12: 0 | R12: 0 | S12: 0
A13: cumulated | B13: 2021_Q4 | C13: reported | D13: kPLN | E13: 31 December 2021 | F13: Q4 | G13: =RIGHT(Table7[[#This Row],[period]],4) -> 2021 | H13: Operating profit (loss) | I13: 6920 | J13: 36650 | K13: 12750 | L13: 8897 | M13: 55051 | N13: 30258 | O13: 15456 | P13: 858 | Q13: 3023 | R13: 12482 | S13: -894
A14: cumulated | B14: 2021_Q4 | C14: reported | D14: kEUR | E14: 31 December 2021 | F14: Q4 | G14: =RIGHT(Table7[[#This Row],[period]],4) -> 2021 | H14: Sales revenues | I14: 7746 | J14: 38881 | K14: 14885 | L14: 37636 | M14: 74106 | N14: 22451 | O14: 33887 | P14: 4823 | Q14: 7879 | R14: 16897 | S14: -8694
A15: cumulated | B15: 2021_Q4 | C15: reported | D15: kEUR | E15: 31 December 2021 | F15: Q4 | G15: =RIGHT(Table7[[#This Row],[period]],4) -> 2021 | H15: Cost of sales | I15: -4967 | J15: -25475 | K15: -10212 | L15: -31799 | M15: -54555 | N15: -11392 | O15: -28570 | P15: -3645 | Q15: -5756 | R15: -12487 | S15: 7955
A16: cumulated | B16: 2021_Q4 | C16: reported | D16: kEUR | E16: 31 December 2021 | F16: Q4 | G16: =RIGHT(Table7[[#This Row],[period]],4) -> 2021 | H16: Recognition (reversal) of impairment losses on financial instruments | I16: -14 | J16: 100 | K16: -12 | L16: -68 | M16: 93 | N16: -524 | O16: -5 | P16: 5 | Q16: 4 | R16: -6 | S16: 0
A17: cumulated | B17: 2021_Q4 | C17: reported | D17: kEUR | E17: 31 December 2021 | F17: Q4 | G17: =RIGHT(Table7[[#This Row],[period]],4) -> 2021 | H17: Gross profit on sales | I17: 2765 | J17: 13506 | K17: 4661 | L17: 5769 | M17: 19644 | N17: 10535 | O17: 5312 | P17: 1183 | Q17: 2127 | R17: 4404 | S17: -739
A18: cumulated | B18: 2021_Q4 | C18: reported | D18: kEUR | E18: 31 December 2021 | F18: Q4 | G18: =RIGHT(Table7[[#This Row],[period]],4) -> 2021 | H18: Selling costs | I18: -602 | J18: -3040 | K18: -960 | L18: -2054 | M18: -4336 | N18: -1970 | O18: -558 | P18: -234 | Q18: -870 | R18: -772 | S18: 407
A19: cumulated | B19: 2021_Q4 | C19: reported | D19: kEUR | E19: 31 December 2021 | F19: Q4 | G19: =RIGHT(Table7[[#This Row],[period]],4) -> 2021 | H19: General and administrative expenses | I19: -661 | J19: -2639 | K19: -956 | L19: -1751 | M19: -3354 | N19: -1972 | O19: -1417 | P19: -764 | Q19: -585 | R19: -906 | S19: 143
A20: cumulated | B20: 2021_Q4 | C20: reported | D20: kEUR | E20: 31 December 2021 | F20: Q4 | G20: =RIGHT(Table7[[#This Row],[period]],4) -> 2021 | H20: Net profit (loss) on sales | I20: 1502 | J20: 7827 | K20: 2745 | L20: 1964 | M20: 11954 | N20: 6593 | O20: 3337 | P20: 185 | Q20: 672 | R20: 2726 | S20: -189
A21: cumulated | B21: 2021_Q4 | C21: reported | D21: kEUR | E21: 31 December 2021 | F21: Q4 | G21: =RIGHT(Table7[[#This Row],[period]],4) -> 2021 | H21: Other operating income | I21: 18 | J21: 285 | K21: 57 | L21: 55 | M21: 130 | N21: 55 | O21: 44 | P21: 9 | Q21: 2 | R21: 34 | S21: -28
A22: cumulated | B22: 2021_Q4 | C22: reported | D22: kEUR | E22: 31 December 2021 | F22: Q4 | G22: =RIGHT(Table7[[#This Row],[period]],4) -> 2021 | H22: Other operating expenses | I22: -8 | J22: -106 | K22: -16 | L22: -76 | M22: -58 | N22: -40 | O22: -5 | P22: -7 | Q22: -14 | R22: -29 | S22: 23
A23: cumulated | B23: 2021_Q4 | C23: reported | D23: kEUR | E23: 31 December 2021 | F23: Q4 | G23: =RIGHT(Table7[[#This Row],[period]],4) -> 2021 | H23: Share of profits of associates | I23: 0 | J23: 0 | K23: 0 | L23: 0 | M23: 0 | N23: 0 | O23: 0 | P23: 0 | Q23: 0 | R23: 0 | S23: 0
A24: cumulated | B24: 2021_Q4 | C24: reported | D24: kEUR | E24: 31 December 2021 | F24: Q4 | G24: =RIGHT(Table7[[#This Row],[period]],4) -> 2021 | H24: Operating profit (loss) | I24: 1512 | J24: 8006 | K24: 2786 | L24: 1943 | M24: 12026 | N24: 6608 | O24: 3376 | P24: 187 | Q24: 660 | R24: 2731 | S24: -194
A25: cumulated | B25: 2021_Q4 | C25: restated | D25: kPLN | E25: 31 December 2020 | F25: Q4 | G25: =RIGHT(Table7[[#This Row],[period]],4) -> 2020 | H25: Sales revenues | I25: 41428 | J25: 152840 | K25: 72397 | L25: 146310 | M25: 338343 | N25: 84392 | O25: 116573 | P25: 19802 | Q25: 35563 | R25: 65738 | S25: -46896
A26: cumulated | B26: 2021_Q4 | C26: restated | D26: kPLN | E26: 31 December 2020 | F26: Q4 | G26: =RIGHT(Table7[[#This Row],[period]],4) -> 2020 | H26: Cost of sales | I26: -31507 | J26: -107807 | K26: -52759 | L26: -122852 | M26: -263942 | N26: -42017 | O26: -99098 | P26: -16016 | Q26: -25444 | R26: -48251 | S26: 44872
A27: cumulated | B27: 2021_Q4 | C27: restated | D27: kPLN | E27: 31 December 2020 | F27: Q4 | G27: =RIGHT(Table7[[#This Row],[period]],4) -> 2020 | H27: Recognition (reversal) of impairment losses on financial instruments | I27: 20 | J27: -555 | K27: -48 | L27: -518 | M27: 1643 | N27: -293 | O27: 0 | P27: -38 | Q27: -122 | R27: -4 | S27: -2
A28: cumulated | B28: 2021_Q4 | C28: restated | D28: kPLN | E28: 31 December 2020 | F28: Q4 | G28: =RIGHT(Table7[[#This Row],[period]],4) -> 2020 | H28: Gross profit on sales | I28: 9941 | J28: 44478 | K28: 19590 | L28: 22940 | M28: 76044 | N28: 42082 | O28: 17475 | P28: 3748 | Q28: 9997 | R28: 17483 | S28: -2026
A29: cumulated | B29: 2021_Q4 | C29: restated | D29: kPLN | E29: 31 December 2020 | F29: Q4 | G29: =RIGHT(Table7[[#This Row],[period]],4) -> 2020 | H29: Selling costs | I29: -2228 | J29: -8934 | K29: -3634 | L29: -8263 | M29: -16681 | N29: -7765 | O29: -2850 | P29: -896 | Q29: -2590 | R29: -3044 | S29: 1342
A30: cumulated | B30: 2021_Q4 | C30: restated | D30: kPLN | E30: 31 December 2020 | F30: Q4 | G30: =RIGHT(Table7[[#This Row],[period]],4) -> 2020 | H30: General and administrative expenses | I30: -2382 | J30: -9134 | K30: -3894 | L30: -7568 | M30: -13476 | N30: -8197 | O30: -6291 | P30: -3630 | Q30: -2918 | R30: -3684 | S30: -313
A31: cumulated | B31: 2021_Q4 | C31: restated | D31: kPLN | E31: 31 December 2020 | F31: Q4 | G31: =RIGHT(Table7[[#This Row],[period]],4) -> 2020 | H31: Net profit (loss) on sales | I31: 5331 | J31: 26410 | K31: 12062 | L31: 7109 | M31: 45887 | N31: 26120 | O31: 8334 | P31: -778 | Q31: 4489 | R31: 10755 | S31: -997
A32: cumulated | B32: 2021_Q4 | C32: restated | D32: kPLN | E32: 31 December 2020 | F32: Q4 | G32: =RIGHT(Table7[[#This Row],[period]],4) -> 2020 | H32: Other operating income | I32: 72 | J32: 1083 | K32: 140 | L32: 78 | M32: 809 | N32: 361 | O32: 465 | P32: 22 | Q32: 84 | R32: 354 | S32: -495
A33: cumulated | B33: 2021_Q4 | C33: restated | D33: kPLN | E33: 31 December 2020 | F33: Q4 | G33: =RIGHT(Table7[[#This Row],[period]],4) -> 2020 | H33: Other operating expenses | I33: -15 | J33: -864 | K33: -8 | L33: -93 | M33: -901 | N33: -51 | O33: -906 | P33: -229 | Q33: -63 | R33: -114 | S33: 430
A34: cumulated | B34: 2021_Q4 | C34: restated | D34: kPLN | E34: 31 December 2020 | F34: Q4 | G34: =RIGHT(Table7[[#This Row],[period]],4) -> 2020 | H34: Share of profits of associates | I34: 0 | J34: 0 | K34: 0 | L34: 0 | M34: 0 | N34: 0 | O34: 0 | P34: 0 | Q34: 0 | R34: 0 | S34: 0
A35: cumulated | B35: 2021_Q4 | C35: restated | D35: kPLN | E35: 31 December 2020 | F35: Q4 | G35: =RIGHT(Table7[[#This Row],[period]],4) -> 2020 | H35: Operating profit (loss) | I35: 5388 | J35: 26629 | K35: 12194 | L35: 7094 | M35: 45795 | N35: 26430 | O35: 7893 | P35: -985 | Q35: 4510 | R35: 10995 | S35: -1062
A36: cumulated | B36: 2021_Q4 | C36: restated | D36: kEUR | E36: 31 December 2020 | F36: Q4 | G36: =RIGHT(Table7[[#This Row],[period]],4) -> 2020 | H36: Sales revenues | I36: 9259 | J36: 34161 | K36: 16181 | L36: 32701 | M36: 75622 | N36: 18862 | O36: 26055 | P36: 4426 | Q36: 7949 | R36: 14691 | S36: -10482
A37: cumulated | B37: 2021_Q4 | C37: restated | D37: kEUR | E37: 31 December 2020 | F37: Q4 | G37: =RIGHT(Table7[[#This Row],[period]],4) -> 2020 | H37: Cost of sales | I37: -7042 | J37: -24095 | K37: -11792 | L37: -27458 | M37: -58993 | N37: -9391 | O37: -22149 | P37: -3580 | Q37: -5687 | R37: -10784 | S37: 10029
A38: cumulated | B38: 2021_Q4 | C38: restated | D38: kEUR | E38: 31 December 2020 | F38: Q4 | G38: =RIGHT(Table7[[#This Row],[period]],4) -> 2020 | H38: Recognition (reversal) of impairment losses on financial instruments | I38: 4 | J38: -124 | K38: -11 | L38: -116 | M38: 367 | N38: -65 | O38: 0 | P38: -8 | Q38: -27 | R38: 0 | S38: 0
A39: cumulated | B39: 2021_Q4 | C39: restated | D39: kEUR | E39: 31 December 2020 | F39: Q4 | G39: =RIGHT(Table7[[#This Row],[period]],4) -> 2020 | H39: Gross profit on sales | I39: 2221 | J39: 9942 | K39: 4378 | L39: 5127 | M39: 16996 | N39: 9406 | O39: 3906 | P39: 838 | Q39: 2235 | R39: 3907 | S39: -453
A40: cumulated | B40: 2021_Q4 | C40: restated | D40: kEUR | E40: 31 December 2020 | F40: Q4 | G40: =RIGHT(Table7[[#This Row],[period]],4) -> 2020 | H40: Selling costs | I40: -498 | J40: -1997 | K40: -812 | L40: -1847 | M40: -3728 | N40: -1736 | O40: -637 | P40: -200 | Q40: -579 | R40: -681 | S40: 300
A41: cumulated | B41: 2021_Q4 | C41: restated | D41: kEUR | E41: 31 December 2020 | F41: Q4 | G41: =RIGHT(Table7[[#This Row],[period]],4) -> 2020 | H41: General and administrative expenses | I41: -532 | J41: -2042 | K41: -870 | L41: -1691 | M41: -3012 | N41: -1832 | O41: -1406 | P41: -811 | Q41: -652 | R41: -824 | S41: -70
A42: cumulated | B42: 2021_Q4 | C42: restated | D42: kEUR | E42: 31 December 2020 | F42: Q4 | G42: =RIGHT(Table7[[#This Row],[period]],4) -> 2020 | H42: Net profit (loss) on sales | I42: 1191 | J42: 5903 | K42: 2696 | L42: 1589 | M42: 10256 | N42: 5838 | O42: 1863 | P42: -173 | Q42: 1004 | R42: 2402 | S42: -223
A43: cumulated | B43: 2021_Q4 | C43: restated | D43: kEUR | E43: 31 December 2020 | F43: Q4 | G43: =RIGHT(Table7[[#This Row],[period]],4) -> 2020 | H43: Other operating income | I43: 16 | J43: 242 | K43: 31 | L43: 17 | M43: 181 | N43: 81 | O43: 104 | P43: 5 | Q43: 19 | R43: 78 | S43: -111
A44: cumulated | B44: 2021_Q4 | C44: restated | D44: kEUR | E44: 31 December 2020 | F44: Q4 | G44: =RIGHT(Table7[[#This Row],[period]],4) -> 2020 | H44: Other operating expenses | I44: -3 | J44: -193 | K44: -2 | L44: -21 | M44: -201 | N44: -11 | O44: -202 | P44: -51 | Q44: -14 | R44: -25 | S44: 96
A45: cumulated | B45: 2021_Q4 | C45: restated | D45: kEUR | E45: 31 December 2020 | F45: Q4 | G45: =RIGHT(Table7[[#This Row],[period]],4) -> 2020 | H45: Share of profits of associates | I45: 0 | J45: 0 | K45: 0 | L45: 0 | M45: 0 | N45: 0 | O45: 0 | P45: 0 | Q45: 0 | R45: 0 | S45: 0
A46: cumulated | B46: 2021_Q4 | C46: restated | D46: kEUR | E46: 31 December 2020 | F46: Q4 | G46: =RIGHT(Table7[[#This Row],[period]],4) -> 2020 | H46: Operating profit (loss) | I46: 1204 | J46: 5952 | K46: 2725 | L46: 1585 | M46: 10236 | N46: 5908 | O46: 1765 | P46: -219 | Q46: 1009 | R46: 2455 | S46: -238
A47: cumulated | B47: 2021_Q3 | C47: reported | D47: kPLN | E47: 30 September 2021 | F47: Q3 | G47: =RIGHT(Table7[[#This Row],[period]],4) -> 2021 | H47: Sales revenues | I47: 23863 | J47: 123217 | K47: 46469 | L47: 101921 | M47: 234428 | N47: 74317 | O47: 114576 | P47: 16488 | Q47: 26263 | R47: 54364 | S47: -25845
A48: cumulated | B48: 2021_Q3 | C48: reported | D48: kPLN | E48: 30 September 2021 | F48: Q3 | G48: =RIGHT(Table7[[#This Row],[period]],4) -> 2021 | H48: Cost of sales | I48: -15692 | J48: -84010 | K48: -31513 | L48: -84118 | M48: -168182 | N48: -39076 | O48: -96672 | P48: -12656 | Q48: -18739 | R48: -40859 | S48: 23763
A49: cumulated | B49: 2021_Q3 | C49: reported | D49: kPLN | E49: 30 September 2021 | F49: Q3 | G49: =RIGHT(Table7[[#This Row],[period]],4) -> 2021 | H49: Recognition (reversal) of impairment losses on financial instruments | I49: 0 | J49: 459 | K49: -64 | L49: -133 | M49: 253 | N49: -1429 | O49: 0 | P49: 33 | Q49: 12 | R49: -28 | S49: 1
A50: cumulated | B50: 2021_Q3 | C50: reported | D50: kPLN | E50: 30 September 2021 | F50: Q3 | G50: =RIGHT(Table7[[#This Row],[period]],4) -> 2021 | H50: Gross profit on sales | I50: 8171 | J50: 39666 | K50: 14892 | L50: 17670 | M50: 66499 | N50: 33812 | O50: 17904 | P50: 3865 | Q50: 7536 | R50: 13477 | S50: -2081
A51: cumulated | B51: 2021_Q3 | C51: reported | D51: kPLN | E51: 30 September 2021 | F51: Q3 | G51: =RIGHT(Table7[[#This Row],[period]],4) -> 2021 | H51: Selling costs | I51: -1638 | J51: -8698 | K51: -3431 | L51: -6723 | M51: -13233 | N51: -6094 | O51: -1831 | P51: -735 | Q51: -2538 | R51: -2535 | S51: 888
A52: cumulated | B52: 2021_Q3 | C52: reported | D52: kPLN | E52: 30 September 2021 | F52: Q3 | G52: =RIGHT(Table7[[#This Row],[period]],4) -> 2021 | H52: General and administrative expenses | I52: -2112 | J52: -8110 | K52: -3066 | L52: -5634 | M52: -10899 | N52: -6346 | O52: -4575 | P52: -2621 | Q52: -2201 | R52: -3027 | S52: 511
A53: cumulated | B53: 2021_Q3 | C53: reported | D53: kPLN | E53: 30 September 2021 | F53: Q3 | G53: =RIGHT(Table7[[#This Row],[period]],4) -> 2021 | H53: Net profit (loss) on sales | I53: 4421 | J53: 22858 | K53: 8395 | L53: 5313 | M53: 42367 | N53: 21372 | O53: 11498 | P53: 509 | Q53: 2797 | R53: 7915 | S53: -682
A54: cumulated | B54: 2021_Q3 | C54: reported | D54: kPLN | E54: 30 September 2021 | F54: Q3 | G54: =RIGHT(Table7[[#This Row],[period]],4) -> 2021 | H54: Other operating income | I54: 2 | J54: 331 | K54: 215 | L54: 239 | M54: 468 | N54: 242 | O54: 80 | P54: 29 | Q54: 9 | R54: 116 | S54: -120
A55: cumulated | B55: 2021_Q3 | C55: reported | D55: kPLN | E55: 30 September 2021 | F55: Q3 | G55: =RIGHT(Table7[[#This Row],[period]],4) -> 2021 | H55: Other operating expenses | I55: -26 | J55: -184 | K55: -23 | L55: -34 | M55: -125 | N55: -69 | O55: -55 | P55: -20 | Q55: -46 | R55: -61 | S55: 103
A56: cumulated | B56: 2021_Q3 | C56: reported | D56: kPLN | E56: 30 September 2021 | F56: Q3 | G56: =RIGHT(Table7[[#This Row],[period]],4) -> 2021 | H56: Share of profits of associates | I56: 0 | J56: 0 | K56: 0 | L56: 0 | M56: 0 | N56: 0 | O56: 0 | P56: 0 | Q56: 0 | R56: 0 | S56: 0
A57: cumulated | B57: 2021_Q3 | C57: reported | D57: kPLN | E57: 30 September 2021 | F57: Q3 | G57: =RIGHT(Table7[[#This Row],[period]],4) -> 2021 | H57: Operating profit (loss) | I57: 4397 | J57: 23005 | K57: 8587 | L57: 5518 | M57: 42710 | N57: 21545 | O57: 11523 | P57: 518 | Q57: 2760 | R57: 7970 | S57: -699
A58: cumulated | B58: 2021_Q3 | C58: reported | D58: kEUR | E58: 30 September 2021 | F58: Q3 | G58: =RIGHT(Table7[[#This Row],[period]],4) -> 2021 | H58: Sales revenues | I58: 5235 | J58: 27030 | K58: 10194 | L58: 22358 | M58: 51427 | N58: 16303 | O58: 25135 | P58: 3617 | Q58: 5761 | R58: 11926 | S58: -5670
A59: cumulated | B59: 2021_Q3 | C59: reported | D59: kEUR | E59: 30 September 2021 | F59: Q3 | G59: =RIGHT(Table7[[#This Row],[period]],4) -> 2021 | H59: Cost of sales | I59: -3442 | J59: -18429 | K59: -6913 | L59: -18453 | M59: -36894 | N59: -8572 | O59: -21207 | P59: -2776 | Q59: -4111 | R59: -8963 | S59: 5210
A60: cumulated | B60: 2021_Q3 | C60: reported | D60: kEUR | E60: 30 September 2021 | F60: Q3 | G60: =RIGHT(Table7[[#This Row],[period]],4) -> 2021 | H60: Recognition (reversal) of impairment losses on financial instruments | I60: 0 | J60: 101 | K60: -14 | L60: -29 | M60: 56 | N60: -313 | O60: 0 | P60: 7 | Q60: 3 | R60: -6 | S60: 0
A61: cumulated | B61: 2021_Q3 | C61: reported | D61: kEUR | E61: 30 September 2021 | F61: Q3 | G61: =RIGHT(Table7[[#This Row],[period]],4) -> 2021 | H61: Gross profit on sales | I61: 1793 | J61: 8702 | K61: 3267 | L61: 3876 | M61: 14589 | N61: 7418 | O61: 3928 | P61: 848 | Q61: 1653 | R61: 2957 | S61: -460
A62: cumulated | B62: 2021_Q3 | C62: reported | D62: kEUR | E62: 30 September 2021 | F62: Q3 | G62: =RIGHT(Table7[[#This Row],[period]],4) -> 2021 | H62: Selling costs | I62: -359 | J62: -1908 | K62: -753 | L62: -1475 | M62: -2903 | N62: -1337 | O62: -402 | P62: -161 | Q62: -557 | R62: -556 | S62: 195
A63: cumulated | B63: 2021_Q3 | C63: reported | D63: kEUR | E63: 30 September 2021 | F63: Q3 | G63: =RIGHT(Table7[[#This Row],[period]],4) -> 2021 | H63: General and administrative expenses | I63: -463 | J63: -1779 | K63: -673 | L63: -1236 | M63: -2391 | N63: -1392 | O63: -1004 | P63: -575 | Q63: -483 | R63: -664 | S63: 113
A64: cumulated | B64: 2021_Q3 | C64: reported | D64: kEUR | E64: 30 September 2021 | F64: Q3 | G64: =RIGHT(Table7[[#This Row],[period]],4) -> 2021 | H64: Net profit (loss) on sales | I64: 971 | J64: 5015 | K64: 1841 | L64: 1165 | M64: 9295 | N64: 4689 | O64: 2522 | P64: 112 | Q64: 613 | R64: 1737 | S64: -152
A65: cumulated | B65: 2021_Q3 | C65: reported | D65: kEUR | E65: 30 September 2021 | F65: Q3 | G65: =RIGHT(Table7[[#This Row],[period]],4) -> 2021 | H65: Other operating income | I65: 0 | J65: 73 | K65: 47 | L65: 52 | M65: 103 | N65: 53 | O65: 18 | P65: 6 | Q65: 2 | R65: 25 | S65: -28
A66: cumulated | B66: 2021_Q3 | C66: reported | D66: kEUR | E66: 30 September 2021 | F66: Q3 | G66: =RIGHT(Table7[[#This Row],[period]],4) -> 2021 | H66: Other operating expenses | I66: -6 | J66: -40 | K66: -5 | L66: -7 | M66: -27 | N66: -15 | O66: -12 | P66: -4 | Q66: -10 | R66: -13 | S66: 23
A67: cumulated | B67: 2021_Q3 | C67: reported | D67: kEUR | E67: 30 September 2021 | F67: Q3 | G67: =RIGHT(Table7[[#This Row],[period]],4) -> 2021 | H67: Share of profits of associates | I67: 0 | J67: 0 | K67: 0 | L67: 0 | M67: 0 | N67: 0 | O67: 0 | P67: 0 | Q67: 0 | R67: 0 | S67: 0
A68: cumulated | B68: 2021_Q3 | C68: reported | D68: kEUR | E68: 30 September 2021 | F68: Q3 | G68: =RIGHT(Table7[[#This Row],[period]],4) -> 2021 | H68: Operating profit (loss) | I68: 965 | J68: 5048 | K68: 1883 | L68: 1210 | M68: 9371 | N68: 4727 | O68: 2528 | P68: 114 | Q68: 605 | R68: 1749 | S68: -157
A69: cumulated | B69: 2021_Q3 | C69: restated | D69: kPLN | E69: 30 September 2020 | F69: Q3 | G69: =RIGHT(Table7[[#This Row],[period]],4) -> 2020 | H69: Sales revenues | I69: 30486 | J69: 110074 | K69: 52212 | L69: 84007 | M69: 217099 | N69: 60658 | O69: 82241 | P69: 14029 | Q69: 27126 | R69: 46089 | S69: -32198
A70: cumulated | B70: 2021_Q3 | C70: restated | D70: kPLN | E70: 30 September 2020 | F70: Q3 | G70: =RIGHT(Table7[[#This Row],[period]],4) -> 2020 | H70: Cost of sales | I70: -22878 | J70: -78371 | K70: -37236 | L70: -69517 | M70: -164263 | N70: -31015 | O70: -70544 | P70: -10969 | Q70: -18956 | R70: -32703 | S70: 30639
A71: cumulated | B71: 2021_Q3 | C71: restated | D71: kPLN | E71: 30 September 2020 | F71: Q3 | G71: =RIGHT(Table7[[#This Row],[period]],4) -> 2020 | H71: Recognition (reversal) of impairment losses on financial instruments | I71: 20 | J71: -589 | K71: -249 | L71: -63 | M71: 1633 | N71: -562 | O71: -151 | P71: 0 | Q71: -128 | R71: -124 | S71: 0
A72: cumulated | B72: 2021_Q3 | C72: restated | D72: kPLN | E72: 30 September 2020 | F72: Q3 | G72: =RIGHT(Table7[[#This Row],[period]],4) -> 2020 | H72: Gross profit on sales | I72: 7628 | J72: 31114 | K72: 14727 | L72: 14427 | M72: 54469 | N72: 29081 | O72: 11546 | P72: 3060 | Q72: 8042 | R72: 13262 | S72: -1559
A73: cumulated | B73: 2021_Q3 | C73: restated | D73: kPLN | E73: 30 September 2020 | F73: Q3 | G73: =RIGHT(Table7[[#This Row],[period]],4) -> 2020 | H73: Selling costs | I73: -1295 | J73: -6876 | K73: -2732 | L73: -5997 | M73: -11849 | N73: -5874 | O73: -2058 | P73: -876 | Q73: -1507 | R73: -1900 | S73: 682
A74: cumulated | B74: 2021_Q3 | C74: restated | D74: kPLN | E74: 30 September 2020 | F74: Q3 | G74: =RIGHT(Table7[[#This Row],[period]],4) -> 2020 | H74: General and administrative expenses | I74: -1661 | J74: -6439 | K74: -2718 | L74: -5390 | M74: -10291 | N74: -6232 | O74: -4727 | P74: -2608 | Q74: -2309 | R74: -2765 | S74: -69
A75: cumulated | B75: 2021_Q3 | C75: restated | D75: kPLN | E75: 30 September 2020 | F75: Q3 | G75: =RIGHT(Table7[[#This Row],[period]],4) -> 2020 | H75: Net profit (loss) on sales | I75: 4672 | J75: 17799 | K75: 9277 | L75: 3040 | M75: 32329 | N75: 16975 | O75: 4761 | P75: -424 | Q75: 4226 | R75: 8597 | S75: -946
A76: cumulated | B76: 2021_Q3 | C76: restated | D76: kPLN | E76: 30 September 2020 | F76: Q3 | G76: =RIGHT(Table7[[#This Row],[period]],4) -> 2020 | H76: Other operating income | I76: 28 | J76: 611 | K76: 130 | L76: 100 | M76: 492 | N76: 329 | O76: 96 | P76: 22 | Q76: 53 | R76: 211 | S76: -486
A77: cumulated | B77: 2021_Q3 | C77: restated | D77: kPLN | E77: 30 September 2020 | F77: Q3 | G77: =RIGHT(Table7[[#This Row],[period]],4) -> 2020 | H77: Other operating expenses | I77: -67 | J77: -733 | K77: -27 | L77: 0 | M77: -272 | N77: -32 | O77: -137 | P77: -118 | Q77: -10 | R77: -21 | S77: 469
A78: cumulated | B78: 2021_Q3 | C78: restated | D78: kPLN | E78: 30 September 2020 | F78: Q3 | G78: =RIGHT(Table7[[#This Row],[period]],4) -> 2020 | H78: Share of profits of associates | I78: 0 | J78: 0 | K78: 0 | L78: 0 | M78: 0 | N78: 0 | O78: 0 | P78: 0 | Q78: 0 | R78: 0 | S78: 0
A79: cumulated | B79: 2021_Q3 | C79: restated | D79: kPLN | E79: 30 September 2020 | F79: Q3 | G79: =RIGHT(Table7[[#This Row],[period]],4) -> 2020 | H79: Operating profit (loss) | I79: 4633 | J79: 17677 | K79: 9380 | L79: 3140 | M79: 32549 | N79: 17272 | O79: 4720 | P79: -520 | Q79: 4269 | R79: 8787 | S79: -963
A80: cumulated | B80: 2021_Q3 | C80: restated | D80: kEUR | E80: 30 September 2020 | F80: Q3 | G80: =RIGHT(Table7[[#This Row],[period]],4) -> 2020 | H80: Sales revenues | I80: 6863 | J80: 24780 | K80: 11754 | L80: 18912 | M80: 48874 | N80: 13655 | O80: 18514 | P80: 3158 | Q80: 6107 | R80: 10378 | S80: -7249
A81: cumulated | B81: 2021_Q3 | C81: restated | D81: kEUR | E81: 30 September 2020 | F81: Q3 | G81: =RIGHT(Table7[[#This Row],[period]],4) -> 2020 | H81: Cost of sales | I81: -5150 | J81: -17643 | K81: -8383 | L81: -15650 | M81: -36980 | N81: -6982 | O81: -15881 | P81: -2469 | Q81: -4267 | R81: -7365 | S81: 6898
A82: cumulated | B82: 2021_Q3 | C82: restated | D82: kEUR | E82: 30 September 2020 | F82: Q3 | G82: =RIGHT(Table7[[#This Row],[period]],4) -> 2020 | H82: Recognition (reversal) of impairment losses on financial instruments | I82: 5 | J82: -133 | K82: -56 | L82: -14 | M82: 368 | N82: -127 | O82: -34 | P82: 0 | Q82: -29 | R82: -28 | S82: 0
A83: cumulated | B83: 2021_Q3 | C83: restated | D83: kEUR | E83: 30 September 2020 | F83: Q3 | G83: =RIGHT(Table7[[#This Row],[period]],4) -> 2020 | H83: Gross profit on sales | I83: 1718 | J83: 7004 | K83: 3315 | L83: 3248 | M83: 12262 | N83: 6546 | O83: 2599 | P83: 689 | Q83: 1811 | R83: 2985 | S83: -351
A84: cumulated | B84: 2021_Q3 | C84: restated | D84: kEUR | E84: 30 September 2020 | F84: Q3 | G84: =RIGHT(Table7[[#This Row],[period]],4) -> 2020 | H84: Selling costs | I84: -292 | J84: -1548 | K84: -615 | L84: -1350 | M84: -2667 | N84: -1322 | O84: -463 | P84: -197 | Q84: -339 | R84: -429 | S84: 154
A85: cumulated | B85: 2021_Q3 | C85: restated | D85: kEUR | E85: 30 September 2020 | F85: Q3 | G85: =RIGHT(Table7[[#This Row],[period]],4) -> 2020 | H85: General and administrative expenses | I85: -374 | J85: -1450 | K85: -612 | L85: -1213 | M85: -2317 | N85: -1403 | O85: -1064 | P85: -587 | Q85: -520 | R85: -621 | S85: -16
A86: cumulated | B86: 2021_Q3 | C86: restated | D86: kEUR | E86: 30 September 2020 | F86: Q3 | G86: =RIGHT(Table7[[#This Row],[period]],4) -> 2020 | H86: Net profit (loss) on sales | I86: 1052 | J86: 4006 | K86: 2088 | L86: 685 | M86: 7278 | N86: 3821 | O86: 1072 | P86: -95 | Q86: 952 | R86: 1935 | S86: -213
A87: cumulated | B87: 2021_Q3 | C87: restated | D87: kEUR | E87: 30 September 2020 | F87: Q3 | G87: =RIGHT(Table7[[#This Row],[period]],4) -> 2020 | H87: Other operating income | I87: 6 | J87: 138 | K87: 29 | L87: 23 | M87: 111 | N87: 74 | O87: 22 | P87: 5 | Q87: 12 | R87: 46 | S87: -109
A88: cumulated | B88: 2021_Q3 | C88: restated | D88: kEUR | E88: 30 September 2020 | F88: Q3 | G88: =RIGHT(Table7[[#This Row],[period]],4) -> 2020 | H88: Other operating expenses | I88: -15 | J88: -165 | K88: -6 | L88: 0 | M88: -61 | N88: -7 | O88: -31 | P88: -27 | Q88: -2 | R88: -5 | S88: 106
A89: cumulated | B89: 2021_Q3 | C89: restated | D89: kEUR | E89: 30 September 2020 | F89: Q3 | G89: =RIGHT(Table7[[#This Row],[period]],4) -> 2020 | H89: Share of profits of associates | I89: 0 | J89: 0 | K89: 0 | L89: 0 | M89: 0 | N89: 0 | O89: 0 | P89: 0 | Q89: 0 | R89: 0 | S89: 0
A90: cumulated | B90: 2021_Q3 | C90: restated | D90: kEUR | E90: 30 September 2020 | F90: Q3 | G90: =RIGHT(Table7[[#This Row],[period]],4) -> 2020 | H90: Operating profit (loss) | I90: 1043 | J90: 3979 | K90: 2111 | L90: 708 | M90: 7328 | N90: 3888 | O90: 1063 | P90: -117 | Q90: 962 | R90: 1976 | S90: -216
A91: cumulated | B91: 2021_Q2 | C91: reported | D91: kPLN | E91: 30 June 2021 | F91: Q2 | G91: =RIGHT(Table7[[#This Row],[period]],4) -> 2021 | H91: Sales revenues | I91: 16781 | J91: 79443 | K91: 30050 | L91: 68641 | M91: 146349 | N91: 49382 | O91: 85443 | P91: 11295 | Q91: 18028 | R91: 37935 | S91: -17606 | T91: 0
A92: cumulated | B92: 2021_Q2 | C92: reported | D92: kPLN | E92: 30 June 2021 | F92: Q2 | G92: =RIGHT(Table7[[#This Row],[period]],4) -> 2021 | H92: Cost of sales | I92: -11144 | J92: -57010 | K92: -20225 | L92: -57480 | M92: -104535 | N92: -25119 | O92: -72851 | P92: -8677 | Q92: -12970 | R92: -28845 | S92: 16284 | T92: 0
A93: cumulated | B93: 2021_Q2 | C93: reported | D93: kPLN | E93: 30 June 2021 | F93: Q2 | G93: =RIGHT(Table7[[#This Row],[period]],4) -> 2021 | H93: Recognition (reversal) of impairment losses on financial instruments | I93: 0 | J93: 12 | K93: -50 | L93: 256 | M93: 304 | N93: -967 | O93: 0 | P93: 33 | Q93: 11 | R93: -17 | S93: -3 | T93: 0
A94: cumulated | B94: 2021_Q2 | C94: reported | D94: kPLN | E94: 30 June 2021 | F94: Q2 | G94: =RIGHT(Table7[[#This Row],[period]],4) -> 2021 | H94: Gross profit on sales | I94: 5637 | J94: 22445 | K94: 9775 | L94: 11417 | M94: 42118 | N94: 23296 | O94: 12592 | P94: 2651 | Q94: 5069 | R94: 9073 | S94: -1325 | T94: 0
A95: cumulated | B95: 2021_Q2 | C95: reported | D95: kPLN | E95: 30 June 2021 | F95: Q2 | G95: =RIGHT(Table7[[#This Row],[period]],4) -> 2021 | H95: Selling costs | I95: -1101 | J95: -5733 | K95: -2200 | L95: -4383 | M95: -8743 | N95: -3784 | O95: -1390 | P95: -470 | Q95: -1585 | R95: -2157 | S95: 536 | T95: 0
A96: cumulated | B96: 2021_Q2 | C96: reported | D96: kPLN | E96: 30 June 2021 | F96: Q2 | G96: =RIGHT(Table7[[#This Row],[period]],4) -> 2021 | H96: General and administrative expenses | I96: -1330 | J96: -5327 | K96: -2205 | L96: -3863 | M96: -7052 | N96: -4097 | O96: -3219 | P96: -1814 | Q96: -1477 | R96: -1832 | S96: 349 | T96: 0
A97: cumulated | B97: 2021_Q2 | C97: reported | D97: kPLN | E97: 30 June 2021 | F97: Q2 | G97: =RIGHT(Table7[[#This Row],[period]],4) -> 2021 | H97: Net profit (loss) on sales | I97: 3206 | J97: 11385 | K97: 5370 | L97: 3171 | M97: 26323 | N97: 15415 | O97: 7983 | P97: 367 | Q97: 2007 | R97: 5084 | S97: -440 | T97: 0
A98: cumulated | B98: 2021_Q2 | C98: reported | D98: kPLN | E98: 30 June 2021 | F98: Q2 | G98: =RIGHT(Table7[[#This Row],[period]],4) -> 2021 | H98: Other operating income | I98: 0 | J98: 287 | K98: 211 | L98: 231 | M98: 376 | N98: 132 | O98: 30 | P98: 7 | Q98: 8 | R98: 105 | S98: -113 | T98: 0
A99: cumulated | B99: 2021_Q2 | C99: reported | D99: kPLN | E99: 30 June 2021 | F99: Q2 | G99: =RIGHT(Table7[[#This Row],[period]],4) -> 2021 | H99: Other operating expenses | I99: -2 | J99: -165 | K99: -83 | L99: -1 | M99: -68 | N99: -45 | O99: -40 | P99: -19 | Q99: -32 | R99: -46 | S99: 98 | T99: 0
A100: cumulated | B100: 2021_Q2 | C100: reported | D100: kPLN | E100: 30 June 2021 | F100: Q2 | G100: =RIGHT(Table7[[#This Row],[period]],4) -> 2021 | H100: Share of profits of associates | I100: 0 | J100: 0 | K100: 0 | L100: 0 | M100: 0 | N100: 0 | O100: 0 | P100: 0 | Q100: 0 | R100: 0 | S100: 0 | T100: 0
A101: cumulated | B101: 2021_Q2 | C101: reported | D101: kPLN | E101: 30 June 2021 | F101: Q2 | G101: =RIGHT(Table7[[#This Row],[period]],4) -> 2021 | H101: Operating profit (loss) | I101: 3204 | J101: 11507 | K101: 5498 | L101: 3401 | M101: 26631 | N101: 15502 | O101: 7973 | P101: 355 | Q101: 1983 | R101: 5143 | S101: -455 | T101: 0
A102: cumulated | B102: 2021_Q2 | C102: reported | D102: kEUR | E102: 30 June 2021 | F102: Q2 | G102: =RIGHT(Table7[[#This Row],[period]],4) -> 2021 | H102: Sales revenues | I102: 3690 | J102: 17471 | K102: 6609 | L102: 15095 | M102: 32185 | N102: 10860 | O102: 18790 | P102: 2484 | Q102: 3965 | R102: 8343 | S102: -3873 | T102: 0
A103: cumulated | B103: 2021_Q2 | C103: reported | D103: kEUR | E103: 30 June 2021 | F103: Q2 | G103: =RIGHT(Table7[[#This Row],[period]],4) -> 2021 | H103: Cost of sales | I103: -2451 | J103: -12537 | K103: -4448 | L103: -12641 | M103: -22989 | N103: -5524 | O103: -16021 | P103: -1908 | Q103: -2852 | R103: -6344 | S103: 3583 | T103: 0
A104: cumulated | B104: 2021_Q2 | C104: reported | D104: kEUR | E104: 30 June 2021 | F104: Q2 | G104: =RIGHT(Table7[[#This Row],[period]],4) -> 2021 | H104: Recognition (reversal) of impairment losses on financial instruments | I104: 0 | J104: 3 | K104: -11 | L104: 56 | M104: 67 | N104: -213 | O104: 0 | P104: 7 | Q104: 2 | R104: -4 | S104: -1 | T104: 0
A105: cumulated | B105: 2021_Q2 | C105: reported | D105: kEUR | E105: 30 June 2021 | F105: Q2 | G105: =RIGHT(Table7[[#This Row],[period]],4) -> 2021 | H105: Gross profit on sales | I105: 1239 | J105: 4937 | K105: 2150 | L105: 2510 | M105: 9263 | N105: 5123 | O105: 2769 | P105: 583 | Q105: 1115 | R105: 1995 | S105: -291 | T105: 0
A106: cumulated | B106: 2021_Q2 | C106: reported | D106: kEUR | E106: 30 June 2021 | F106: Q2 | G106: =RIGHT(Table7[[#This Row],[period]],4) -> 2021 | H106: Selling costs | I106: -242 | J106: -1261 | K106: -484 | L106: -964 | M106: -1923 | N106: -832 | O106: -306 | P106: -103 | Q106: -349 | R106: -474 | S106: 118 | T106: 0
A107: cumulated | B107: 2021_Q2 | C107: reported | D107: kEUR | E107: 30 June 2021 | F107: Q2 | G107: =RIGHT(Table7[[#This Row],[period]],4) -> 2021 | H107: General and administrative expenses | I107: -292 | J107: -1171 | K107: -485 | L107: -850 | M107: -1551 | N107: -901 | O107: -708 | P107: -399 | Q107: -325 | R107: -403 | S107: 77 | T107: 0
A108: cumulated | B108: 2021_Q2 | C108: reported | D108: kEUR | E108: 30 June 2021 | F108: Q2 | G108: =RIGHT(Table7[[#This Row],[period]],4) -> 2021 | H108: Net profit (loss) on sales | I108: 705 | J108: 2505 | K108: 1181 | L108: 696 | M108: 5789 | N108: 3390 | O108: 1755 | P108: 81 | Q108: 441 | R108: 1118 | S108: -96 | T108: 0
A109: cumulated | B109: 2021_Q2 | C109: reported | D109: kEUR | E109: 30 June 2021 | F109: Q2 | G109: =RIGHT(Table7[[#This Row],[period]],4) -> 2021 | H109: Other operating income | I109: 0 | J109: 63 | K109: 46 | L109: 51 | M109: 83 | N109: 29 | O109: 7 | P109: 2 | Q109: 2 | R109: 23 | S109: -27 | T109: 0
A110: cumulated | B110: 2021_Q2 | C110: reported | D110: kEUR | E110: 30 June 2021 | F110: Q2 | G110: =RIGHT(Table7[[#This Row],[period]],4) -> 2021 | H110: Other operating expenses | I110: 0 | J110: -36 | K110: -18 | L110: 0 | M110: -15 | N110: -10 | O110: -9 | P110: -4 | Q110: -7 | R110: -10 | S110: 22 | T110: 0
A111: cumulated | B111: 2021_Q2 | C111: reported | D111: kEUR | E111: 30 June 2021 | F111: Q2 | G111: =RIGHT(Table7[[#This Row],[period]],4) -> 2021 | H111: Share of profits of associates | I111: 0 | J111: 0 | K111: 0 | L111: 0 | M111: 0 | N111: 0 | O111: 0 | P111: 0 | Q111: 0 | R111: 0 | S111: 0 | T111: 0
A112: cumulated | B112: 2021_Q2 | C112: reported | D112: kEUR | E112: 30 June 2021 | F112: Q2 | G112: =RIGHT(Table7[[#This Row],[period]],4) -> 2021 | H112: Operating profit (loss) | I112: 705 | J112: 2532 | K112: 1209 | L112: 747 | M112: 5857 | N112: 3409 | O112: 1753 | P112: 79 | Q112: 436 | R112: 1131 | S112: -101 | T112: 0
A113: cumulated | B113: 2021_Q2 | C113: restated | D113: kPLN | E113: 30 June 2020 | F113: Q2 | G113: =RIGHT(Table7[[#This Row],[period]],4) -> 2020 | H113: Sales revenues | I113: 18493 | J113: 73100 | K113: 35171 | L113: 58845 | M113: 137761 | N113: 41669 | O113: 57352 | P113: 9157 | Q113: 18025 | R113: 32775 | S113: -18003 | T113: 0
A114: cumulated | B114: 2021_Q2 | C114: restated | D114: kPLN | E114: 30 June 2020 | F114: Q2 | G114: =RIGHT(Table7[[#This Row],[period]],4) -> 2020 | H114: Cost of sales | I114: -13883 | J114: -53125 | K114: -26937 | L114: -48536 | M114: -107394 | N114: -20480 | O114: -49082 | P114: -7071 | Q114: -12549 | R114: -23023 | S114: 16971 | T114: 0
A115: cumulated | B115: 2021_Q2 | C115: restated | D115: kPLN | E115: 30 June 2020 | F115: Q2 | G115: =RIGHT(Table7[[#This Row],[period]],4) -> 2020 | H115: Recognition (reversal) of impairment losses on financial instruments | I115: 20 | J115: -451 | K115: -47 | L115: -386 | M115: 1602 | N115: -124 | O115: -151 | P115: 0 | Q115: -166 | R115: 44 | S115: 2 | T115: 0
A116: cumulated | B116: 2021_Q2 | C116: restated | D116: kPLN | E116: 30 June 2020 | F116: Q2 | G116: =RIGHT(Table7[[#This Row],[period]],4) -> 2020 | H116: Gross profit on sales | I116: 4630 | J116: 19524 | K116: 8187 | L116: 9923 | M116: 31969 | N116: 21065 | O116: 8119 | P116: 2086 | Q116: 5310 | R116: 9796 | S116: -1030 | T116: 0
A117: cumulated | B117: 2021_Q2 | C117: restated | D117: kPLN | E117: 30 June 2020 | F117: Q2 | G117: =RIGHT(Table7[[#This Row],[period]],4) -> 2020 | H117: Selling costs | I117: -856 | J117: -4376 | K117: -1833 | L117: -4133 | M117: -7804 | N117: -4075 | O117: -1304 | P117: -707 | Q117: -814 | R117: -1284 | S117: 418 | T117: 0
A118: cumulated | B118: 2021_Q2 | C118: restated | D118: kPLN | E118: 30 June 2020 | F118: Q2 | G118: =RIGHT(Table7[[#This Row],[period]],4) -> 2020 | H118: General and administrative expenses | I118: -1115 | J118: -4193 | K118: -1841 | L118: -3537 | M118: -6708 | N118: -4394 | O118: -2885 | P118: -1574 | Q118: -1322 | R118: -1851 | S118: 2 | T118: 0
A119: cumulated | B119: 2021_Q2 | C119: restated | D119: kPLN | E119: 30 June 2020 | F119: Q2 | G119: =RIGHT(Table7[[#This Row],[period]],4) -> 2020 | H119: Net profit (loss) on sales | I119: 2659 | J119: 10955 | K119: 4513 | L119: 2253 | M119: 17457 | N119: 12596 | O119: 3930 | P119: -195 | Q119: 3174 | R119: 6661 | S119: -610 | T119: 0
A120: cumulated | B120: 2021_Q2 | C120: restated | D120: kPLN | E120: 30 June 2020 | F120: Q2 | G120: =RIGHT(Table7[[#This Row],[period]],4) -> 2020 | H120: Other operating income | I120: 16 | J120: 107 | K120: 75 | L120: 55 | M120: 402 | N120: 100 | O120: 70 | P120: 11 | Q120: 11 | R120: 238 | S120: 0 | T120: 0
A121: cumulated | B121: 2021_Q2 | C121: restated | D121: kPLN | E121: 30 June 2020 | F121: Q2 | G121: =RIGHT(Table7[[#This Row],[period]],4) -> 2020 | H121: Other operating expenses | I121: -54 | J121: -83 | K121: -9 | L121: -9 | M121: -203 | N121: -21 | O121: -72 | P121: -11 | Q121: 2 | R121: -50 | S121: 0 | T121: 0
A122: cumulated | B122: 2021_Q2 | C122: restated | D122: kPLN | E122: 30 June 2020 | F122: Q2 | G122: =RIGHT(Table7[[#This Row],[period]],4) -> 2020 | H122: Share of profits of associates | I122: 0 | J122: 0 | K122: 0 | L122: 0 | M122: 0 | N122: 0 | O122: 0 | P122: 0 | Q122: 0 | R122: 0 | S122: 0 | T122: 0
A123: cumulated | B123: 2021_Q2 | C123: restated | D123: kPLN | E123: 30 June 2020 | F123: Q2 | G123: =RIGHT(Table7[[#This Row],[period]],4) -> 2020 | H123: Operating profit (loss) | I123: 2621 | J123: 10979 | K123: 4579 | L123: 2299 | M123: 17656 | N123: 12675 | O123: 3928 | P123: -195 | Q123: 3187 | R123: 6849 | S123: -610 | T123: 0
A124: cumulated | B124: 2021_Q2 | C124: restated | D124: kEUR | E124: 30 June 2020 | F124: Q2 | G124: =RIGHT(Table7[[#This Row],[period]],4) -> 2020 | H124: Sales revenues | I124: 4164 | J124: 16459 | K124: 7919 | L124: 13250 | M124: 31019 | N124: 9382 | O124: 12913 | P124: 2062 | Q124: 4059 | R124: 7380 | S124: -4054 | T124: 0
A125: cumulated | B125: 2021_Q2 | C125: restated | D125: kEUR | E125: 30 June 2020 | F125: Q2 | G125: =RIGHT(Table7[[#This Row],[period]],4) -> 2020 | H125: Cost of sales | I125: -3126 | J125: -11962 | K125: -6065 | L125: -10928 | M125: -24181 | N125: -4611 | O125: -11051 | P125: -1592 | Q125: -2826 | R125: -5185 | S125: 3821 | T125: 0
A126: cumulated | B126: 2021_Q2 | C126: restated | D126: kEUR | E126: 30 June 2020 | F126: Q2 | G126: =RIGHT(Table7[[#This Row],[period]],4) -> 2020 | H126: Recognition (reversal) of impairment losses on financial instruments | I126: 5 | J126: -102 | K126: -11 | L126: -87 | M126: 361 | N126: -28 | O126: -34 | P126: 0 | Q126: -37 | R126: 10 | S126: 0 | T126: 0
A127: cumulated | B127: 2021_Q2 | C127: restated | D127: kEUR | E127: 30 June 2020 | F127: Q2 | G127: =RIGHT(Table7[[#This Row],[period]],4) -> 2020 | H127: Gross profit on sales | I127: 1043 | J127: 4395 | K127: 1843 | L127: 2235 | M127: 7199 | N127: 4743 | O127: 1828 | P127: 470 | Q127: 1196 | R127: 2205 | S127: -233 | T127: 0
A128: cumulated | B128: 2021_Q2 | C128: restated | D128: kEUR | E128: 30 June 2020 | F128: Q2 | G128: =RIGHT(Table7[[#This Row],[period]],4) -> 2020 | H128: Selling costs | I128: -193 | J128: -985 | K128: -413 | L128: -931 | M128: -1757 | N128: -918 | O128: -294 | P128: -159 | Q128: -183 | R128: -288 | S128: 94 | T128: 0
A129: cumulated | B129: 2021_Q2 | C129: restated | D129: kEUR | E129: 30 June 2020 | F129: Q2 | G129: =RIGHT(Table7[[#This Row],[period]],4) -> 2020 | H129: General and administrative expenses | I129: -251 | J129: -944 | K129: -415 | L129: -796 | M129: -1510 | N129: -989 | O129: -650 | P129: -354 | Q129: -298 | R129: -417 | S129: 0 | T129: 0
A130: cumulated | B130: 2021_Q2 | C130: restated | D130: kEUR | E130: 30 June 2020 | F130: Q2 | G130: =RIGHT(Table7[[#This Row],[period]],4) -> 2020 | H130: Net profit (loss) on sales | I130: 599 | J130: 2466 | K130: 1015 | L130: 508 | M130: 3932 | N130: 2836 | O130: 884 | P130: -43 | Q130: 715 | R130: 1500 | S130: -139 | T130: 0
A131: cumulated | B131: 2021_Q2 | C131: restated | D131: kEUR | E131: 30 June 2020 | F131: Q2 | G131: =RIGHT(Table7[[#This Row],[period]],4) -> 2020 | H131: Other operating income | I131: 4 | J131: 24 | K131: 17 | L131: 12 | M131: 91 | N131: 23 | O131: 16 | P131: 2 | Q131: 2 | R131: 54 | S131: 0 | T131: 0
A132: cumulated | B132: 2021_Q2 | C132: restated | D132: kEUR | E132: 30 June 2020 | F132: Q2 | G132: =RIGHT(Table7[[#This Row],[period]],4) -> 2020 | H132: Other operating expenses | I132: -12 | J132: -19 | K132: -2 | L132: -2 | M132: -46 | N132: -5 | O132: -16 | P132: -2 | Q132: 0 | R132: -11 | S132: 0 | T132: 0
A133: cumulated | B133: 2021_Q2 | C133: restated | D133: kEUR | E133: 30 June 2020 | F133: Q2 | G133: =RIGHT(Table7[[#This Row],[period]],4) -> 2020 | H133: Share of profits of associates | I133: 0 | J133: 0 | K133: 0 | L133: 0 | M133: 0 | N133: 0 | O133: 0 | P133: 0 | Q133: 0 | R133: 0 | S133: 0 | T133: 0
A134: cumulated | B134: 2021_Q2 | C134: restated | D134: kEUR | E134: 30 June 2020 | F134: Q2 | G134: =RIGHT(Table7[[#This Row],[period]],4) -> 2020 | H134: Operating profit (loss) | I134: 591 | J134: 2471 | K134: 1030 | L134: 518 | M134: 3977 | N134: 2854 | O134: 884 | P134: -43 | Q134: 717 | R134: 1543 | S134: -139 | T134: 0
A135: cumulated | B135: 2021_Q1 | C135: reported | D135: kPLN | E135: 31 March 2021 | F135: Q1 | G135: =RIGHT(Table7[[#This Row],[period]],4) -> 2021 | H135: Sales revenues | I135: 7912 | J135: 36757 | K135: 14333 | L135: 31630 | M135: 72279 | N135: 24389 | O135: 40039 | P135: 4551 | Q135: 9158 | R135: 20496 | S135: -8778 | T135: 0
A136: cumulated | B136: 2021_Q1 | C136: reported | D136: kPLN | E136: 31 March 2021 | F136: Q1 | G136: =RIGHT(Table7[[#This Row],[period]],4) -> 2021 | H136: Cost of sales | I136: -5358 | J136: -27921 | K136: -9092 | L136: -26826 | M136: -49388 | N136: -11820 | O136: -34143 | P136: -3621 | Q136: -6408 | R136: -15969 | S136: 8254 | T136: 0
A137: cumulated | B137: 2021_Q1 | C137: reported | D137: kPLN | E137: 31 March 2021 | F137: Q1 | G137: =RIGHT(Table7[[#This Row],[period]],4) -> 2021 | H137: Recognition (reversal) of impairment losses on financial instruments | I137: 19 | J137: -267 | K137: -8 | L137: 319 | M137: 358 | N137: -27 | O137: 0 | P137: 34 | Q137: -11 | R137: -27 | S137: -5 | T137: 0
A138: cumulated | B138: 2021_Q1 | C138: reported | D138: kPLN | E138: 31 March 2021 | F138: Q1 | G138: =RIGHT(Table7[[#This Row],[period]],4) -> 2021 | H138: Gross profit on sales | I138: 2573 | J138: 8569 | K138: 5233 | L138: 5123 | M138: 23249 | N138: 12542 | O138: 5896 | P138: 964 | Q138: 2739 | R138: 4500 | S138: -529 | T138: 0
A139: cumulated | B139: 2021_Q1 | C139: reported | D139: kPLN | E139: 31 March 2021 | F139: Q1 | G139: =RIGHT(Table7[[#This Row],[period]],4) -> 2021 | H139: Selling costs | I139: -464 | J139: -3083 | K139: -1002 | L139: -2280 | M139: -5471 | N139: -1857 | O139: -657 | P139: -236 | Q139: -1143 | R139: -935 | S139: 253 | T139: 0
A140: cumulated | B140: 2021_Q1 | C140: reported | D140: kPLN | E140: 31 March 2021 | F140: Q1 | G140: =RIGHT(Table7[[#This Row],[period]],4) -> 2021 | H140: General and administrative expenses | I140: -644 | J140: -2656 | K140: -1157 | L140: -1855 | M140: -3460 | N140: -2057 | O140: -1505 | P140: -862 | Q140: -654 | R140: -880 | S140: 100 | T140: 0
A141: cumulated | B141: 2021_Q1 | C141: reported | D141: kPLN | E141: 31 March 2021 | F141: Q1 | G141: =RIGHT(Table7[[#This Row],[period]],4) -> 2021 | H141: Net profit (loss) on sales | I141: 1465 | J141: 2830 | K141: 3074 | L141: 988 | M141: 14318 | N141: 8628 | O141: 3734 | P141: -134 | Q141: 942 | R141: 2685 | S141: -176 | T141: 0
A142: cumulated | B142: 2021_Q1 | C142: reported | D142: kPLN | E142: 31 March 2021 | F142: Q1 | G142: =RIGHT(Table7[[#This Row],[period]],4) -> 2021 | H142: Other operating income | I142: 0 | J142: 96 | K142: 86 | L142: 133 | M142: 217 | N142: 152 | O142: 18 | P142: 6 | Q142: 103 | R142: 40 | S142: -102 | T142: 0
A143: cumulated | B143: 2021_Q1 | C143: reported | D143: kPLN | E143: 31 March 2021 | F143: Q1 | G143: =RIGHT(Table7[[#This Row],[period]],4) -> 2021 | H143: Other operating expenses | I143: -1 | J143: -22 | K143: -6 | L143: 0 | M143: -18 | N143: -3 | O143: -67 | P143: -10 | Q143: -114 | R143: -67 | S143: 100 | T143: 0
A144: cumulated | B144: 2021_Q1 | C144: reported | D144: kPLN | E144: 31 March 2021 | F144: Q1 | G144: =RIGHT(Table7[[#This Row],[period]],4) -> 2021 | H144: Share of profits of associates | I144: 0 | J144: 0 | K144: 0 | L144: 0 | M144: 0 | N144: 0 | O144: 0 | P144: 0 | Q144: 0 | R144: 0 | S144: 0 | T144: 0
A145: cumulated | B145: 2021_Q1 | C145: reported | D145: kPLN | E145: 31 March 2021 | F145: Q1 | G145: =RIGHT(Table7[[#This Row],[period]],4) -> 2021 | H145: Operating profit (loss) | I145: 1464 | J145: 2904 | K145: 3154 | L145: 1121 | M145: 14517 | N145: 8777 | O145: 3685 | P145: -138 | Q145: 931 | R145: 2658 | S145: -178 | T145: 0
A146: cumulated | B146: 2021_Q1 | C146: reported | D146: kEUR | E146: 31 March 2021 | F146: Q1 | G146: =RIGHT(Table7[[#This Row],[period]],4) -> 2021 | H146: Sales revenues | I146: 1730 | J146: 8039 | K146: 3135 | L146: 6918 | M146: 15809 | N146: 5334 | O146: 8757 | P146: 995 | Q146: 2003 | R146: 4484 | S146: -1920 | T146: 0
A147: cumulated | B147: 2021_Q1 | C147: reported | D147: kEUR | E147: 31 March 2021 | F147: Q1 | G147: =RIGHT(Table7[[#This Row],[period]],4) -> 2021 | H147: Cost of sales | I147: -1172 | J147: -6107 | K147: -1989 | L147: -5867 | M147: -10802 | N147: -2585 | O147: -7468 | P147: -792 | Q147: -1402 | R147: -3491 | S147: 1805 | T147: 0
A148: cumulated | B148: 2021_Q1 | C148: reported | D148: kEUR | E148: 31 March 2021 | F148: Q1 | G148: =RIGHT(Table7[[#This Row],[period]],4) -> 2021 | H148: Recognition (reversal) of impairment losses on financial instruments | I148: 4 | J148: -58 | K148: -2 | L148: 70 | M148: 78 | N148: -6 | O148: 0 | P148: 7 | Q148: -2 | R148: -6 | S148: -1 | T148: 0
A149: cumulated | B149: 2021_Q1 | C149: reported | D149: kEUR | E149: 31 March 2021 | F149: Q1 | G149: =RIGHT(Table7[[#This Row],[period]],4) -> 2021 | H149: Gross profit on sales | I149: 562 | J149: 1874 | K149: 1144 | L149: 1121 | M149: 5085 | N149: 2743 | O149: 1289 | P149: 210 | Q149: 599 | R149: 987 | S149: -116 | T149: 0
A150: cumulated | B150: 2021_Q1 | C150: reported | D150: kEUR | E150: 31 March 2021 | F150: Q1 | G150: =RIGHT(Table7[[#This Row],[period]],4) -> 2021 | H150: Selling costs | I150: -101 | J150: -674 | K150: -219 | L150: -499 | M150: -1197 | N150: -406 | O150: -144 | P150: -52 | Q150: -250 | R150: -204 | S150: 55 | T150: 0
A151: cumulated | B151: 2021_Q1 | C151: reported | D151: kEUR | E151: 31 March 2021 | F151: Q1 | G151: =RIGHT(Table7[[#This Row],[period]],4) -> 2021 | H151: General and administrative expenses | I151: -141 | J151: -581 | K151: -253 | L151: -406 | M151: -757 | N151: -450 | O151: -329 | P151: -189 | Q151: -143 | R151: -192 | S151: 22 | T151: 0
A152: cumulated | B152: 2021_Q1 | C152: reported | D152: kEUR | E152: 31 March 2021 | F152: Q1 | G152: =RIGHT(Table7[[#This Row],[period]],4) -> 2021 | H152: Net profit (loss) on sales | I152: 320 | J152: 619 | K152: 672 | L152: 216 | M152: 3131 | N152: 1887 | O152: 816 | P152: -31 | Q152: 206 | R152: 591 | S152: -39 | T152: 0
A153: cumulated | B153: 2021_Q1 | C153: reported | D153: kEUR | E153: 31 March 2021 | F153: Q1 | G153: =RIGHT(Table7[[#This Row],[period]],4) -> 2021 | H153: Other operating income | I153: 0 | J153: 21 | K153: 19 | L153: 29 | M153: 47 | N153: 33 | O153: 4 | P153: 1 | Q153: 23 | R153: 9 | S153: -22 | T153: 0
A154: cumulated | B154: 2021_Q1 | C154: reported | D154: kEUR | E154: 31 March 2021 | F154: Q1 | G154: =RIGHT(Table7[[#This Row],[period]],4) -> 2021 | H154: Other operating expenses | I154: 0 | J154: -5 | K154: -1 | L154: 0 | M154: -4 | N154: -1 | O154: -15 | P154: -2 | Q154: -25 | R154: -14 | S154: 22 | T154: 0
A155: cumulated | B155: 2021_Q1 | C155: reported | D155: kEUR | E155: 31 March 2021 | F155: Q1 | G155: =RIGHT(Table7[[#This Row],[period]],4) -> 2021 | H155: Share of profits of associates | I155: 0 | J155: 0 | K155: 0 | L155: 0 | M155: 0 | N155: 0 | O155: 0 | P155: 0 | Q155: 0 | R155: 0 | S155: 0 | T155: 0
A156: cumulated | B156: 2021_Q1 | C156: reported | D156: kEUR | E156: 31 March 2021 | F156: Q1 | G156: =RIGHT(Table7[[#This Row],[period]],4) -> 2021 | H156: Operating profit (loss) | I156: 320 | J156: 635 | K156: 690 | L156: 245 | M156: 3174 | N156: 1919 | O156: 805 | P156: -32 | Q156: 204 | R156: 586 | S156: -39 | T156: 0
A157: cumulated | B157: 2021_Q1 | C157: restated | D157: kPLN | E157: 31 March 2020 | F157: Q1 | G157: =RIGHT(Table7[[#This Row],[period]],4) -> 2020 | H157: Sales revenues | I157: 7661 | J157: 34082 | K157: 23398 | L157: 26359 | M157: 70643 | N157: 20758 | O157: 27381 | P157: 5123 | Q157: 8828 | R157: 14278 | S157: -7526 | T157: 0
A158: cumulated | B158: 2021_Q1 | C158: restated | D158: kPLN | E158: 31 March 2020 | F158: Q1 | G158: =RIGHT(Table7[[#This Row],[period]],4) -> 2020 | H158: Cost of sales | I158: -5487 | J158: -26751 | K158: -18700 | L158: -21066 | M158: -57177 | N158: -9820 | O158: -24074 | P158: -3948 | Q158: -5865 | R158: -10220 | S158: 7397 | T158: 0
A159: cumulated | B159: 2021_Q1 | C159: restated | D159: kPLN | E159: 31 March 2020 | F159: Q1 | G159: =RIGHT(Table7[[#This Row],[period]],4) -> 2020 | H159: Recognition (reversal) of impairment losses on financial instruments | I159: 0 | J159: -404 | K159: 72 | L159: -388 | M159: 1667 | N159: -119 | O159: 0 | P159: 0 | Q159: -59 | R159: 48 | S159: -1 | T159: 0
A160: cumulated | B160: 2021_Q1 | C160: restated | D160: kPLN | E160: 31 March 2020 | F160: Q1 | G160: =RIGHT(Table7[[#This Row],[period]],4) -> 2020 | H160: Gross profit on sales | I160: 2174 | J160: 6927 | K160: 4770 | L160: 4905 | M160: 15133 | N160: 10819 | O160: 3307 | P160: 1175 | Q160: 2904 | R160: 4106 | S160: -130 | T160: 0
A161: cumulated | B161: 2021_Q1 | C161: restated | D161: kPLN | E161: 31 March 2020 | F161: Q1 | G161: =RIGHT(Table7[[#This Row],[period]],4) -> 2020 | H161: Selling costs | I161: -401 | J161: -2015 | K161: -867 | L161: -1983 | M161: -3633 | N161: -2024 | O161: -824 | P161: -444 | Q161: -397 | R161: -648 | S161: 146 | T161: 0
A162: cumulated | B162: 2021_Q1 | C162: restated | D162: kPLN | E162: 31 March 2020 | F162: Q1 | G162: =RIGHT(Table7[[#This Row],[period]],4) -> 2020 | H162: General and administrative expenses | I162: -559 | J162: -1977 | K162: -890 | L162: -1701 | M162: -3246 | N162: -2461 | O162: -2169 | P162: -296 | Q162: -727 | R162: -835 | S162: -17 | T162: 0
A163: cumulated | B163: 2021_Q1 | C163: restated | D163: kPLN | E163: 31 March 2020 | F163: Q1 | G163: =RIGHT(Table7[[#This Row],[period]],4) -> 2020 | H163: Net profit (loss) on sales | I163: 1214 | J163: 2935 | K163: 3013 | L163: 1221 | M163: 8254 | N163: 6334 | O163: 314 | P163: 435 | Q163: 1780 | R163: 2623 | S163: -1 | T163: 0
A164: cumulated | B164: 2021_Q1 | C164: restated | D164: kPLN | E164: 31 March 2020 | F164: Q1 | G164: =RIGHT(Table7[[#This Row],[period]],4) -> 2020 | H164: Other operating income | I164: 3 | J164: 8 | K164: 43 | L164: 5 | M164: 291 | N164: 74 | O164: 6 | P164: 2 | Q164: -2 | R164: 19 | S164: 1 | T164: 0
A165: cumulated | B165: 2021_Q1 | C165: restated | D165: kPLN | E165: 31 March 2020 | F165: Q1 | G165: =RIGHT(Table7[[#This Row],[period]],4) -> 2020 | H165: Other operating expenses | I165: -52 | J165: -24 | K165: 0 | L165: 0 | M165: -45 | N165: -6 | O165: -44 | P165: -8 | Q165: 2 | R165: -16 | S165: -1 | T165: 0
A166: cumulated | B166: 2021_Q1 | C166: restated | D166: kPLN | E166: 31 March 2020 | F166: Q1 | G166: =RIGHT(Table7[[#This Row],[period]],4) -> 2020 | H166: Share of profits of associates | I166: 0 | J166: 0 | K166: 0 | L166: 0 | M166: 0 | N166: 0 | O166: 0 | P166: 0 | Q166: 0 | R166: 0 | S166: 0 | T166: 0
A167: cumulated | B167: 2021_Q1 | C167: restated | D167: kPLN | E167: 31 March 2020 | F167: Q1 | G167: =RIGHT(Table7[[#This Row],[period]],4) -> 2020 | H167: Operating profit (loss) | I167: 1165 | J167: 2919 | K167: 3056 | L167: 1226 | M167: 8500 | N167: 6402 | O167: 276 | P167: 429 | Q167: 1780 | R167: 2626 | S167: -1 | T167: 0
A168: cumulated | B168: 2021_Q1 | C168: restated | D168: kEUR | E168: 31 March 2020 | F168: Q1 | G168: =RIGHT(Table7[[#This Row],[period]],4) -> 2020 | H168: Sales revenues | I168: 1743 | J168: 7752 | K168: 5322 | L168: 5996 | M168: 16069 | N168: 4722 | O168: 6228 | P168: 1165 | Q168: 2008 | R168: 3248 | S168: -1712 | T168: 0
A169: cumulated | B169: 2021_Q1 | C169: restated | D169: kEUR | E169: 31 March 2020 | F169: Q1 | G169: =RIGHT(Table7[[#This Row],[period]],4) -> 2020 | H169: Cost of sales | I169: -1248 | J169: -6085 | K169: -4254 | L169: -4792 | M169: -13006 | N169: -2234 | O169: -5476 | P169: -898 | Q169: -1334 | R169: -2325 | S169: 1683 | T169: 0
A170: cumulated | B170: 2021_Q1 | C170: restated | D170: kEUR | E170: 31 March 2020 | F170: Q1 | G170: =RIGHT(Table7[[#This Row],[period]],4) -> 2020 | H170: Recognition (reversal) of impairment losses on financial instruments | I170: 0 | J170: -92 | K170: 16 | L170: -88 | M170: 379 | N170: -27 | O170: 0 | P170: 0 | Q170: -13 | R170: 12 | S170: 0 | T170: 0
A171: cumulated | B171: 2021_Q1 | C171: restated | D171: kEUR | E171: 31 March 2020 | F171: Q1 | G171: =RIGHT(Table7[[#This Row],[period]],4) -> 2020 | H171: Gross profit on sales | I171: 495 | J171: 1575 | K171: 1084 | L171: 1116 | M171: 3442 | N171: 2461 | O171: 752 | P171: 267 | Q171: 661 | R171: 935 | S171: -29 | T171: 0
A172: cumulated | B172: 2021_Q1 | C172: restated | D172: kEUR | E172: 31 March 2020 | F172: Q1 | G172: =RIGHT(Table7[[#This Row],[period]],4) -> 2020 | H172: Selling costs | I172: -91 | J172: -458 | K172: -197 | L172: -451 | M172: -826 | N172: -460 | O172: -187 | P172: -101 | Q172: -90 | R172: -150 | S172: 33 | T172: 0
A173: cumulated | B173: 2021_Q1 | C173: restated | D173: kEUR | E173: 31 March 2020 | F173: Q1 | G173: =RIGHT(Table7[[#This Row],[period]],4) -> 2020 | H173: General and administrative expenses | I173: -127 | J173: -450 | K173: -202 | L173: -387 | M173: -738 | N173: -560 | O173: -493 | P173: -67 | Q173: -165 | R173: -191 | S173: -4 | T173: 0
A174: cumulated | B174: 2021_Q1 | C174: restated | D174: kEUR | E174: 31 March 2020 | F174: Q1 | G174: =RIGHT(Table7[[#This Row],[period]],4) -> 2020 | H174: Net profit (loss) on sales | I174: 277 | J174: 667 | K174: 685 | L174: 278 | M174: 1878 | N174: 1441 | O174: 72 | P174: 99 | Q174: 406 | R174: 594 | S174: 0 | T174: 0
A175: cumulated | B175: 2021_Q1 | C175: restated | D175: kEUR | E175: 31 March 2020 | F175: Q1 | G175: =RIGHT(Table7[[#This Row],[period]],4) -> 2020 | H175: Other operating income | I175: 1 | J175: 2 | K175: 10 | L175: 1 | M175: 66 | N175: 17 | O175: 1 | P175: 0 | Q175: 0 | R175: 4 | S175: 0 | T175: 0
A176: cumulated | B176: 2021_Q1 | C176: restated | D176: kEUR | E176: 31 March 2020 | F176: Q1 | G176: =RIGHT(Table7[[#This Row],[period]],4) -> 2020 | H176: Other operating expenses | I176: -12 | J176: -5 | K176: 0 | L176: 0 | M176: -10 | N176: -1 | O176: -10 | P176: -2 | Q176: 0 | R176: -4 | S176: 0 | T176: 0
A177: cumulated | B177: 2021_Q1 | C177: restated | D177: kEUR | E177: 31 March 2020 | F177: Q1 | G177: =RIGHT(Table7[[#This Row],[period]],4) -> 2020 | H177: Share of profits of associates | I177: 0 | J177: 0 | K177: 0 | L177: 0 | M177: 0 | N177: 0 | O177: 0 | P177: 0 | Q177: 0 | R177: 0 | S177: 0 | T177: 0
A178: cumulated | B178: 2021_Q1 | C178: restated | D178: kEUR | E178: 31 March 2020 | F178: Q1 | G178: =RIGHT(Table7[[#This Row],[period]],4) -> 2020 | H178: Operating profit (loss) | I178: 266 | J178: 664 | K178: 695 | L178: 279 | M178: 1934 | N178: 1457 | O178: 63 | P178: 97 | Q178: 406 | R178: 594 | S178: 0 | T178: 0
A179: cumulated | B179: 2020_Q4 | C179: reported | D179: kPLN | E179: 31 December 2020 | F179: Q4 | G179: =RIGHT(Table7[[#This Row],[period]],4) -> 2020 | H179: Sales revenues | I179: 41428 | J179: 152840 | K179: 72397 | L179: 146310 | M179: 338343 | N179: 84392 | O179: 116573 | P179: 19802 | Q179: 35563 | R179: 65738 | S179: -46896 | T179: 0
A180: cumulated | B180: 2020_Q4 | C180: reported | D180: kPLN | E180: 31 December 2020 | F180: Q4 | G180: =RIGHT(Table7[[#This Row],[period]],4) -> 2020 | H180: Cost of sales | I180: -31507 | J180: -107040 | K180: -52759 | L180: -122852 | M180: -263942 | N180: -42017 | O180: -99098 | P180: -16016 | Q180: -25444 | R180: -48252 | S180: 44872 | T180: 0
A181: cumulated | B181: 2020_Q4 | C181: reported | D181: kPLN | E181: 31 December 2020 | F181: Q4 | G181: =RIGHT(Table7[[#This Row],[period]],4) -> 2020 | H181: Recognition (reversal) of impairment losses on financial instruments | I181: 20 | J181: -555 | K181: -48 | L181: -518 | M181: 1643 | N181: -293 | O181: 0 | P181: -38 | Q181: -122 | R181: -4 | S181: -2 | T181: 0
A182: cumulated | B182: 2020_Q4 | C182: reported | D182: kPLN | E182: 31 December 2020 | F182: Q4 | G182: =RIGHT(Table7[[#This Row],[period]],4) -> 2020 | H182: Gross profit on sales | I182: 9941 | J182: 45245 | K182: 19590 | L182: 22940 | M182: 76044 | N182: 42082 | O182: 17475 | P182: 3748 | Q182: 9997 | R182: 17482 | S182: -2026 | T182: 0
A183: cumulated | B183: 2020_Q4 | C183: reported | D183: kPLN | E183: 31 December 2020 | F183: Q4 | G183: =RIGHT(Table7[[#This Row],[period]],4) -> 2020 | H183: Selling costs | I183: -2228 | J183: -8934 | K183: -3634 | L183: -8263 | M183: -16681 | N183: -7765 | O183: -2850 | P183: -896 | Q183: -2590 | R183: -3044 | S183: 1342 | T183: 0
A184: cumulated | B184: 2020_Q4 | C184: reported | D184: kPLN | E184: 31 December 2020 | F184: Q4 | G184: =RIGHT(Table7[[#This Row],[period]],4) -> 2020 | H184: General and administrative expenses | I184: -2382 | J184: -9134 | K184: -3894 | L184: -7568 | M184: -13476 | N184: -8197 | O184: -6291 | P184: -3630 | Q184: -2918 | R184: -3686 | S184: -311 | T184: 0
A185: cumulated | B185: 2020_Q4 | C185: reported | D185: kPLN | E185: 31 December 2020 | F185: Q4 | G185: =RIGHT(Table7[[#This Row],[period]],4) -> 2020 | H185: Net profit (loss) on sales | I185: 5331 | J185: 27177 | K185: 12062 | L185: 7109 | M185: 45887 | N185: 26120 | O185: 8334 | P185: -778 | Q185: 4489 | R185: 10752 | S185: -995 | T185: 0
A186: cumulated | B186: 2020_Q4 | C186: reported | D186: kPLN | E186: 31 December 2020 | F186: Q4 | G186: =RIGHT(Table7[[#This Row],[period]],4) -> 2020 | H186: Other operating income | I186: 72 | J186: 1083 | K186: 140 | L186: 78 | M186: 809 | N186: 361 | O186: 465 | P186: 22 | Q186: 84 | R186: 355 | S186: -496 | T186: 0
A187: cumulated | B187: 2020_Q4 | C187: reported | D187: kPLN | E187: 31 December 2020 | F187: Q4 | G187: =RIGHT(Table7[[#This Row],[period]],4) -> 2020 | H187: Other operating expenses | I187: -15 | J187: -864 | K187: -8 | L187: -93 | M187: -901 | N187: -51 | O187: -906 | P187: -229 | Q187: -63 | R187: -113 | S187: 429 | T187: 0
A188: cumulated | B188: 2020_Q4 | C188: reported | D188: kPLN | E188: 31 December 2020 | F188: Q4 | G188: =RIGHT(Table7[[#This Row],[period]],4) -> 2020 | H188: Share of profits of associates | I188: 0 | J188: 0 | K188: 0 | L188: 0 | M188: 0 | N188: 0 | O188: 0 | P188: 0 | Q188: 0 | R188: 0 | S188: 0 | T188: 0
A189: cumulated | B189: 2020_Q4 | C189: reported | D189: kPLN | E189: 31 December 2020 | F189: Q4 | G189: =RIGHT(Table7[[#This Row],[period]],4) -> 2020 | H189: Operating profit (loss) | I189: 5388 | J189: 27396 | K189: 12194 | L189: 7094 | M189: 45795 | N189: 26430 | O189: 7893 | P189: -985 | Q189: 4510 | R189: 10994 | S189: -1062 | T189: 0
A190: cumulated | B190: 2020_Q4 | C190: reported | D190: kEUR | E190: 31 December 2020 | F190: Q4 | G190: =RIGHT(Table7[[#This Row],[period]],4) -> 2020 | H190: Sales revenues | I190: 9259 | J190: 34161 | K190: 16181 | L190: 32701 | M190: 75622 | N190: 18862 | O190: 26055 | P190: 4426 | Q190: 7949 | R190: 14692 | S190: -10482 | T190: 0
A191: cumulated | B191: 2020_Q4 | C191: reported | D191: kEUR | E191: 31 December 2020 | F191: Q4 | G191: =RIGHT(Table7[[#This Row],[period]],4) -> 2020 | H191: Cost of sales | I191: -7042 | J191: -23924 | K191: -11792 | L191: -27458 | M191: -58993 | N191: -9391 | O191: -22149 | P191: -3580 | Q191: -5687 | R191: -10785 | S191: 10029 | T191: 0
A192: cumulated | B192: 2020_Q4 | C192: reported | D192: kEUR | E192: 31 December 2020 | F192: Q4 | G192: =RIGHT(Table7[[#This Row],[period]],4) -> 2020 | H192: Recognition (reversal) of impairment losses on financial instruments | I192: 4 | J192: -124 | K192: -11 | L192: -116 | M192: 367 | N192: -65 | O192: 0 | P192: -8 | Q192: -26 | R192: -1 | S192: 0 | T192: 0
A193: cumulated | B193: 2020_Q4 | C193: reported | D193: kEUR | E193: 31 December 2020 | F193: Q4 | G193: =RIGHT(Table7[[#This Row],[period]],4) -> 2020 | H193: Gross profit on sales | I193: 2221 | J193: 10113 | K193: 4378 | L193: 5127 | M193: 16996 | N193: 9406 | O193: 3906 | P193: 838 | Q193: 2236 | R193: 3906 | S193: -453 | T193: 0
A194: cumulated | B194: 2020_Q4 | C194: reported | D194: kEUR | E194: 31 December 2020 | F194: Q4 | G194: =RIGHT(Table7[[#This Row],[period]],4) -> 2020 | H194: Selling costs | I194: -498 | J194: -1997 | K194: -812 | L194: -1847 | M194: -3728 | N194: -1736 | O194: -637 | P194: -200 | Q194: -579 | R194: -680 | S194: 300 | T194: 0
A195: cumulated | B195: 2020_Q4 | C195: reported | D195: kEUR | E195: 31 December 2020 | F195: Q4 | G195: =RIGHT(Table7[[#This Row],[period]],4) -> 2020 | H195: General and administrative expenses | I195: -532 | J195: -2042 | K195: -870 | L195: -1691 | M195: -3012 | N195: -1832 | O195: -1406 | P195: -811 | Q195: -652 | R195: -825 | S195: -70 | T195: 0
A196: cumulated | B196: 2020_Q4 | C196: reported | D196: kEUR | E196: 31 December 2020 | F196: Q4 | G196: =RIGHT(Table7[[#This Row],[period]],4) -> 2020 | H196: Net profit (loss) on sales | I196: 1191 | J196: 6074 | K196: 2696 | L196: 1589 | M196: 10256 | N196: 5838 | O196: 1863 | P196: -173 | Q196: 1005 | R196: 2401 | S196: -223 | T196: 0
A197: cumulated | B197: 2020_Q4 | C197: reported | D197: kEUR | E197: 31 December 2020 | F197: Q4 | G197: =RIGHT(Table7[[#This Row],[period]],4) -> 2020 | H197: Other operating income | I197: 16 | J197: 242 | K197: 31 | L197: 17 | M197: 181 | N197: 81 | O197: 104 | P197: 5 | Q197: 19 | R197: 78 | S197: -111 | T197: 0
A198: cumulated | B198: 2020_Q4 | C198: reported | D198: kEUR | E198: 31 December 2020 | F198: Q4 | G198: =RIGHT(Table7[[#This Row],[period]],4) -> 2020 | H198: Other operating expenses | I198: -3 | J198: -193 | K198: -2 | L198: -21 | M198: -201 | N198: -11 | O198: -202 | P198: -51 | Q198: -14 | R198: -25 | S198: 96 | T198: 0
A199: cumulated | B199: 2020_Q4 | C199: reported | D199: kEUR | E199: 31 December 2020 | F199: Q4 | G199: =RIGHT(Table7[[#This Row],[period]],4) -> 2020 | H199: Share of profits of associates | I199: 0 | J199: 0 | K199: 0 | L199: 0 | M199: 0 | N199: 0 | O199: 0 | P199: 0 | Q199: 0 | R199: 0 | S199: 0 | T199: 0
A200: cumulated | B200: 2020_Q4 | C200: reported | D200: kEUR | E200: 31 December 2020 | F200: Q4 | G200: =RIGHT(Table7[[#This Row],[period]],4) -> 2020 | H200: Operating profit (loss) | I200: 1204 | J200: 6123 | K200: 2725 | L200: 1585 | M200: 10236 | N200: 5908 | O200: 1765 | P200: -219 | Q200: 1010 | R200: 2454 | S200: -238 | T200: 0
A201: cumulated | B201: 2020_Q4 | C201: restated | D201: kPLN | E201: 31 December 2019 | F201: Q4 | G201: =RIGHT(Table7[[#This Row],[period]],4) -> 2019 | H201: Sales revenues | I201: 32064 | J201: 137725 | K201: 57874 | L201: 145606 | M201: 275806 | N201: 67722 | O201: 17329 | P201: 18205 | Q201: 63262 | R201: 104659 | S201: -38916 | T201: 0
... 1583 more rows

Sheet pivot - Segments
A1: currency | B1: kPLN
A2: type | B2: reported
A3: amount_type | B3: cumulated
A4: Position | B4: Net profit on sales
A6: Sum of Value | B6: year | C6: quarter
B7: 2019 | F7: 2019 Total | G7: 2020 | K7: 2020 Total | L7: 2021 | P7: 2021 Total | Q7: 2022 | U7: 2022 Total | V7: 2023 | Z7: 2023 Total | AA7: 2024 | AB7: 2024 Total
A8: Segment | B8: Q1 | C8: Q2 | D8: Q3 | E8: Q4 | G8: Q1 | H8: Q2 | I8: Q3 | J8: Q4 | L8: Q1 | M8: Q2 | N8: Q3 | O8: Q4 | Q8: Q1 | R8: Q2 | S8: Q3 | T8: Q4 | V8: Q1 | W8: Q2 | X8: Q3 | Y8: Q4 | AA8: Q1
A9: Banking Solutions | B9: 3525 | C9: 11857 | D9: 20488 | E9: 39194 | F9: 75064 | G9: 6549 | H9: 18248 | I9: 31876 | J9: 53230 | K9: 109903 | L9: 15896 | M9: 27729 | N9: 39560 | O9: 60102 | P9: 143287 | Q9: 12657 | R9: 26606 | S9: 41345 | T9: 60111 | U9: 140719 | V9: 17414 | W9: 35210 | X9: 49241 | Y9: 68102 | Z9: 169967 | AA9: 17452 | AB9: 17452
A10: Payment Solutions | B10: 12949 | C10: 24709 | D10: 40154 | E10: 53908 | F10: 131720 | G10: 15953 | H10: 35182 | I10: 54047 | J10: 65959 | K10: 171141 | L10: 18430 | M10: 40523 | N10: 66417 | O10: 88243 | P10: 213613 | Q10: 25265 | R10: 52400 | S10: 83875 | T10: 111076 | U10: 272616 | V10: 23389 | W10: 53652 | X10: 86692 | Y10: 122851 | Z10: 286584 | AA10: 28627 | AB10: 28627
A11: Dedicated Solutions | B11: 4449 | C11: 6806 | D11: 11198 | E11: 14829 | F11: 37282 | G11: 5620 | H11: 10027 | I11: 14765 | J11: 26299 | K11: 56711 | L11: 4028 | M11: 11619 | N11: 20786 | O11: 31618 | P11: 68051 | Q11: 8755 | R11: 19340 | S11: 24809 | T11: 42166 | U11: 95070 | V11: 9307 | W11: 17904 | X11: 27680 | Y11: 37070 | Z11: 91961 | AA11: 1840 | AB11: 1840
A12: Eliminations/Reconciliations | B12: 0 | C12: 0 | D12: 0 | E12: 0 | F12: 0 | G12: 0 | H12: 0 | I12: 0 | J12: 0 | K12: 0 | L12: 0 | M12: 0 | N12: 0 | O12: 0 | P12: 0 | Q12: 0 | R12: 0 | S12: 0 | T12: 0 | U12: 0 | V12: 0 | W12: 0 | X12: 0 | Y12: 0 | Z12: 0 | AA12: 0 | AB12: 0
A13: Hiperinflation | R13: 485 | S13: 3728 | T13: 2023 | U13: 6236 | V13: -30 | W13: -3076 | X13: -94 | Y13: -3114 | Z13: -6314 | AA13: -461 | AB13: -461
A14: Grand Total | B14: 20923 | C14: 43372 | D14: 71840 | E14: 107931 | F14: 244066 | G14: 28122 | H14: 63457 | I14: 100688 | J14: 145488 | K14: 337755 | L14: 38354 | M14: 79871 | N14: 126763 | O14: 179963 | P14: 424951 | Q14: 46677 | R14: 98831 | S14: 153757 | T14: 215376 | U14: 514641 | V14: 50080 | W14: 103690 | X14: 163519 | Y14: 224909 | Z14: 542198 | AA14: 47458 | AB14: 47458

Sheet pvtSrc - Segments (hidden)
A1: amount_type | B1: report_code | C1: type | D1: currency | E1: period | F1: year | G1: quarter | H1: Position | I1: Segment | J1: Value
A2: cumulated | B2: 2019_Q1 | C2: reported | D2: kPLN | E2: 2019-03-31 | F2: 2019 | G2: Q1 | H2: Sales revenues: | I2: Banking Solutions | J2: 42305
A3: cumulated | B3: 2019_Q1 | C3: reported | D3: kPLN | E3: 2019-03-31 | F3: 2019 | G3: Q1 | H3: Sales revenues: | I3: Payment Solutions | J3: 81888
A4: cumulated | B4: 2019_Q1 | C4: reported | D4: kPLN | E4: 2019-03-31 | F4: 2019 | G4: Q1 | H4: Sales revenues: | I4: Dedicated Solutions | J4: 63980
A5: cumulated | B5: 2019_Q1 | C5: reported | D5: kPLN | E5: 2019-03-31 | F5: 2019 | G5: Q1 | H5: Sales revenues: | I5: Eliminations/Reconciliations | J5: -9357
A6: cumulated | B6: 2019_Q1 | C6: reported | D6: kPLN | E6: 2019-03-31 | F6: 2019 | G6: Q1 | H6: Sales to external customers | I6: Banking Solutions | J6: 38492
A7: cumulated | B7: 2019_Q1 | C7: reported | D7: kPLN | E7: 2019-03-31 | F7: 2019 | G7: Q1 | H7: Sales to external customers | I7: Payment Solutions | J7: 76817
A8: cumulated | B8: 2019_Q1 | C8: reported | D8: kPLN | E8: 2019-03-31 | F8: 2019 | G8: Q1 | H8: Sales to external customers | I8: Dedicated Solutions | J8: 63507
A9: cumulated | B9: 2019_Q1 | C9: reported | D9: kPLN | E9: 2019-03-31 | F9: 2019 | G9: Q1 | H9: Sales to external customers | I9: Eliminations/Reconciliations | J9: 0
A10: cumulated | B10: 2019_Q1 | C10: reported | D10: kPLN | E10: 2019-03-31 | F10: 2019 | G10: Q1 | H10: Inter/intra segment sales | I10: Banking Solutions | J10: 3813
A11: cumulated | B11: 2019_Q1 | C11: reported | D11: kPLN | E11: 2019-03-31 | F11: 2019 | G11: Q1 | H11: Inter/intra segment sales | I11: Payment Solutions | J11: 5071
A12: cumulated | B12: 2019_Q1 | C12: reported | D12: kPLN | E12: 2019-03-31 | F12: 2019 | G12: Q1 | H12: Inter/intra segment sales | I12: Dedicated Solutions | J12: 473
A13: cumulated | B13: 2019_Q1 | C13: reported | D13: kPLN | E13: 2019-03-31 | F13: 2019 | G13: Q1 | H13: Inter/intra segment sales | I13: Eliminations/Reconciliations | J13: -9357
A14: cumulated | B14: 2019_Q1 | C14: reported | D14: kPLN | E14: 2019-03-31 | F14: 2019 | G14: Q1 | H14: Gross profit on sales | I14: Banking Solutions | J14: 10604
A15: cumulated | B15: 2019_Q1 | C15: reported | D15: kPLN | E15: 2019-03-31 | F15: 2019 | G15: Q1 | H15: Gross profit on sales | I15: Payment Solutions | J15: 22002
A16: cumulated | B16: 2019_Q1 | C16: reported | D16: kPLN | E16: 2019-03-31 | F16: 2019 | G16: Q1 | H16: Gross profit on sales | I16: Dedicated Solutions | J16: 11461
A17: cumulated | B17: 2019_Q1 | C17: reported | D17: kPLN | E17: 2019-03-31 | F17: 2019 | G17: Q1 | H17: Gross profit on sales | I17: Eliminations/Reconciliations | J17: 0
A18: cumulated | B18: 2019_Q1 | C18: reported | D18: kPLN | E18: 2019-03-31 | F18: 2019 | G18: Q1 | H18: Selling costs | I18: Banking Solutions | J18: -3123
A19: cumulated | B19: 2019_Q1 | C19: reported | D19: kPLN | E19: 2019-03-31 | F19: 2019 | G19: Q1 | H19: Selling costs | I19: Payment Solutions | J19: -4389
A20: cumulated | B20: 2019_Q1 | C20: reported | D20: kPLN | E20: 2019-03-31 | F20: 2019 | G20: Q1 | H20: Selling costs | I20: Dedicated Solutions | J20: -4093
A21: cumulated | B21: 2019_Q1 | C21: reported | D21: kPLN | E21: 2019-03-31 | F21: 2019 | G21: Q1 | H21: Selling costs | I21: Eliminations/Reconciliations | J21: 0
A22: cumulated | B22: 2019_Q1 | C22: reported | D22: kPLN | E22: 2019-03-31 | F22: 2019 | G22: Q1 | H22: General and administrative expenses | I22: Banking Solutions | J22: -3956
A23: cumulated | B23: 2019_Q1 | C23: reported | D23: kPLN | E23: 2019-03-31 | F23: 2019 | G23: Q1 | H23: General and administrative expenses | I23: Payment Solutions | J23: -4664
A24: cumulated | B24: 2019_Q1 | C24: reported | D24: kPLN | E24: 2019-03-31 | F24: 2019 | G24: Q1 | H24: General and administrative expenses | I24: Dedicated Solutions | J24: -2919
A25: cumulated | B25: 2019_Q1 | C25: reported | D25: kPLN | E25: 2019-03-31 | F25: 2019 | G25: Q1 | H25: General and administrative expenses | I25: Eliminations/Reconciliations | J25: 0
A26: cumulated | B26: 2019_Q1 | C26: reported | D26: kPLN | E26: 2019-03-31 | F26: 2019 | G26: Q1 | H26: Net profit on sales | I26: Banking Solutions | J26: 3525
A27: cumulated | B27: 2019_Q1 | C27: reported | D27: kPLN | E27: 2019-03-31 | F27: 2019 | G27: Q1 | H27: Net profit on sales | I27: Payment Solutions | J27: 12949
A28: cumulated | B28: 2019_Q1 | C28: reported | D28: kPLN | E28: 2019-03-31 | F28: 2019 | G28: Q1 | H28: Net profit on sales | I28: Dedicated Solutions | J28: 4449
A29: cumulated | B29: 2019_Q1 | C29: reported | D29: kPLN | E29: 2019-03-31 | F29: 2019 | G29: Q1 | H29: Net profit on sales | I29: Eliminations/Reconciliations | J29: 0
A30: cumulated | B30: 2019_Q1 | C30: reported | D30: kPLN | E30: 2019-03-31 | F30: 2019 | G30: Q1 | H30: Other operating activities | I30: Banking Solutions | J30: 104
A31: cumulated | B31: 2019_Q1 | C31: reported | D31: kPLN | E31: 2019-03-31 | F31: 2019 | G31: Q1 | H31: Other operating activities | I31: Payment Solutions | J31: 127
A32: cumulated | B32: 2019_Q1 | C32: reported | D32: kPLN | E32: 2019-03-31 | F32: 2019 | G32: Q1 | H32: Other operating activities | I32: Dedicated Solutions | J32: 120
A33: cumulated | B33: 2019_Q1 | C33: reported | D33: kPLN | E33: 2019-03-31 | F33: 2019 | G33: Q1 | H33: Other operating activities | I33: Eliminations/Reconciliations | J33: 0
A34: cumulated | B34: 2019_Q1 | C34: reported | D34: kPLN | E34: 2019-03-31 | F34: 2019 | G34: Q1 | H34: Share of profits of associates | I34: Banking Solutions | J34: 0
A35: cumulated | B35: 2019_Q1 | C35: reported | D35: kPLN | E35: 2019-03-31 | F35: 2019 | G35: Q1 | H35: Share of profits of associates | I35: Payment Solutions | J35: -55
A36: cumulated | B36: 2019_Q1 | C36: reported | D36: kPLN | E36: 2019-03-31 | F36: 2019 | G36: Q1 | H36: Share of profits of associates | I36: Dedicated Solutions | J36: 0
A37: cumulated | B37: 2019_Q1 | C37: reported | D37: kPLN | E37: 2019-03-31 | F37: 2019 | G37: Q1 | H37: Share of profits of associates | I37: Eliminations/Reconciliations | J37: 0
A38: cumulated | B38: 2019_Q1 | C38: reported | D38: kPLN | E38: 2019-03-31 | F38: 2019 | G38: Q1 | H38: Operating profit | I38: Banking Solutions | J38: 3629
A39: cumulated | B39: 2019_Q1 | C39: reported | D39: kPLN | E39: 2019-03-31 | F39: 2019 | G39: Q1 | H39: Operating profit | I39: Payment Solutions | J39: 13021
A40: cumulated | B40: 2019_Q1 | C40: reported | D40: kPLN | E40: 2019-03-31 | F40: 2019 | G40: Q1 | H40: Operating profit | I40: Dedicated Solutions | J40: 4569
A41: cumulated | B41: 2019_Q1 | C41: reported | D41: kPLN | E41: 2019-03-31 | F41: 2019 | G41: Q1 | H41: Operating profit | I41: Eliminations/Reconciliations | J41: 0
A42: cumulated | B42: 2019_Q1 | C42: reported | D42: kPLN | E42: 2019-03-31 | F42: 2019 | G42: Q1 | H42: Goodwill | I42: Banking Solutions | J42: 197384
A43: cumulated | B43: 2019_Q1 | C43: reported | D43: kPLN | E43: 2019-03-31 | F43: 2019 | G43: Q1 | H43: Goodwill | I43: Payment Solutions | J43: 123076
A44: cumulated | B44: 2019_Q1 | C44: reported | D44: kPLN | E44: 2019-03-31 | F44: 2019 | G44: Q1 | H44: Goodwill | I44: Dedicated Solutions | J44: 173985
A45: cumulated | B45: 2019_Q1 | C45: reported | D45: kPLN | E45: 2019-03-31 | F45: 2019 | G45: Q1 | H45: Goodwill | I45: Eliminations/Reconciliations | J45: 0
A46: cumulated | B46: 2019_Q1 | C46: reported | D46: kEUR | E46: 2019-03-31 | F46: 2019 | G46: Q1 | H46: Sales revenues: | I46: Banking Solutions | J46: 9843
A47: cumulated | B47: 2019_Q1 | C47: reported | D47: kEUR | E47: 2019-03-31 | F47: 2019 | G47: Q1 | H47: Sales revenues: | I47: Payment Solutions | J47: 19053
A48: cumulated | B48: 2019_Q1 | C48: reported | D48: kEUR | E48: 2019-03-31 | F48: 2019 | G48: Q1 | H48: Sales revenues: | I48: Dedicated Solutions | J48: 14887
A49: cumulated | B49: 2019_Q1 | C49: reported | D49: kEUR | E49: 2019-03-31 | F49: 2019 | G49: Q1 | H49: Sales revenues: | I49: Eliminations/Reconciliations | J49: -2177
A50: cumulated | B50: 2019_Q1 | C50: reported | D50: kEUR | E50: 2019-03-31 | F50: 2019 | G50: Q1 | H50: Sales to external customers | I50: Banking Solutions | J50: 8956
A51: cumulated | B51: 2019_Q1 | C51: reported | D51: kEUR | E51: 2019-03-31 | F51: 2019 | G51: Q1 | H51: Sales to external customers | I51: Payment Solutions | J51: 17873
A52: cumulated | B52: 2019_Q1 | C52: reported | D52: kEUR | E52: 2019-03-31 | F52: 2019 | G52: Q1 | H52: Sales to external customers | I52: Dedicated Solutions | J52: 14777
A53: cumulated | B53: 2019_Q1 | C53: reported | D53: kEUR | E53: 2019-03-31 | F53: 2019 | G53: Q1 | H53: Sales to external customers | I53: Eliminations/Reconciliations | J53: 0
A54: cumulated | B54: 2019_Q1 | C54: reported | D54: kEUR | E54: 2019-03-31 | F54: 2019 | G54: Q1 | H54: Inter/intra segment sales | I54: Banking Solutions | J54: 887
A55: cumulated | B55: 2019_Q1 | C55: reported | D55: kEUR | E55: 2019-03-31 | F55: 2019 | G55: Q1 | H55: Inter/intra segment sales | I55: Payment Solutions | J55: 1180
A56: cumulated | B56: 2019_Q1 | C56: reported | D56: kEUR | E56: 2019-03-31 | F56: 2019 | G56: Q1 | H56: Inter/intra segment sales | I56: Dedicated Solutions | J56: 110
A57: cumulated | B57: 2019_Q1 | C57: reported | D57: kEUR | E57: 2019-03-31 | F57: 2019 | G57: Q1 | H57: Inter/intra segment sales | I57: Eliminations/Reconciliations | J57: -2177
A58: cumulated | B58: 2019_Q1 | C58: reported | D58: kEUR | E58: 2019-03-31 | F58: 2019 | G58: Q1 | H58: Gross profit on sales | I58: Banking Solutions | J58: 2467
A59: cumulated | B59: 2019_Q1 | C59: reported | D59: kEUR | E59: 2019-03-31 | F59: 2019 | G59: Q1 | H59: Gross profit on sales | I59: Payment Solutions | J59: 5119
A60: cumulated | B60: 2019_Q1 | C60: reported | D60: kEUR | E60: 2019-03-31 | F60: 2019 | G60: Q1 | H60: Gross profit on sales | I60: Dedicated Solutions | J60: 2667
A61: cumulated | B61: 2019_Q1 | C61: reported | D61: kEUR | E61: 2019-03-31 | F61: 2019 | G61: Q1 | H61: Gross profit on sales | I61: Eliminations/Reconciliations | J61: 0
A62: cumulated | B62: 2019_Q1 | C62: reported | D62: kEUR | E62: 2019-03-31 | F62: 2019 | G62: Q1 | H62: Selling costs | I62: Banking Solutions | J62: -727
A63: cumulated | B63: 2019_Q1 | C63: reported | D63: kEUR | E63: 2019-03-31 | F63: 2019 | G63: Q1 | H63: Selling costs | I63: Payment Solutions | J63: -1021
A64: cumulated | B64: 2019_Q1 | C64: reported | D64: kEUR | E64: 2019-03-31 | F64: 2019 | G64: Q1 | H64: Selling costs | I64: Dedicated Solutions | J64: -952
A65: cumulated | B65: 2019_Q1 | C65: reported | D65: kEUR | E65: 2019-03-31 | F65: 2019 | G65: Q1 | H65: Selling costs | I65: Eliminations/Reconciliations | J65: 0
A66: cumulated | B66: 2019_Q1 | C66: reported | D66: kEUR | E66: 2019-03-31 | F66: 2019 | G66: Q1 | H66: General and administrative expenses | I66: Banking Solutions | J66: -920
A67: cumulated | B67: 2019_Q1 | C67: reported | D67: kEUR | E67: 2019-03-31 | F67: 2019 | G67: Q1 | H67: General and administrative expenses | I67: Payment Solutions | J67: -1085
A68: cumulated | B68: 2019_Q1 | C68: reported | D68: kEUR | E68: 2019-03-31 | F68: 2019 | G68: Q1 | H68: General and administrative expenses | I68: Dedicated Solutions | J68: -680
A69: cumulated | B69: 2019_Q1 | C69: reported | D69: kEUR | E69: 2019-03-31 | F69: 2019 | G69: Q1 | H69: General and administrative expenses | I69: Eliminations/Reconciliations | J69: 0
A70: cumulated | B70: 2019_Q1 | C70: reported | D70: kEUR | E70: 2019-03-31 | F70: 2019 | G70: Q1 | H70: Net profit on sales | I70: Banking Solutions | J70: 820
A71: cumulated | B71: 2019_Q1 | C71: reported | D71: kEUR | E71: 2019-03-31 | F71: 2019 | G71: Q1 | H71: Net profit on sales | I71: Payment Solutions | J71: 3013
A72: cumulated | B72: 2019_Q1 | C72: reported | D72: kEUR | E72: 2019-03-31 | F72: 2019 | G72: Q1 | H72: Net profit on sales | I72: Dedicated Solutions | J72: 1035
A73: cumulated | B73: 2019_Q1 | C73: reported | D73: kEUR | E73: 2019-03-31 | F73: 2019 | G73: Q1 | H73: Net profit on sales | I73: Eliminations/Reconciliations | J73: 0
A74: cumulated | B74: 2019_Q1 | C74: reported | D74: kEUR | E74: 2019-03-31 | F74: 2019 | G74: Q1 | H74: Other operating activities | I74: Banking Solutions | J74: 24
A75: cumulated | B75: 2019_Q1 | C75: reported | D75: kEUR | E75: 2019-03-31 | F75: 2019 | G75: Q1 | H75: Other operating activities | I75: Payment Solutions | J75: 30
A76: cumulated | B76: 2019_Q1 | C76: reported | D76: kEUR | E76: 2019-03-31 | F76: 2019 | G76: Q1 | H76: Other operating activities | I76: Dedicated Solutions | J76: 28
A77: cumulated | B77: 2019_Q1 | C77: reported | D77: kEUR | E77: 2019-03-31 | F77: 2019 | G77: Q1 | H77: Other operating activities | I77: Eliminations/Reconciliations | J77: 0
A78: cumulated | B78: 2019_Q1 | C78: reported | D78: kEUR | E78: 2019-03-31 | F78: 2019 | G78: Q1 | H78: Share of profits of associates | I78: Banking Solutions | J78: 0
A79: cumulated | B79: 2019_Q1 | C79: reported | D79: kEUR | E79: 2019-03-31 | F79: 2019 | G79: Q1 | H79: Share of profits of associates | I79: Payment Solutions | J79: -13
A80: cumulated | B80: 2019_Q1 | C80: reported | D80: kEUR | E80: 2019-03-31 | F80: 2019 | G80: Q1 | H80: Share of profits of associates | I80: Dedicated Solutions | J80: 0
A81: cumulated | B81: 2019_Q1 | C81: reported | D81: kEUR | E81: 2019-03-31 | F81: 2019 | G81: Q1 | H81: Share of profits of associates | I81: Eliminations/Reconciliations | J81: 0
A82: cumulated | B82: 2019_Q1 | C82: reported | D82: kEUR | E82: 2019-03-31 | F82: 2019 | G82: Q1 | H82: Operating profit | I82: Banking Solutions | J82: 844
A83: cumulated | B83: 2019_Q1 | C83: reported | D83: kEUR | E83: 2019-03-31 | F83: 2019 | G83: Q1 | H83: Operating profit | I83: Payment Solutions | J83: 3030
A84: cumulated | B84: 2019_Q1 | C84: reported | D84: kEUR | E84: 2019-03-31 | F84: 2019 | G84: Q1 | H84: Operating profit | I84: Dedicated Solutions | J84: 1063
A85: cumulated | B85: 2019_Q1 | C85: reported | D85: kEUR | E85: 2019-03-31 | F85: 2019 | G85: Q1 | H85: Operating profit | I85: Eliminations/Reconciliations | J85: 0
A86: cumulated | B86: 2019_Q1 | C86: restated | D86: kPLN | E86: 2018-03-31 | F86: 2018 | G86: Q1 | H86: Sales revenues: | I86: Banking Solutions | J86: 34962
A87: cumulated | B87: 2019_Q1 | C87: restated | D87: kPLN | E87: 2018-03-31 | F87: 2018 | G87: Q1 | H87: Sales revenues: | I87: Payment Solutions | J87: 68095
A88: cumulated | B88: 2019_Q1 | C88: restated | D88: kPLN | E88: 2018-03-31 | F88: 2018 | G88: Q1 | H88: Sales revenues: | I88: Dedicated Solutions | J88: 41209
A89: cumulated | B89: 2019_Q1 | C89: restated | D89: kPLN | E89: 2018-03-31 | F89: 2018 | G89: Q1 | H89: Sales revenues: | I89: Eliminations/Reconciliations | J89: -5662
A90: cumulated | B90: 2019_Q1 | C90: restated | D90: kPLN | E90: 2018-03-31 | F90: 2018 | G90: Q1 | H90: Sales to external customers | I90: Banking Solutions | J90: 32166
A91: cumulated | B91: 2019_Q1 | C91: restated | D91: kPLN | E91: 2018-03-31 | F91: 2018 | G91: Q1 | H91: Sales to external customers | I91: Payment Solutions | J91: 65802
A92: cumulated | B92: 2019_Q1 | C92: restated | D92: kPLN | E92: 2018-03-31 | F92: 2018 | G92: Q1 | H92: Sales to external customers | I92: Dedicated Solutions | J92: 40636
A93: cumulated | B93: 2019_Q1 | C93: restated | D93: kPLN | E93: 2018-03-31 | F93: 2018 | G93: Q1 | H93: Sales to external customers | I93: Eliminations/Reconciliations | J93: 0
A94: cumulated | B94: 2019_Q1 | C94: restated | D94: kPLN | E94: 2018-03-31 | F94: 2018 | G94: Q1 | H94: Inter/intra segment sales | I94: Banking Solutions | J94: 2796
A95: cumulated | B95: 2019_Q1 | C95: restated | D95: kPLN | E95: 2018-03-31 | F95: 2018 | G95: Q1 | H95: Inter/intra segment sales | I95: Payment Solutions | J95: 2293
A96: cumulated | B96: 2019_Q1 | C96: restated | D96: kPLN | E96: 2018-03-31 | F96: 2018 | G96: Q1 | H96: Inter/intra segment sales | I96: Dedicated Solutions | J96: 573
A97: cumulated | B97: 2019_Q1 | C97: restated | D97: kPLN | E97: 2018-03-31 | F97: 2018 | G97: Q1 | H97: Inter/intra segment sales | I97: Eliminations/Reconciliations | J97: -5662
A98: cumulated | B98: 2019_Q1 | C98: restated | D98: kPLN | E98: 2018-03-31 | F98: 2018 | G98: Q1 | H98: Gross profit on sales | I98: Banking Solutions | J98: 7389
A99: cumulated | B99: 2019_Q1 | C99: restated | D99: kPLN | E99: 2018-03-31 | F99: 2018 | G99: Q1 | H99: Gross profit on sales | I99: Payment Solutions | J99: 17417
A100: cumulated | B100: 2019_Q1 | C100: restated | D100: kPLN | E100: 2018-03-31 | F100: 2018 | G100: Q1 | H100: Gross profit on sales | I100: Dedicated Solutions | J100: 7417
A101: cumulated | B101: 2019_Q1 | C101: restated | D101: kPLN | E101: 2018-03-31 | F101: 2018 | G101: Q1 | H101: Gross profit on sales | I101: Eliminations/Reconciliations | J101: 0
A102: cumulated | B102: 2019_Q1 | C102: restated | D102: kPLN | E102: 2018-03-31 | F102: 2018 | G102: Q1 | H102: Selling costs | I102: Banking Solutions | J102: -2837
A103: cumulated | B103: 2019_Q1 | C103: restated | D103: kPLN | E103: 2018-03-31 | F103: 2018 | G103: Q1 | H103: Selling costs | I103: Payment Solutions | J103: -3392
A104: cumulated | B104: 2019_Q1 | C104: restated | D104: kPLN | E104: 2018-03-31 | F104: 2018 | G104: Q1 | H104: Selling costs | I104: Dedicated Solutions | J104: -4313
A105: cumulated | B105: 2019_Q1 | C105: restated | D105: kPLN | E105: 2018-03-31 | F105: 2018 | G105: Q1 | H105: Selling costs | I105: Eliminations/Reconciliations | J105: 0
A106: cumulated | B106: 2019_Q1 | C106: restated | D106: kPLN | E106: 2018-03-31 | F106: 2018 | G106: Q1 | H106: General and administrative expenses | I106: Banking Solutions | J106: -3172
A107: cumulated | B107: 2019_Q1 | C107: restated | D107: kPLN | E107: 2018-03-31 | F107: 2018 | G107: Q1 | H107: General and administrative expenses | I107: Payment Solutions | J107: -3490
A108: cumulated | B108: 2019_Q1 | C108: restated | D108: kPLN | E108: 2018-03-31 | F108: 2018 | G108: Q1 | H108: General and administrative expenses | I108: Dedicated Solutions | J108: -2021
A109: cumulated | B109: 2019_Q1 | C109: restated | D109: kPLN | E109: 2018-03-31 | F109: 2018 | G109: Q1 | H109: General and administrative expenses | I109: Eliminations/Reconciliations | J109: 0
A110: cumulated | B110: 2019_Q1 | C110: restated | D110: kPLN | E110: 2018-03-31 | F110: 2018 | G110: Q1 | H110: Net profit on sales | I110: Banking Solutions | J110: 1380
A111: cumulated | B111: 2019_Q1 | C111: restated | D111: kPLN | E111: 2018-03-31 | F111: 2018 | G111: Q1 | H111: Net profit on sales | I111: Payment Solutions | J111: 10535
A112: cumulated | B112: 2019_Q1 | C112: restated | D112: kPLN | E112: 2018-03-31 | F112: 2018 | G112: Q1 | H112: Net profit on sales | I112: Dedicated Solutions | J112: 1083
A113: cumulated | B113: 2019_Q1 | C113: restated | D113: kPLN | E113: 2018-03-31 | F113: 2018 | G113: Q1 | H113: Net profit on sales | I113: Eliminations/Reconciliations | J113: 0
A114: cumulated | B114: 2019_Q1 | C114: restated | D114: kPLN | E114: 2018-03-31 | F114: 2018 | G114: Q1 | H114: Other operating activities | I114: Banking Solutions | J114: 53
A115: cumulated | B115: 2019_Q1 | C115: restated | D115: kPLN | E115: 2018-03-31 | F115: 2018 | G115: Q1 | H115: Other operating activities | I115: Payment Solutions | J115: 61
A116: cumulated | B116: 2019_Q1 | C116: restated | D116: kPLN | E116: 2018-03-31 | F116: 2018 | G116: Q1 | H116: Other operating activities | I116: Dedicated Solutions | J116: -19
A117: cumulated | B117: 2019_Q1 | C117: restated | D117: kPLN | E117: 2018-03-31 | F117: 2018 | G117: Q1 | H117: Other operating activities | I117: Eliminations/Reconciliations | J117: 0
A118: cumulated | B118: 2019_Q1 | C118: restated | D118: kPLN | E118: 2018-03-31 | F118: 2018 | G118: Q1 | H118: Share of profits of associates | I118: Banking Solutions | J118: 0
A119: cumulated | B119: 2019_Q1 | C119: restated | D119: kPLN | E119: 2018-03-31 | F119: 2018 | G119: Q1 | H119: Share of profits of associates | I119: Payment Solutions | J119: 0
A120: cumulated | B120: 2019_Q1 | C120: restated | D120: kPLN | E120: 2018-03-31 | F120: 2018 | G120: Q1 | H120: Share of profits of associates | I120: Dedicated Solutions | J120: 0
A121: cumulated | B121: 2019_Q1 | C121: restated | D121: kPLN | E121: 2018-03-31 | F121: 2018 | G121: Q1 | H121: Share of profits of associates | I121: Eliminations/Reconciliations | J121: 0
A122: cumulated | B122: 2019_Q1 | C122: restated | D122: kPLN | E122: 2018-03-31 | F122: 2018 | G122: Q1 | H122: Operating profit | I122: Banking Solutions | J122: 1433
A123: cumulated | B123: 2019_Q1 | C123: restated | D123: kPLN | E123: 2018-03-31 | F123: 2018 | G123: Q1 | H123: Operating profit | I123: Payment Solutions | J123: 10596
A124: cumulated | B124: 2019_Q1 | C124: restated | D124: kPLN | E124: 2018-03-31 | F124: 2018 | G124: Q1 | H124: Operating profit | I124: Dedicated Solutions | J124: 1064
A125: cumulated | B125: 2019_Q1 | C125: restated | D125: kPLN | E125: 2018-03-31 | F125: 2018 | G125: Q1 | H125: Operating profit | I125: Eliminations/Reconciliations | J125: 0
A126: cumulated | B126: 2019_Q1 | C126: restated | D126: kPLN | E126: 2018-03-31 | F126: 2018 | G126: Q1 | H126: Goodwill | I126: Banking Solutions | J126: 195624
A127: cumulated | B127: 2019_Q1 | C127: restated | D127: kPLN | E127: 2018-03-31 | F127: 2018 | G127: Q1 | H127: Goodwill | I127: Payment Solutions | J127: 106398
A128: cumulated | B128: 2019_Q1 | C128: restated | D128: kPLN | E128: 2018-03-31 | F128: 2018 | G128: Q1 | H128: Goodwill | I128: Dedicated Solutions | J128: 174850
A129: cumulated | B129: 2019_Q1 | C129: restated | D129: kPLN | E129: 2018-03-31 | F129: 2018 | G129: Q1 | H129: Goodwill | I129: Eliminations/Reconciliations | J129: 0
A130: cumulated | B130: 2019_Q1 | C130: restated | D130: kEUR | E130: 2018-03-31 | F130: 2018 | G130: Q1 | H130: Sales revenues: | I130: Banking Solutions | J130: 8367
A131: cumulated | B131: 2019_Q1 | C131: restated | D131: kEUR | E131: 2018-03-31 | F131: 2018 | G131: Q1 | H131: Sales revenues: | I131: Payment Solutions | J131: 16298
A132: cumulated | B132: 2019_Q1 | C132: restated | D132: kEUR | E132: 2018-03-31 | F132: 2018 | G132: Q1 | H132: Sales revenues: | I132: Dedicated Solutions | J132: 9862
A133: cumulated | B133: 2019_Q1 | C133: restated | D133: kEUR | E133: 2018-03-31 | F133: 2018 | G133: Q1 | H133: Sales revenues: | I133: Eliminations/Reconciliations | J133: -1355
A134: cumulated | B134: 2019_Q1 | C134: restated | D134: kEUR | E134: 2018-03-31 | F134: 2018 | G134: Q1 | H134: Sales to external customers | I134: Banking Solutions | J134: 7698
A135: cumulated | B135: 2019_Q1 | C135: restated | D135: kEUR | E135: 2018-03-31 | F135: 2018 | G135: Q1 | H135: Sales to external customers | I135: Payment Solutions | J135: 15749
A136: cumulated | B136: 2019_Q1 | C136: restated | D136: kEUR | E136: 2018-03-31 | F136: 2018 | G136: Q1 | H136: Sales to external customers | I136: Dedicated Solutions | J136: 9725
A137: cumulated | B137: 2019_Q1 | C137: restated | D137: kEUR | E137: 2018-03-31 | F137: 2018 | G137: Q1 | H137: Sales to external customers | I137: Eliminations/Reconciliations | J137: 0
A138: cumulated | B138: 2019_Q1 | C138: restated | D138: kEUR | E138: 2018-03-31 | F138: 2018 | G138: Q1 | H138: Inter/intra segment sales | I138: Banking Solutions | J138: 669
A139: cumulated | B139: 2019_Q1 | C139: restated | D139: kEUR | E139: 2018-03-31 | F139: 2018 | G139: Q1 | H139: Inter/intra segment sales | I139: Payment Solutions | J139: 549
A140: cumulated | B140: 2019_Q1 | C140: restated | D140: kEUR | E140: 2018-03-31 | F140: 2018 | G140: Q1 | H140: Inter/intra segment sales | I140: Dedicated Solutions | J140: 137
A141: cumulated | B141: 2019_Q1 | C141: restated | D141: kEUR | E141: 2018-03-31 | F141: 2018 | G141: Q1 | H141: Inter/intra segment sales | I141: Eliminations/Reconciliations | J141: -1355
A142: cumulated | B142: 2019_Q1 | C142: restated | D142: kEUR | E142: 2018-03-31 | F142: 2018 | G142: Q1 | H142: Gross profit on sales | I142: Banking Solutions | J142: 1768
A143: cumulated | B143: 2019_Q1 | C143: restated | D143: kEUR | E143: 2018-03-31 | F143: 2018 | G143: Q1 | H143: Gross profit on sales | I143: Payment Solutions | J143: 4169
A144: cumulated | B144: 2019_Q1 | C144: restated | D144: kEUR | E144: 2018-03-31 | F144: 2018 | G144: Q1 | H144: Gross profit on sales | I144: Dedicated Solutions | J144: 1775
A145: cumulated | B145: 2019_Q1 | C145: restated | D145: kEUR | E145: 2018-03-31 | F145: 2018 | G145: Q1 | H145: Gross profit on sales | I145: Eliminations/Reconciliations | J145: 0
A146: cumulated | B146: 2019_Q1 | C146: restated | D146: kEUR | E146: 2018-03-31 | F146: 2018 | G146: Q1 | H146: Selling costs | I146: Banking Solutions | J146: -679
A147: cumulated | B147: 2019_Q1 | C147: restated | D147: kEUR | E147: 2018-03-31 | F147: 2018 | G147: Q1 | H147: Selling costs | I147: Payment Solutions | J147: -812
A148: cumulated | B148: 2019_Q1 | C148: restated | D148: kEUR | E148: 2018-03-31 | F148: 2018 | G148: Q1 | H148: Selling costs | I148: Dedicated Solutions | J148: -1032
A149: cumulated | B149: 2019_Q1 | C149: restated | D149: kEUR | E149: 2018-03-31 | F149: 2018 | G149: Q1 | H149: Selling costs | I149: Eliminations/Reconciliations | J149: 0
A150: cumulated | B150: 2019_Q1 | C150: restated | D150: kEUR | E150: 2018-03-31 | F150: 2018 | G150: Q1 | H150: General and administrative expenses | I150: Banking Solutions | J150: -759
A151: cumulated | B151: 2019_Q1 | C151: restated | D151: kEUR | E151: 2018-03-31 | F151: 2018 | G151: Q1 | H151: General and administrative expenses | I151: Payment Solutions | J151: -835
A152: cumulated | B152: 2019_Q1 | C152: restated | D152: kEUR | E152: 2018-03-31 | F152: 2018 | G152: Q1 | H152: General and administrative expenses | I152: Dedicated Solutions | J152: -484
A153: cumulated | B153: 2019_Q1 | C153: restated | D153: kEUR | E153: 2018-03-31 | F153: 2018 | G153: Q1 | H153: General and administrative expenses | I153: Eliminations/Reconciliations | J153: 0
A154: cumulated | B154: 2019_Q1 | C154: restated | D154: kEUR | E154: 2018-03-31 | F154: 2018 | G154: Q1 | H154: Net profit on sales | I154: Banking Solutions | J154: 330
A155: cumulated | B155: 2019_Q1 | C155: restated | D155: kEUR | E155: 2018-03-31 | F155: 2018 | G155: Q1 | H155: Net profit on sales | I155: Payment Solutions | J155: 2522
A156: cumulated | B156: 2019_Q1 | C156: restated | D156: kEUR | E156: 2018-03-31 | F156: 2018 | G156: Q1 | H156: Net profit on sales | I156: Dedicated Solutions | J156: 259
A157: cumulated | B157: 2019_Q1 | C157: restated | D157: kEUR | E157: 2018-03-31 | F157: 2018 | G157: Q1 | H157: Net profit on sales | I157: Eliminations/Reconciliations | J157: 0
A158: cumulated | B158: 2019_Q1 | C158: restated | D158: kEUR | E158: 2018-03-31 | F158: 2018 | G158: Q1 | H158: Other operating activities | I158: Banking Solutions | J158: 13
A159: cumulated | B159: 2019_Q1 | C159: restated | D159: kEUR | E159: 2018-03-31 | F159: 2018 | G159: Q1 | H159: Other operating activities | I159: Payment Solutions | J159: 15
A160: cumulated | B160: 2019_Q1 | C160: restated | D160: kEUR | E160: 2018-03-31 | F160: 2018 | G160: Q1 | H160: Other operating activities | I160: Dedicated Solutions | J160: -5
A161: cumulated | B161: 2019_Q1 | C161: restated | D161: kEUR | E161: 2018-03-31 | F161: 2018 | G161: Q1 | H161: Other operating activities | I161: Eliminations/Reconciliations | J161: 0
A162: cumulated | B162: 2019_Q1 | C162: restated | D162: kEUR | E162: 2018-03-31 | F162: 2018 | G162: Q1 | H162: Share of profits of associates | I162: Banking Solutions | J162: 0
A163: cumulated | B163: 2019_Q1 | C163: restated | D163: kEUR | E163: 2018-03-31 | F163: 2018 | G163: Q1 | H163: Share of profits of associates | I163: Payment Solutions | J163: 0
A164: cumulated | B164: 2019_Q1 | C164: restated | D164: kEUR | E164: 2018-03-31 | F164: 2018 | G164: Q1 | H164: Share of profits of associates | I164: Dedicated Solutions | J164: 0
A165: cumulated | B165: 2019_Q1 | C165: restated | D165: kEUR | E165: 2018-03-31 | F165: 2018 | G165: Q1 | H165: Share of profits of associates | I165: Eliminations/Reconciliations | J165: 0
A166: cumulated | B166: 2019_Q1 | C166: restated | D166: kEUR | E166: 2018-03-31 | F166: 2018 | G166: Q1 | H166: Operating profit | I166: Banking Solutions | J166: 343
A167: cumulated | B167: 2019_Q1 | C167: restated | D167: kEUR | E167: 2018-03-31 | F167: 2018 | G167: Q1 | H167: Operating profit | I167: Payment Solutions | J167: 2537
A168: cumulated | B168: 2019_Q1 | C168: restated | D168: kEUR | E168: 2018-03-31 | F168: 2018 | G168: Q1 | H168: Operating profit | I168: Dedicated Solutions | J168: 254
A169: cumulated | B169: 2019_Q1 | C169: restated | D169: kEUR | E169: 2018-03-31 | F169: 2018 | G169: Q1 | H169: Operating profit | I169: Eliminations/Reconciliations | J169: 0
A170: cumulated | B170: 2019_Q2 | C170: reported | D170: kPLN | E170: 2019-06-30 | F170: 2019 | G170: Q2 | H170: Sales revenues: | I170: Banking Solutions | J170: 93090
A171: cumulated | B171: 2019_Q2 | C171: reported | D171: kPLN | E171: 2019-06-30 | F171: 2019 | G171: Q2 | H171: Sales revenues: | I171: Payment Solutions | J171: 169055
A172: cumulated | B172: 2019_Q2 | C172: reported | D172: kPLN | E172: 2019-06-30 | F172: 2019 | G172: Q2 | H172: Sales revenues: | I172: Dedicated Solutions | J172: 132508
A173: cumulated | B173: 2019_Q2 | C173: reported | D173: kPLN | E173: 2019-06-30 | F173: 2019 | G173: Q2 | H173: Sales revenues: | I173: Eliminations/Reconciliations | J173: -17679
A174: cumulated | B174: 2019_Q2 | C174: reported | D174: kPLN | E174: 2019-06-30 | F174: 2019 | G174: Q2 | H174: Sales to external customers | I174: Banking Solutions | J174: 84293
A175: cumulated | B175: 2019_Q2 | C175: reported | D175: kPLN | E175: 2019-06-30 | F175: 2019 | G175: Q2 | H175: Sales to external customers | I175: Payment Solutions | J175: 160920
A176: cumulated | B176: 2019_Q2 | C176: reported | D176: kPLN | E176: 2019-06-30 | F176: 2019 | G176: Q2 | H176: Sales to external customers | I176: Dedicated Solutions | J176: 131761
A177: cumulated | B177: 2019_Q2 | C177: reported | D177: kPLN | E177: 2019-06-30 | F177: 2019 | G177: Q2 | H177: Sales to external customers | I177: Eliminations/Reconciliations | J177: 0
A178: cumulated | B178: 2019_Q2 | C178: reported | D178: kPLN | E178: 2019-06-30 | F178: 2019 | G178: Q2 | H178: Inter/intra segment sales | I178: Banking Solutions | J178: 8797
A179: cumulated | B179: 2019_Q2 | C179: reported | D179: kPLN | E179: 2019-06-30 | F179: 2019 | G179: Q2 | H179: Inter/intra segment sales | I179: Payment Solutions | J179: 8135
A180: cumulated | B180: 2019_Q2 | C180: reported | D180: kPLN | E180: 2019-06-30 | F180: 2019 | G180: Q2 | H180: Inter/intra segment sales | I180: Dedicated Solutions | J180: 747
A181: cumulated | B181: 2019_Q2 | C181: reported | D181: kPLN | E181: 2019-06-30 | F181: 2019 | G181: Q2 | H181: Inter/intra segment sales | I181: Eliminations/Reconciliations | J181: -17679
A182: cumulated | B182: 2019_Q2 | C182: reported | D182: kPLN | E182: 2019-06-30 | F182: 2019 | G182: Q2 | H182: Gross profit on sales | I182: Banking Solutions | J182: 26013
A183: cumulated | B183: 2019_Q2 | C183: reported | D183: kPLN | E183: 2019-06-30 | F183: 2019 | G183: Q2 | H183: Gross profit on sales | I183: Payment Solutions | J183: 45214
A184: cumulated | B184: 2019_Q2 | C184: reported | D184: kPLN | E184: 2019-06-30 | F184: 2019 | G184: Q2 | H184: Gross profit on sales | I184: Dedicated Solutions | J184: 21876
A185: cumulated | B185: 2019_Q2 | C185: reported | D185: kPLN | E185: 2019-06-30 | F185: 2019 | G185: Q2 | H185: Gross profit on sales | I185: Eliminations/Reconciliations | J185: 0
A186: cumulated | B186: 2019_Q2 | C186: reported | D186: kPLN | E186: 2019-06-30 | F186: 2019 | G186: Q2 | H186: Selling costs | I186: Banking Solutions | J186: -6093
A187: cumulated | B187: 2019_Q2 | C187: reported | D187: kPLN | E187: 2019-06-30 | F187: 2019 | G187: Q2 | H187: Selling costs | I187: Payment Solutions | J187: -9317
A188: cumulated | B188: 2019_Q2 | C188: reported | D188: kPLN | E188: 2019-06-30 | F188: 2019 | G188: Q2 | H188: Selling costs | I188: Dedicated Solutions | J188: -8620
A189: cumulated | B189: 2019_Q2 | C189: reported | D189: kPLN | E189: 2019-06-30 | F189: 2019 | G189: Q2 | H189: Selling costs | I189: Eliminations/Reconciliations | J189: 0
A190: cumulated | B190: 2019_Q2 | C190: reported | D190: kPLN | E190: 2019-06-30 | F190: 2019 | G190: Q2 | H190: General and administrative expenses | I190: Banking Solutions | J190: -8063
A191: cumulated | B191: 2019_Q2 | C191: reported | D191: kPLN | E191: 2019-06-30 | F191: 2019 | G191: Q2 | H191: General and administrative expenses | I191: Payment Solutions | J191: -11188
A192: cumulated | B192: 2019_Q2 | C192: reported | D192: kPLN | E192: 2019-06-30 | F192: 2019 | G192: Q2 | H192: General and administrative expenses | I192: Dedicated Solutions | J192: -6450
A193: cumulated | B193: 2019_Q2 | C193: reported | D193: kPLN | E193: 2019-06-30 | F193: 2019 | G193: Q2 | H193: General and administrative expenses | I193: Eliminations/Reconciliations | J193: 0
A194: cumulated | B194: 2019_Q2 | C194: reported | D194: kPLN | E194: 2019-06-30 | F194: 2019 | G194: Q2 | H194: Net profit on sales | I194: Banking Solutions | J194: 11857
A195: cumulated | B195: 2019_Q2 | C195: reported | D195: kPLN | E195: 2019-06-30 | F195: 2019 | G195: Q2 | H195: Net profit on sales | I195: Payment Solutions | J195: 24709
A196: cumulated | B196: 2019_Q2 | C196: reported | D196: kPLN | E196: 2019-06-30 | F196: 2019 | G196: Q2 | H196: Net profit on sales | I196: Dedicated Solutions | J196: 6806
A197: cumulated | B197: 2019_Q2 | C197: reported | D197: kPLN | E197: 2019-06-30 | F197: 2019 | G197: Q2 | H197: Net profit on sales | I197: Eliminations/Reconciliations | J197: 0
A198: cumulated | B198: 2019_Q2 | C198: reported | D198: kPLN | E198: 2019-06-30 | F198: 2019 | G198: Q2 | H198: Other operating activities | I198: Banking Solutions | J198: -76
A199: cumulated | B199: 2019_Q2 | C199: reported | D199: kPLN | E199: 2019-06-30 | F199: 2019 | G199: Q2 | H199: Other operating activities | I199: Payment Solutions | J199: 318
A200: cumulated | B200: 2019_Q2 | C200: reported | D200: kPLN | E200: 2019-06-30 | F200: 2019 | G200: Q2 | H200: Other operating activities | I200: Dedicated Solutions | J200: 229
... 7576 more rows

Sheet Segments_raw (hidden)
A1: amount_type | B1: report_code | C1: type | D1: currency | E1: period | F1: quarter | G1: year | H1: Position | I1: Banking Solutions | J1: Payment Solutions | K1: Dedicated Solutions | L1: Eliminations/Reconciliations | M1: Hiperinflation
A2: cumulated | B2: 2019_Q1 | C2: reported | D2: kPLN | E2: 2019-03-31 | H2: Sales revenues: | I2: 42305 | J2: 81888 | K2: 63980 | L2: -9357
H3: Sales to external customers | I3: 38492 | J3: 76817 | K3: 63507 | L3: 0
H4: Inter/intra segment sales | I4: 3813 | J4: 5071 | K4: 473 | L4: -9357
H5: Gross profit on sales | I5: 10604 | J5: 22002 | K5: 11461 | L5: 0
H6: Selling costs (-) | I6: -3123 | J6: -4389 | K6: -4093 | L6: 0
H7: General and administrative expenses (-) | I7: -3956 | J7: -4664 | K7: -2919 | L7: 0
H8: Net profit on sales | I8: 3525 | J8: 12949 | K8: 4449 | L8: 0
H9: Other operating activities | I9: 104 | J9: 127 | K9: 120
H10: Share of profits of associates | I10: 0 | J10: -55 | K10: 0
H11: Operating profit | I11: 3629 | J11: 13021 | K11: 4569 | L11: 0
H12: Goodwill | I12: 197384 | J12: 123076 | K12: 173985 | L12: 0
A13: cumulated | B13: 2019_Q1 | C13: reported | D13: kEUR | E13: 2019-03-31 | H13: Sales revenues: | I13: 9843 | J13: 19053 | K13: 14887 | L13: -2177
H14: Sales to external customers | I14: 8956 | J14: 17873 | K14: 14777 | L14: 0
H15: Inter/intra segment sales | I15: 887 | J15: 1180 | K15: 110 | L15: -2177
H16: Gross profit on sales | I16: 2467 | J16: 5119 | K16: 2667 | L16: 0
H17: Selling costs (-) | I17: -727 | J17: -1021 | K17: -952 | L17: 0
H18: General and administrative expenses (-) | I18: -920 | J18: -1085 | K18: -680 | L18: 0
H19: Net profit on sales | I19: 820 | J19: 3013 | K19: 1035 | L19: 0
H20: Other operating activities | I20: 24 | J20: 30 | K20: 28 | L20: 0
H21: Share of profits of associates | I21: 0 | J21: -13 | K21: 0 | L21: 0
H22: Operating profit | I22: 844 | J22: 3030 | K22: 1063 | L22: 0
A23: cumulated | B23: 2019_Q1 | C23: restated | D23: kPLN | E23: 2018-03-31 | H23: Sales revenues: | I23: 34962 | J23: 68095 | K23: 41209 | L23: -5662
H24: Sales to external customers | I24: 32166 | J24: 65802 | K24: 40636 | L24: 0
H25: Inter/intra segment sales | I25: 2796 | J25: 2293 | K25: 573 | L25: -5662
H26: Gross profit on sales | I26: 7389 | J26: 17417 | K26: 7417 | L26: 0
H27: Selling costs (-) | I27: -2837 | J27: -3392 | K27: -4313 | L27: 0
H28: General and administrative expenses (-) | I28: -3172 | J28: -3490 | K28: -2021 | L28: 0
H29: Net profit on sales | I29: 1380 | J29: 10535 | K29: 1083 | L29: 0
H30: Other operating activities | I30: 53 | J30: 61 | K30: -19
H31: Share of profits of associates
H32: Operating profit | I32: 1433 | J32: 10596 | K32: 1064 | L32: 0
H33: goodwill | I33: 195624 | J33: 106398 | K33: 174850 | L33: 0
A34: cumulated | B34: 2019_Q1 | C34: restated | D34: kEUR | E34: 2018-03-31 | H34: Sales revenues: | I34: 8367 | J34: 16298 | K34: 9862 | L34: -1355
H35: Sales to external customers | I35: 7698 | J35: 15749 | K35: 9725 | L35: 0
H36: Inter/intra segment sales | I36: 669 | J36: 549 | K36: 137 | L36: -1355
H37: Gross profit on sales | I37: 1768 | J37: 4169 | K37: 1775 | L37: 0
H38: Selling costs (-) | I38: -679 | J38: -812 | K38: -1032 | L38: 0
H39: General and administrative expenses (-) | I39: -759 | J39: -835 | K39: -484 | L39: 0
H40: Net profit on sales | I40: 330 | J40: 2522 | K40: 259 | L40: 0
H41: Other operating activities | I41: 13 | J41: 15 | K41: -5 | L41: 0
H42: Share of profits of associates
H43: Operating profit | I43: 343 | J43: 2537 | K43: 254 | L43: 0
A44: cumulated | B44: 2019_Q2 | C44: reported | D44: kPLN | E44: 2019-06-30 | H44: Sales revenues: | I44: 93090 | J44: 169055 | K44: 132508 | L44: -17679
H45: Sales to external customers | I45: 84293 | J45: 160920 | K45: 131761 | L45: 0
H46: Inter/intra segment sales | I46: 8797 | J46: 8135 | K46: 747 | L46: -17679
H47: Gross profit on sales | I47: 26013 | J47: 45214 | K47: 21876 | L47: 0
H48: Selling costs (-) | I48: -6093 | J48: -9317 | K48: -8620 | L48: 0
H49: General and administrative expenses (-) | I49: -8063 | J49: -11188 | K49: -6450 | L49: 0
H50: Net profit on sales | I50: 11857 | J50: 24709 | K50: 6806 | L50: 0
H51: Other operating activities | I51: -76 | J51: 318 | K51: 229 | L51: 0
H52: Share of profits of associates | I52: 0 | J52: -61 | K52: 0 | L52: 0
H53: Operating profit | I53: 11781 | J53: 24966 | K53: 7035 | L53: 0
H54: Goodwill | I54: 195811 | J54: 124806 | K54: 172095 | L54: 0
A55: cumulated | B55: 2019_Q2 | C55: reported | D55: kEUR | E55: 2019-06-30 | H55: Sales revenues: | I55: 21709 | J55: 39425 | K55: 30902 | L55: -4123
H56: Sales to external customers | I56: 19657 | J56: 37528 | K56: 30728 | L56: 0
H57: Inter/intra segment sales | I57: 2052 | J57: 1897 | K57: 174 | L57: -4123
H58: Gross profit on sales | I58: 6066 | J58: 10544 | K58: 5102 | L58: 0
H59: Selling costs (-) | I59: -1421 | J59: -2173 | K59: -2010 | L59: 0
H60: General and administrative expenses (-) | I60: -1880 | J60: -2609 | K60: -1505 | L60: 0
H61: Net profit on sales | I61: 2765 | J61: 5762 | K61: 1587 | L61: 0
H62: Other operating activities | I62: -18 | J62: 74 | K62: 54 | L62: 0
H63: Share of profits of associates | I63: 0 | J63: -14 | K63: 0 | L63: 0
H64: Operating profit | I64: 2747 | J64: 5822 | K64: 1641 | L64: 0
A65: cumulated | B65: 2019_Q2 | C65: restated | D65: kPLN | E65: 2018-06-30 | H65: Sales revenues: | I65: 76002.88069 | J65: 127355.1063 | K65: 105988.3987 | L65: -12002.38562
H66: Sales to external customers | I66: 69754.72932 | J66: 123171.0683 | K66: 104418.2513 | L66: 0
H67: Inter/intra segment sales | I67: 6248.15137 | J67: 4184.03794 | K67: 1570.14732 | L67: -12002.38562
H68: Gross profit on sales | I68: 19753.01376 | J68: 34017.81562 | K68: 17926.09598 | L68: 0
H69: Selling costs (-) | I69: -5754.69661 | J69: -6832.90212 | K69: -9017.38165 | L69: 0
H70: General and administrative expenses (-) | I70: -7152.72603 | J70: -7387.06256 | K70: -4491.10509 | L70: 0
H71: Net profit on sales | I71: 6845.59112 | J71: 19797.85094 | K71: 4417.60924 | L71: 0
H72: Other operating activities | I72: 76.30138 | J72: -37.71634 | K72: -9.4208 | L72: 0
H73: Share of profits of associates
H74: Operating profit | I74: 6922.195 | J74: 19550.8321 | K74: 4408.18844 | L74: 0
H75: goodwill | I75: 202461 | J75: 109465 | K75: 180105 | L75: 0
A76: cumulated | B76: 2019_Q2 | C76: restated | D76: kEUR | E76: 2018-06-30 | H76: Sales revenues: | I76: 17928 | J76: 30040 | K76: 25000 | L76: -2831
H77: Sales to external customers | I77: 16454 | J77: 29053 | K77: 24630 | L77: 0
H78: Inter/intra segment sales | I78: 1474 | J78: 987 | K78: 370 | L78: -2831
H79: Gross profit on sales | I79: 4659 | J79: 8025 | K79: 4228 | L79: 0
H80: Selling costs (-) | I80: -1357 | J80: -1612 | K80: -2127 | L80: 0
H81: General and administrative expenses (-) | I81: -1687 | J81: -1743 | K81: -1059 | L81: 0
H82: Net profit on sales | I82: 1615 | J82: 4670 | K82: 1042 | L82: 0
H83: Other operating activities | I83: 17 | J83: -9 | K83: -2 | L83: 0
H84: Share of profits of associates
H85: Operating profit | I85: 1632 | J85: 4612 | K85: 1040 | L85: 0
A86: cumulated | B86: 2019_Q3 | C86: reported | D86: kPLN | E86: 2019-09-30 | H86: Sales revenues: | I86: 142514 | J86: 270381 | K86: 218806 | L86: -25925
H87: Sales to external customers | I87: 128775 | J87: 259471 | K87: 217530 | L87: 0
H88: Inter/intra segment sales | I88: 13739 | J88: 10910 | K88: 1276 | L88: -25925
H89: Gross profit on sales | I89: 41774 | J89: 70635 | K89: 33803 | L89: 0
H90: Selling costs (-) | I90: -9314 | J90: -14485 | K90: -13234 | L90: 0
H91: General and administrative expenses (-) | I91: -11972 | J91: -15996 | K91: -9371 | L91: 0
H92: Net profit on sales | I92: 20488 | J92: 40154 | K92: 11198 | L92: 0
H93: Other operating activities | I93: -73 | J93: 1405 | K93: 565 | L93: 0
H94: Share of profits of associates | I94: 0 | J94: -61 | K94: 0 | L94: 0
H95: Operating profit | I95: 20415 | J95: 41498 | K95: 11763 | L95: 0
H96: Goodwill | I96: 201365 | J96: 168473 | K96: 177671 | L96: 0
A97: cumulated | B97: 2019_Q3 | C97: reported | D97: kEUR | E97: 2019-09-30 | H97: Sales revenues: | I97: 33077 | J97: 62754 | K97: 50784 | L97: -6018
H98: Sales to external customers | I98: 29888 | J98: 60222 | K98: 50487 | L98: 0
H99: Inter/intra segment sales | I99: 3189 | J99: 2532 | K99: 297 | L99: -6018
H100: Gross profit on sales | I100: 9696 | J100: 16394 | K100: 7845 | L100: 0
H101: Selling costs (-) | I101: -2162 | J101: -3362 | K101: -3071 | L101: 0
H102: General and administrative expenses (-) | I102: -2779 | J102: -3713 | K102: -2174 | L102: 0
H103: Net profit on sales | I103: 4755 | J103: 9319 | K103: 2600 | L103: 0
H104: Other operating activities | I104: -17 | J104: 326 | K104: 131 | L104: 0
H105: Share of profits of associates | I105: 0 | J105: -14 | K105: 0 | L105: 0
H106: Operating profit | I106: 4738 | J106: 9631 | K106: 2731 | L106: 0
A107: cumulated | B107: 2019_Q3 | C107: restated | D107: kPLN | E107: 2018-09-30 | H107: Sales revenues: | I107: 117908 | J107: 186925 | K107: 165106 | L107: -21065
H108: Sales to external customers | I108: 108852 | J108: 177864 | K108: 162158 | L108: 0
H109: Inter/intra segment sales | I109: 9056 | J109: 9061 | K109: 2948 | L109: -21065
H110: Gross profit on sales | I110: 32300 | J110: 49323 | K110: 29137 | L110: 0
H111: Selling costs (-) | I111: -8572 | J111: -10727 | K111: -13389 | L111: 0
H112: General and administrative expenses (-) | I112: -10891 | J112: -10743 | K112: -6756 | L112: 0
H113: Net profit on sales | I113: 12837 | J113: 27853 | K113: 8992 | L113: 0
H114: Other operating activities | I114: 100.44666 | J114: 78.85924 | K114: 25.65876 | L114: 0
H115: Share of profits of associates
H116: Operating profit | I116: 12937.44666 | J116: 27686.85924 | K116: 9017.65876 | L116: 0
H117: goodwill | I117: 197259 | J117: 105120 | K117: 172357 | L117: 0
A118: cumulated | B118: 2019_Q3 | C118: restated | D118: kEUR | E118: 2018-09-30 | H118: Sales revenues: | I118: 27720 | J118: 43946 | K118: 38817 | L118: -4952
H119: Sales to external customers | I119: 25591 | J119: 41816 | K119: 38124 | L119: 0
H120: Inter/intra segment sales | I120: 2129 | J120: 2130 | K120: 693 | L120: -4952
H121: Gross profit on sales | I121: 7594 | J121: 11596 | K121: 6850 | L121: 0
H122: Selling costs (-) | I122: -2015 | J122: -2522 | K122: -3148 | L122: 0
H123: General and administrative expenses (-) | I123: -2560 | J123: -2526 | K123: -1589 | L123: 0
H124: Net profit on sales | I124: 3019 | J124: 6548 | K124: 2113 | L124: 0
H125: Other operating activities | I125: 24 | J125: 19 | K125: 6 | L125: 0
H126: Share of profits of associates
H127: Operating profit | I127: 3043 | J127: 6509 | K127: 2119 | L127: 0
A128: cumulated | B128: 2019_Q4 | C128: reported | D128: kPLN | E128: 2019-12-31 | H128: Sales revenues: | I128: 209417 | J128: 383126 | K128: 327709 | L128: -38916
H129: Sales to external customers | I129: 187909 | J129: 368041 | K129: 325386
H130: Inter/intra segment sales | I130: 21508 | J130: 15085 | K130: 2323 | L130: -38916
H131: Gross profit on sales | I131: 69842 | J131: 97585 | K131: 47324 | L131: 0
H132: Selling costs (-) | I132: -13629 | J132: -20593 | K132: -18817 | L132: 0
H133: General and administrative expenses (-) | I133: -17019 | J133: -23084 | K133: -13678 | L133: 0
H134: Net profit on sales | I134: 39194 | J134: 53908 | K134: 14829 | L134: 0
H135: Other operating activities | I135: 4 | J135: 1486 | K135: 840 | L135: 0
H136: Share of profits of associates | I136: 0 | J136: -61 | K136: 0 | L136: 0
H137: Operating profit | I137: 39198 | J137: 55333 | K137: 15669 | L137: 0
H138: Goodwill | I138: 194903 | J138: 173419 | K138: 171343
A139: cumulated | B139: 2019_Q4 | C139: reported | D139: kEUR | E139: 2019-12-31 | H139: Sales revenues: | I139: 48681 | J139: 89062 | K139: 76179 | L139: -9046
H140: Sales to external customers | I140: 43681 | J140: 85555 | K140: 75640 | L140: 0
H141: Inter/intra segment sales | I141: 5000 | J141: 3507 | K141: 539 | L141: -9046
H142: Gross profit on sales | I142: 16236 | J142: 22685 | K142: 11000 | L142: 0
H143: Selling costs (-) | I143: -3168 | J143: -4787 | K143: -4374 | L143: 0
H144: General and administrative expenses (-) | I144: -3956 | J144: -5366 | K144: -3180 | L144: 0
H145: Net profit on sales | I145: 9112 | J145: 12532 | K145: 3446 | L145: 0
H146: Other operating activities | I146: 1 | J146: 345 | K146: 195 | L146: 0
H147: Share of profits of associates | I147: 0 | J147: -14 | K147: 0 | L147: 0
H148: Operating profit | I148: 9113 | J148: 12863 | K148: 3641 | L148: 0
A149: cumulated | B149: 2019_Q4 | C149: restated | D149: kPLN | E149: 2018-12-31 | H149: Sales revenues: | I149: 179167 | J149: 265552 | K149: 266235 | L149: -40577
H150: Sales to external customers | I150: 163227 | J150: 244661 | K150: 262489 | L150: 0
H151: Inter/intra segment sales | I151: 15940 | J151: 20891 | K151: 3746 | L151: -40577
H152: Gross profit on sales | I152: 55193 | J152: 64308 | K152: 41496 | L152: 0
H153: Selling costs (-) | I153: -13212 | J153: -14782 | K153: -18617 | L153: 0
H154: General and administrative expenses (-) | I154: -15254 | J154: -14770 | K154: -9447 | L154: 0
H155: Net profit on sales | I155: 26727 | J155: 34756 | K155: 13432 | L155: 0
H156: Other operating activities | I156: 103 | J156: -143 | K156: -91
H157: Share of profits of associates
H158: Operating profit | I158: 26830 | J158: 34311 | K158: 13341 | L158: 0
H159: goodwill | I159: 198983 | J159: 106696 | K159: 175410
A160: cumulated | B160: 2019_Q4 | C160: restated | D160: kEUR | E160: 2018-12-31 | H160: Sales revenues: | I160: 41990 | J160: 62235 | K160: 62395 | L160: -9510
H161: Sales to external customers | I161: 38254 | J161: 57339 | K161: 61517 | L161: 0
H162: Inter/intra segment sales | I162: 3736 | J162: 4896 | K162: 878 | L162: -9510
H163: Gross profit on sales | I163: 12935 | J163: 15071 | K163: 9725 | L163: 0
H164: Selling costs (-) | I164: -3096 | J164: -3465 | K164: -4363 | L164: 0
H165: General and administrative expenses (-) | I165: -3575 | J165: -3461 | K165: -2214 | L165: 0
H166: Net profit on sales | I166: 6264 | J166: 8145 | K166: 3148 | L166: 0
H167: Other operating activities | I167: 24 | J167: -33 | K167: -21 | L167: 0
H168: Share of profits of associates
H169: Operating profit | I169: 6288 | J169: 8041 | K169: 3127 | L169: 0
A170: cumulated | B170: 2020_Q1 | C170: reported | D170: kPLN | E170: 2020-03-31 | H170: Sales revenues: | I170: 44772 | J170: 113015 | K170: 80724 | L170: -7526
H171: Sales to external customers | I171: 40990 | J171: 110045 | K171: 79950 | L171: 0
H172: Inter/intra segment sales | I172: 3782 | J172: 2970 | K172: 774 | L172: -7526
H173: Gross profit on sales | I173: 13746 | J173: 28683 | K173: 13661 | L173: 0
H174: Selling costs (-) | I174: -3121 | J174: -5507 | K174: -4462 | L174: 0
H175: General and administrative expenses (-) | I175: -4076 | J175: -7223 | K175: -3579 | L175: 0
H176: Net profit on sales | I176: 6549 | J176: 15953 | K176: 5620 | L176: 0
H177: Other operating activities | I177: 17 | J177: 186 | K177: 53 | L177: 0
H178: Share of profits of associates | I178: 0 | J178: 0 | K178: 0 | L178: 0
H179: Operating profit | I179: 6566 | J179: 16139 | K179: 5673 | L179: 0
H180: Goodwill | I180: 206887 | J180: 176178 | K180: 180575
A181: cumulated | B181: 2020_Q1 | C181: reported | D181: kEUR | E181: 2020-03-31 | H181: Sales revenues: | I181: 10184 | J181: 25707 | K181: 18362 | L181: -1712
H182: Sales to external customers | I182: 9324 | J182: 25031 | K182: 18186 | L182: 0
H183: Inter/intra segment sales | I183: 860 | J183: 676 | K183: 176 | L183: -1712
H184: Gross profit on sales | I184: 3127 | J184: 6525 | K184: 3107 | L184: 0
H185: Selling costs (-) | I185: -710 | J185: -1253 | K185: -1015 | L185: 0
H186: General and administrative expenses (-) | I186: -927 | J186: -1643 | K186: -814 | L186: 0
H187: Net profit on sales | I187: 1490 | J187: 3629 | K187: 1278 | L187: 0
H188: Other operating activities | I188: 4 | J188: 42 | K188: 12 | L188: 0
H189: Share of profits of associates | I189: 0 | J189: 0 | K189: 0 | L189: 0
H190: Operating profit | I190: 1494 | J190: 3671 | K190: 1290 | L190: 0
A191: cumulated | B191: 2020_Q1 | C191: restated | D191: kPLN | E191: 2019-03-31 | H191: Sales revenues: | I191: 42305 | J191: 81888 | K191: 63980 | L191: -9357
H192: Sales to external customers | I192: 38492 | J192: 76817 | K192: 63507 | L192: 0
H193: Inter/intra segment sales | I193: 3813 | J193: 5071 | K193: 473 | L193: -9357
H194: Gross profit on sales | I194: 10604 | J194: 22245 | K194: 11550 | L194: 0
H195: Selling costs (-) | I195: -3123 | J195: -4389 | K195: -4093 | L195: 0
H196: General and administrative expenses (-) | I196: -3956 | J196: -4664 | K196: -2919 | L196: 0
H197: Net profit on sales | I197: 3525 | J197: 13192 | K197: 4538 | L197: 0
H198: Other operating activities | I198: 104 | J198: 127 | K198: 120 | L198: 0
H199: Share of profits of associates
H200: Operating profit | I200: 3629 | J200: 13264 | K200: 4658 | L200: 0
... 1597 more rows
